{"text_format":"1","workbook":"xlsx","n_sheets":11,"sheets":["Course Costs","dropdown","Data Output","Org Codes","Reference","I. Organization Information","II. Mission Critical Need","III. Other Needs ","IV. Development Programs","V. Competency","VI. PMCDP-ACMP"],"not_rendered":{"charts":0,"images":0,"macros":1,"external_links":0,"defined_names":35,"comments":0,"pivot_tables":0},"unopened":[],"bounds":{"document_bytes":16777216,"sheet_cells":100000,"rows_first":2000,"rows_last":500,"rows_between":2000,"halvings":0,"cell_chars":16384,"cell_head_chars":4096},"cells_cut":0,"cells_raw":0,"read":"whole","date_system":"1900"}

{"sheet":"Course Costs","index":0,"n_rows":1621,"n_cols":2,"rows_kept":1621,"cut":false,"hidden":true,"merged":[]}
["Course"]
["ABA Environmental Law",1365.016212]
["ABA Water Law Class (MO)",541.67310000000009]
["Access 2007 Level I",107.25127380000001]
["Access 2007 Level II",150.5851218]
["Accident Investigator Training",2275.02702]
["Accidents, Incidents, Abnormal Environments and Test Experiences",0]
["Accountability for Federal Grants (Online)",835.46190000000001]
["Accountability for Federal Grants: Planning, Measuring and Reporting",807.63459209999996]
["Accounting for Business Operations In Government",784.45690000000002]
["Accounting I",449.31783645000002]
["Accounting II",449.31783645000002]
["Achieving Results",1706.2702650000001]
["ACQ 101 Fundamentals of Systems  Acquisition Management",0]
["ACQ 201B Intermediate Systems Acquisition",0]
["ACQ 221 - Advanced Acquisition and Procurement Management I ",0]
["Acquisition I",1423.0395000000001]
["Acquisition Management for Non-Procurement Personnel",0]
["Acquisition Management for Tech Personnel",0]
["Acquisition Management for Technical Personnel",0]
["Acquisition of Commercial Items",713.04989999999998]
["Acquisition Strategy & Planning",407.33817119999998]
["Active Listening Techniques for Effective Communication",273.00324240000003]
["Activity-Based Cost Management: Managing Costs And Performance",784.45690000000002]
["Adjudicating and Applying Veterans' Preferences",506.19351195000002]
["Admin Professional Live Brief",156.97686437999999]
["Administration of Contractor-Held Property",1049.6829]
["Administration of Contractor-Held Property - MCI",1077.9294690000002]
["Administration of Cost-Reimbursement Contracts",1070.0849000000001]
["Administrative Assistants Conference",215.58589380000001]
["Administrative Professionals Retreat Seminar",386.75459340000003]
["Adult 1st Aid CPR/AED Training",85.31351325]
["Adult 1st Aid CPR/AED Training",216.66924]
["Advanced Acquisition Management",1077.9294690000002]
["Advanced Budget and Appropriations Process, 2 days",1990.6486424999998]
["Advanced Business Solutions for Contracting",0]
["Advanced Business Solutions for Contracting",1281.121882272]
["Advanced Contract Admin",840.84998659200005]
["Advanced Contract Administration",0]
["Advanced Contracting for Mission Support",0]
["Advanced Contracting for Mission Support",1281.121882272]
["Advanced COR/COTR Workshop",1070.0849000000001]
["Advanced Cost Principles",600.83889999999997]
["Advanced Cost Principles",614.25729539999998]
["Advanced Cost Type Contracts",325.00385999999997]
["Advanced Course in USQ",1402.933329]
["Advanced Criticality safety",1354.1827500000002]
["Advanced Excel Class",284.3783775]
["Advanced Federal Contract Law",1070.0849000000001]
["Advanced Hoisting & Rigging Training",2730.032424]
["Advanced International Traffic in Arms Course ",1077.9294690000002]
["Advanced ISOCS Measurements ",2161.2756690000001]
["Advanced Issues Source Selections",216.66924]
["Advanced Leadership Skills and Techniques",998.67789999999991]
["Advanced Legislative Process, 2 days",1012.3870239]
["Advanced Position Classification",1177.32648285]
["Advanced Position Classification  - Grad School CLASS9001D",1077.9294690000002]
["Advanced Processing Personnel Actions ",244.56540465]
["Advanced Property Management Seminar",1677.8324272500001]
["Advanced Radioactive Materials Packaging and Transportation Workshop",0]
["Advanced Simplified Acquisition Procedures",1070.0849000000001]
["Advanced Topics in NQA-1",1402.933329]
["Adverse & Performance Based Actions (LABR7100D)",1074.95026695]
["Agile Project Management for the Federal Environment",1467.9239]
["Agile Project Management for the Federal Environment- Virtual Classroom",1467.9239]
["AIHce Conference",1023.762159]
["AISES Conference",455.005404]
["American Society of Mechanical Engineers Code Course",758.34233999999992]
["American Society of Training and DevelOFFICE OF PERSONNEL MANAGEMENTent Conference",2161.2756690000001]
["American Society of Training and Development Conference",2161.2756690000001]
["Analysis Techniques for Auditors",644.59098899999992]
["Analytics Boot Camp",1559.7329]
["Analytics Capstone",1794.3559]
["Analyzing Program Performance Options in a Constrained Budget Environment",784.45690000000002]
["Analyzing Workplace War Zones - DOE OLC",0]
["Annenberg Leadership Institute",8957.9188912500013]
["Annual Auditing Update",226.41935580000001]
["Annual Benefits Workshop - Bechtel",341.254053]
["Annual Dispute Resolution Training",0]
["Annual Ethics Briefing",0]
["Annual GC Procurement Conference ",379.17116999999996]
["Annual Water Law Conference",597.19459275000008]
["ANS Conference",812.50965000000008]
["Anytime Coaching",937.47190000000001]
["Application of the ASME Code to Radioactive Material Transportation Pkg.",910.010808]
["Applied Clean Air Act",74.750887800000015]
["Applied Health Physics",2155.5881014500001]
["Applying for Federal Grants and Cooperative Agreements",764.05489999999998]
["Applying for Federal Grants and Cooperative Agreements (Online)",835.46190000000001]
["Appropriation Law for Financial Assistance",619.94486295000013]
["Appropriations Law ",655.42445100000009]
["Appropriations Law for Business Operations in Government",641.64289999999994]
["Appropriations Law for Business Operations in Government",619.94486295000013]
["Appropriations Law for Federal Grants",600.83889999999997]
["Appropriations Law in the Defense Environment",641.64289999999994]
["Appropriations Law Refresher and Update",641.64289999999994]
["Appropriations Law Seminar",957.87389999999994]
["Army PPBES Workshop",1049.6829]
["ASAP Training Conference",881.57297025000003]
["ASME B31.3 PROCESS PIPING DESIGN",2031.2741249999999]
["ASME B31.3 PROCESS PIPING MATERIALS, FABRICATION, EXAMINIATION AND TESTING",698.75829900000008]
["ASME NQA-1 Applied to Software for DOE Federal Staff",0]
["ASME NQA-1 Applied to Software for DOE Federal Staff",325.00385999999997]
["ASME Nuclear Technical Seminars",1700.5826974500001]
["ASP/CSP Review",1077.9294690000002]
["Aspiring Leader Program",2917.7221531499999]
["Aspiring Leader Program (ALP)",2917.7221531499999]
["ASQ Certified Manager of Quality Assurance/Organizational Excellence",511.8810795]
["ASQ Certified Quality Engineer Overview",422.50501800000001]
["ASSE Conference",1012.3870239]
["Assertiveness Training for Women in Business",1850.3553096000001]
["Assessing Advanced Surety Technologies",0]
["Assessing and Recovering Troubled Projects",{"$error":"#VALUE!"}]
["Assessing and Recovering Troubled Projects - Virtual Classroom",1406.7178999999999]
["Attend Gartner Summits and Symposiums",1944.6064290000002]
["Audit Boot Camp",1049.6829]
["Audit Interviews: Skills for Success",641.64289999999994]
["Audit of Federal Grants and Cooperative Agreements",764.05489999999998]
["Audit of Federal Grants and Cooperative Agreements",807.63459209999996]
["Audit of Federal Grants and Cooperative Agreements (Online)",835.46190000000001]
["Audit of Federal Grants/Cooperative Agreements",1722.520458]
["Auditing Fundamentals in the Federal Environment",641.64289999999994]
["Baisic Project Management  Overview ",0]
["Basic (Level I) Contracting Officer's Representative",549.83389999999997]
["Basic Contract Administration",1131.82594245]
["Basic EEO Counseling",1131.82594245]
["Basic Employee Benefits for HR Staff  7100D",1416.2043199500001]
["Basic Employee Relations (LABR7000D)",1074.95026695]
["Basic Explosive Technology & Safety",1236.4771853699999]
["Basic First Aid training ",27.083655]
["Basic Labor Relations",1245.5772934499998]
["Basic Mediation Skills",1581.1437789000001]
["Basic Processing Personnel Actions (USDA Web-based)",232.919433]
["Basic Project Management",1130.68842894]
["Basic Radioactive Waste Packaging, Transportation and Disposal Workshop - 4-Day",1928.0853994500001]
["Basic Records Operations",170.6270265]
["Basic Staffing and Placement",1245.5772934499998]
["Basic Staffing and Placement (USDA Web-based)",287.08674300000001]
["Basics of contracting",1077.9294690000002]
["Basics of Personal Property Management",1049.6829]
["BCF 102 Earned Value Management",0]
["Becker Professional Reivew",1205.7643206]
["Becoming a Strategic Business Partner: Expanding Your Role to Deliver Results",917.06989999999996]
["Beryllium Program Management",752.92560900000001]
["Best Practices in Project Management",0]
["Best Value Source Selection Using Tradeoffs",713.04989999999998]
["Bibler's Contract Management Seminar (ICP Contracts) ",0]
["BIG National Training Conference",227.502702]
["BOILER OPERATION, MAINTENANCE AND SAFETY",1061.6792760000001]
["Breaking the Code:  Understanding Project Management",0]
["Breaking the Code: Understanding Profect Management",407.33817119999998]
["Breakthrough Problem Solving",937.47190000000001]
["Bridging Organizational Cultures",3981.2972849999996]
["Briefing and Presentation Skills",937.47190000000001]
["Briefing Techniques",847.44756495000001]
["Briefing Techniques - Grad School COMM7002D",861.26022899999998]
["BRMD-specific STRIPES Training (Conducted by OBS)",0]
["Budget & Accounting: Making the Connection",619.94486295000013]
["Budget Analyst Workshop",995.32432124999991]
["Budget Analyst's Essential Guide to Formulation, Justification, and Execution",784.45690000000002]
["Budget and Financial Management",796.259457]
["Budget Estimating Using Microsoft Excel",784.45690000000002]
["Budget Execution",784.45690000000002]
["Budget Execution",995.32432124999991]
["Budget Formulation",784.45690000000002]
["Budget Formulation",995.32432124999991]
["Budget Justification: Effective Preparation and Submission",784.45690000000002]
["Budgeting and Accounting: Making the Connection",641.64289999999994]
["Building a Great Place for People to Work",3577.47998895]
["Building and Sustaining Teams",937.47190000000001]
["Building Business Cases",1406.7178999999999]
["Building Credibility to Support Your Customer",{"$error":"#VALUE!"}]
["Building High-Performance Organizations in the 21st Century",3412.5405300000002]
["Building High-Performance Organizations in the 21st Century",4129.1740412999998]
["Burned Board Room",0]
["BUS 601 Business Decision Making",1083.3462000000002]
["BUS 616 Financial Settlements",1083.3462000000002]
["BUS 625 Organzation Communication",1083.3462000000002]
["Business Analysis and Information Technology",1040.502]
["Business Capstone Project (Capella)",2166.6924000000004]
["Business Communication/Report Writing",497.25590579999994]
["Business Decision for Contracting",931.67773199999999]
["Business Decisions for Contracting",1131.82594245]
["Business Grammar & Proofreading",226.36518849000001]
["Business Management Skills",606.95950000000005]
["Business Management Systems for Grant Recipients",764.05489999999998]
["Business Process Modeling",1928.0853994500001]
["Business Writing",753.85389999999995]
["Business Writing and Grammar Skills",340.11653949000004]
["Business Writing for Results",203.61491828999996]
["CAIRS Coding & Data Entry",0]
["Capital Asset Planning and Justification Using OMB Criteria",784.45690000000002]
["Category-Based Rating and Selection: A Workshop - Graduate School - STAF8005D ",449.31783645000002]
["Category-Based Rating and Selection: A Workshop - USDA Graduate School - STAF8005D ",449.31783645000002]
["CBAP Exam Preparation",1794.3559]
["Center for Global Leadership Series - Leadership for a Global Society",5056.2475519500003]
["Center for Global Leadership Series: The Aspen Institute Seminar on Global Values and Leadership",4532.9913373500003]
["Certified Government Auditing Professional (CGAP) Preparatory Course",855.86389999999994]
["Certified Internal Auditor (CIA) Preparatory Course 5-day",1529.1298999999999]
["Certified ISO 14001 Lead Auditor",2273.8895064899998]
["Certified Quality Auditor (CQA) Review ",1308.1405365000001]
["Certified Safety Professional (CSP) Exam Preparation Workshop",1069.2626994]
["Certified Safety Professional Workshop",1069.2626994]
["CETC 155 Introduction to Environmental Law",1083.3462000000002]
["CETC 156 Successful Environmental Management",1083.3462000000002]
["CFEB Programs",162.50192999999999]
["CFO Conference",865.59361379999996]
["Changes in Government Contracts",785.42599500000006]
["Changes Under Government Contracts",774.2559]
["Changing Dimensions in DOE",0]
["Changing Dimensions in DOE",505.19683344600003]
["CHRIS Query Basic Training",0]
["CIP 300DC: Weapons of Mass Destruction",0]
["CIP 400D: Weapons of Mass Destruction - Biological Exercise",0]
["CIP100D  Introduction to Analytical Risk Management",0]
["CIP110DW  Vehicle Bomb Search Methods",0]
["CIP400DC  Weapons of Mass Destruction (WMD): Training Exercises",0]
["CL 024 Buy America Act",0]
["CLB 016 Introduction to Earned Value Management",0]
["CLC 0007 Contract Source Selection",0]
["CLC 003 Sealed Bidding",0]
["CLC 004 Market Research",0]
["CLC 006 Contract Termination",0]
["CLC 009 Service-Disabled Veteran-Owned Small Business Program",0]
["CLC 015 Commercial Acquisitions",0]
["CLC 020 Commercial Item Determination",0]
["CLC 022 Profit Policy Revisions",0]
["CLC 023 Commercial Item Determination: Executive Overview",0]
["CLC 027 Buy American Act",0]
["CLC 060 Time and Materials Contracts",0]
["CLC 104 Analyzing Profit or Fee",0]
["CLC 131 Commercial Item Pricing",0]
["Clean Air Compliance Institute",75.834233999999995]
["CLL 015 Business Case Analysis",0]
["Closeout of Grants for Federal Personnel",764.05489999999998]
["CMP 101DW: Operations Overview of Consequence Management",0]
["CMP 105DW: Analysis Leadership Training",0]
["CMP 109DW: WMD Response Training",0]
["CMP104DW  Health and Safety Orientation",0]
["CMP108DW  Technical Training for CM Managers",0]
["CMP110DW  Assessment Manual Training",0]
["CMP112DW  Field Monitoring Team Training, Introduction",0]
["CMP113CL  Field Monitoring Team Training, Adv",0]
["CMP114DW  Monitoring Division Manager Training, Introduction",0]
["CMP116DW  Sample Control Training, Introduction",0]
["CMP117CL  InSitu Training",0]
["CMP120CL  Monitoring Division Manager Training, Adv",0]
["CMP121CL  Sample Control Training, Adv",0]
["CMP122DR  Consequence Management (CM) Drill",0]
["CMP123DW  Geographic Information System (GIS) Overview",0]
["CMP124DW  Consequence Management Official (CMO) Training",0]
["Coaching and Counseling",964.17811800000004]
["Coaching and Mentoring for Excellence",3696.9189074999999]
["Coaching and Mentoring for Excellence",4062.5482499999998]
["Coaching and Mentoring Skills for Leadership Success ",226.36518849000001]
["Coaching Skills for Federal Executives",3577.47998895]
["Collaborating Across Organizational Boundaries",3179.35026045]
["Collaboration and Knowledge Sharing",1559.7329]
["College of Naval Command and Staff",0]
["College of Naval Warfare Program",0]
["COMM 7006F - Interpersonal Communications",622.92406499999993]
["Commerce Science and Technology Fellowship (ComSci)",10725.12738]
["Commercial Grade Items Dedication Training ",1365.016212]
["Committees and Parties in Congress",1137.51351]
["Communicating During Organizational Change",0]
["Communicating Face to Face",5005.0594439999995]
["Communicating Strategically",753.85389999999995]
["Communicating with the Public",1272.9317849999998]
["Communicating with the Publice",1272.9317849999998]
["Communication Challenges",340.11653949000004]
["Computer Incident Response",2787.4497726]
["CON 100 Shaping Smart Business Arrangements",0]
["CON 100: Shaping Smart Business Arrangements",1049.6829]
["CON 110 Mission Support Planning",1080.6378345000001]
["CON 110:  Mission Support Planning",1049.6829]
["CON 111 Mission Planning Execution",1080.6378345000001]
["CON 111:  Mission Strategy Execution",1049.6829]
["CON 112 Mission Performance Assessment",1080.6378345000001]
["CON 112:  Mission Performance Assessment",1049.6829]
["CON 214 Business Decisions for Contracting",1131.82594245]
["CON 214:  Business Decisions for Contracting",1070.0849000000001]
["CON 215 Intermediate Contracting for Mission Support",2098.7124259499997]
["CON 215:  Intermediate Contracting for Mission Support",2018.7779]
["CON 216 Legal Considerations in Contracting",1131.82594245]
["CON 216:  Legal Considerations in Contracting",1070.0849000000001]
["CON 217 Cost Analysis and Negotiation Techniques",1131.82594245]
["CON 217 Cost Analysis and Negotiation Techniquest",1077.9294690000002]
["CON 217:  Cost Analysis and Negotiation Techniques",1070.0849000000001]
["CON 218:  Advanced Contracting for Mission Support",2294.2049000000002]
["CON 234 Joint Contingency Contracting",0]
["CON 237 Simplified Acquisition Procedures (on-line)",0]
["CON 243: Architect-Engineer Services Contracting",1070.0849000000001]
["CON 244 Construction Contracting",1131.82594245]
["CON 244:  Construction Contracting",1070.0849000000001]
["CON 353 Advanced Business Solutions for Mission Support",2445.6540465000003]
["CON 353:  Advanced Business Solutions for Mission Support",2294.2049000000002]
["Conduct of Inquiries",216.66924]
["Conducting Admin Investigation",219.51844050600002]
["Conducting the Internal Audit Engagement",845.66289999999992]
["Configuration Management",0]
["Conflict Resolution Skills",3696.9189074999999]
["Congress and Homeland Security, 4 days",1365.016212]
["Congress and National Security Policy",1137.51351]
["Congress and the Intelligence Community, 4 days",1365.016212]
["Congressional Briefing Conference for PMFs, 5 days",1365.016212]
["Congressional Electoral Process",1137.51351]
["Congressional Fellowship Program",6646.3289369999993]
["Congressional Operations Seminar, 5 days",1365.016212]
["Congressional Power and Presidential Authority",1137.51351]
["Congressional Update, 1 day",1740.3956703000001]
["Constraints on Use of Software in High Consequence Systems",0]
["Construction Claims",774.2559]
["Consulting Skills for HR Professionals - Grad School CDEV8005D",958.76138700000001]
["Continuity of Operations",0]
["Continuity of Operations (COOP) Conference",53.083963799999999]
["Contract Administration",1049.6829]
["Contract Administration for Technical Representatives",407.33817119999998]
["Contract Claims",1070.0849000000001]
["Contract Closeout",713.04989999999998]
["Contract Cost Principles and Procedures",1077.9294690000002]
["Contract Law",931.67773199999999]
["Contract Law for Tech Personnel",931.67773199999999]
["Contract Law for Technical Representatives",1077.9294690000002]
["Contract Property Management Seminar",1365.016212]
["Contract Property Management Seminar NPMA",486.4224438]
["Contracting Basics for Administrative Personnel",861.26022899999998]
["Contracting Officer's Representative Course",1049.6829]
["Contracting With Small Business Concerns",774.2559]
["COO 101DW 2007: Continuity of Operations Awareness",0]
["COO 101DW 2008-09: Continuity of Operations Awareness",0]
["COO 101DW 2010: Continuity of Operations Awareness",0]
["Cooperative Agreements and Substantial Involvement",600.83889999999997]
["Cooperative Agreements and Substantial Involvement",585.00694799999997]
["COR Refresher Training",541.67310000000009]
["COR/COTR Refresher",549.83389999999997]
["Core Competencies of Leaders",455.005404]
["Cost Accounting I",335.56648544999996]
["Cost Accounting II",335.56648544999996]
["Cost Accounting III",335.56648544999996]
["Cost Analysis",1077.9294690000002]
["Cost Analysis and Negotiation Strategies",939.26115540000001]
["Cost Analysis, CLB 007",0]
["Cost and Performance Management - Lehigh University",910.010808]
["Cost and Price Analysis",1070.0849000000001]
["Cost and Price Analysis",1109.0756722500003]
["Cost and Price Analysis of Lease Proposals",1070.0849000000001]
["Cost and Price Analysis of Lease Proposals - MCI",1110.4298550000001]
["Cost Estimating for Technical Personnel",774.2559]
["Cost Estimating Seminar",1077.9294690000002]
["Cost Principles (OMB Circulars)",769.17580199999998]
["Cost Principles OMB Circulars A-21, A-87, A-122 and FAR 31.2",807.63459209999996]
["Cost Principles OMB Circulars A-21, A-87, A-122 and FAR 31.3",807.63459209999996]
["Cost Principles Refresher",0]
["Cost Principles: 2 CFR Part 220 (A-21), 225 (A-87), 230 (A-122), and FAR 31.2",764.05489999999998]
["Cost Principles:2 CFR Part 220 (A-21), 225 (A-87), 230 (A-122), and FAR (Online)",866.06489999999997]
["Cost Reimbursement Contracting",1077.9294690000002]
["Cost-Benefit Analysis",439.08021486000001]
["Counterintelligence Security",216.66924]
["CPIC: OMB Circular A11 and the Exhibit 300",508.51187281799997]
["CPPM Certification Review Course",455.005404]
["CPR training ",21.666923999999998]
["CPR/First Aid Training",21.666923999999998]
["CQE Certified Quality Engineer Refresher",483.44324175000003]
["Crafting High Quality Requirements - Virtual Classroom",2244.2199999999998]
["Crafting High-Quality Requirements",1467.9239]
["Creating Breakthroughs: Innovating in Government",3179.35026045]
["Creativity and Innovation",753.85389999999995]
["Creativity and Innovation",710.94594374999997]
["Crisis Leadership Workshop",3981.2972849999996]
["Critical Thinking",881.57297025000003]
["Critical Thinking for Problem Solving",937.47190000000001]
["Criticality safety",1077.9294690000002]
["CSRS Benefits Application for HR - Grad School BENE8110D",1186.264089]
["CSRS Retirement Preparation Seminar",0]
["CSRS Retirement Preparation Seminar",406.62316270799994]
["CSRS Retirement Seminar",682.508106]
["CSRS/FERS Retirement",406.62316270799994]
["CSRS/FERS Retirement Seminar (2 separate courses)",407.30567081400005]
["CSRS/FERS Retirement Symposium",0]
["CTMA Workshop",162.50192999999999]
["Culture and Global E-learning (UNIVERSITY OF NEW MEXICO Course OLIT 537)",739.38378150000005]
["Culture and Global E-learning (UNM Course OLIT 537)",739.38378150000005]
["Customer Service Skills and Techniques",641.64289999999994]
["Customer Service Training ",227.502702]
["CWA/Stormwater Management",0]
["Data Analysis and Modeling Techniques",1478.1249]
["Data analysis and Modeling Techniques",53.083963799999999]
["Data Analysis for Financial Managers Using Microsoft Excel",957.87389999999994]
["Data Collection Techniques",1478.1249]
["Dealing with Difficult People",226.36518849000001]
["Decision Making",988.4769]
["Decision Making Skills",682.508106]
["Decision Support for Financial Managers",784.45690000000002]
["Decommissioning of Nuclear Facilities",1023.762159]
["Defense Acquisition Management: An Overview",407.01990000000001]
["Delegated Examining - OPM",747.50887799999998]
["Delegated Examining Unit (001073)",301.17024359999999]
["Demilitarization Course",677.09137500000008]
["Demilitarization Course - DOD",0]
["Department of Energy Annual Information Management Conference",0]
["Departmental Senior Executive Service Candidate Development Program (SES CDP)",3954.2136300000002]
["Designing Knowledge Mangement Solutions (UNIVERSITY OF NEW MEXICO Course OLIT 507)",739.38378150000005]
["Designing Knowledge Mangement Solutions (UNM Course OLIT 507)",739.38378150000005]
["Desk Top Publishing",284.3783775]
["DEU",0]
["Developing Customer-Focused Organizations",3981.2972849999996]
["Developing High Performing Teams",4322.5513380000002]
["Developing IDC Proposals & CAPs for State, Local, & Tribal Under 2CFR225 (A-87)",764.05489999999998]
["Developing Nonprofit IDC Rate Proposals Under 2 CFR Part 230 (A-122)",764.05489999999998]
["Developing University F&A Rate Proposals Under 2 CFR Part 220 (A-21)",764.05489999999998]
["Developing Your Emotional Intelligence",227.502702]
["Diversity Analysis",0]
["Diversity Awareness Training",0]
["Diversity Training",0]
["DoD Fiscal Law Online Refresher",407.01990000000001]
["DOE",0]
["DOE 435.1 Radioactive Waste Management Training",1359.32864445]
["DOE Complex Overview",0]
["DOE NEPA Process",406.25482500000004]
["DOE Office of the UnderSecretary of Energy Cyber Security Workshop",0]
["DOE Oversight of Financial Management",0]
["DOE Program Planning",0]
["DOE Project Management Review",0]
["DOE Project Management Workshop",0]
["DOE Real Estate Workshop - DOE",0]
["Douglas Dos and Don'ts: Using MSPB Case Law to Determine the Right Penalty ",312.81621524999997]
["Dynamics of Public Policy",5727.3805228499996]
["E. Wood Reading Dynamics WS",1423.0395000000001]
["Earned Value Management & Cost Estimating I",1423.0395000000001]
["Earned Value Management & Cost Estimating II",0]
["EC103 Water Conservation",0]
["EC104 Energy Efficiency",0]
["ECA 101DW: Consequence Assessment Overview",0]
["ECA 110: Consequence Assessment",0]
["ECA 201: Consequence Based Emergency Decision Making",0]
["ECC 101 DW: Categorization and Classification Overview",0]
["ECC120D   Integrating Emergencies into the Occurrence Reporting System",0]
["ECC130D  Emergency Classification Decision Making with Imperfect Information Workshop",733.69621395000001]
["Editing for Impact",381.06702584999999]
["EEO Counselor Annual Update - 2010",1137.51351]
["EEOC EXCEL Conference",1245.5772934499998]
["EEOC EXCEL Conference ",396.99221498999998]
["EEOC Technical Seminar",0]
["EERE Program Management Overview",113.751351]
["EFCOG Safety Analysis Fall Workshop",113.751351]
["EFCOG Safety Analysis Spring Workshop",540.31891725000003]
["EFCOG Safety Analysis Working Group",541.67310000000009]
["EFCOG Safety Analysis Workshop",270.83655000000005]
["EFCOG Work Planning and Control",0]
["EFE 101DW: Emergency Facilities and Equipment",682.508106]
["Effective Decision Making",0]
["Effective Delegating",2269.3394524499995]
["Effective Executive Speaking",753.85389999999995]
["Effective Supervision: HR Essentials",3497.8540432499999]
["Effective Writing (formerly: Leading with the Written Word)",1402.933329]
["EIRISA and or Pensions and Benefits Training ",433.33848]
["Electrical Principles",255.94053975]
["Electrical Safety Standards - NFPA 70E (UCSD 3099)",238.87783709999999]
["Electrical Safety Workshop",0]
["Electronic Records Management",0]
["Electrostatic Discharge",381.06702584999999]
["Elements of Statistics  STAT3350C",1300.0154399999999]
["Emergence of Nanotechnogy, Its Regulatory Framework and Impacts to the Environment",0]
["Emergency Response Self Study",3179.35026045]
["Emotional Competence: Working with Others for Results",0]
["EMP 170DW: Emergency Management System Overview",0]
["Employee and Labor Relations Symposium",1067.0960070000001]
["Employee Relations - Adverse and Performance Based Actions (USDA)",758.34233999999992]
["Employee Relations - Framing Charges (Wiley)",758.34233999999992]
["Employee Relations - Refresher on Performance and Discipline (Wiley)",2058.3577800000003]
["Employment & Labor Law Training ",455.005404]
["Employment Law From A to Z",0]
["EMS 101DW: Emergency Medical Support Introduction",0]
["EMS 200D: Emergency Medical Integration & Coordination",0]
["ENC 101DW: Emergency Notifications and Communications",753.85389999999995]
["Engaging Leadership",2112.5250900000001]
["Environ Compliance Bootcamp",758.34233999999992]
["Environment, Energy Security and Sustainability Symposium and Exhibition RCRA Training",2046.38680449]
["Environmental Compliance Bootcamp",433.33848]
["Environmental Law",407.30567081400005]
["Environmental Laws and Regulations & National Environmental Policy Act",379.17116999999996]
["Environmental Management Courses - Oklahoma State University",5727.3805228499996]
["Environmental Policy Issues",0]
["eOPF HR Specialist Training",0]
["eOPF System Adminstrator",0]
["EPA 130DW: Roles and Responsibilities of the EM Program Administrator",0]
["EPA102DW  Program Administration Overview",0]
["ePegasus Action and Lessons Learned activities",0]
["EPI 101DW: Emergency Public Information Overview",0]
["EPI 120D:  Joint Information Center (JIC) Overview",0]
["EPI110D  Spokesperson and the Media Training",0]
["ERA 101DW: Readiness Assurance Overview",0]
["ERA 131DW: Managing Corrective Actions Overview",0]
["ERA200D  Preparing for Evaluation of Your Emergency Management Program or Exercise",0]
["ERA400  Effective Techniques for Evaluating Your Emergency Management Program",0]
["Ergonomics/Body Mechanics Conference",0]
["ERO 102DW: Emergency Response Organization Overview",0]
["ERO110D  Roles and Responsibilities of Initial Responders: Enhancing Initial Response Effectiveness",0]
["ERO120D  Enhancing Initial Response Effectiveness: General Exercise",0]
["ERO121D  Enhancing Initial Response Effectiveness: Transportation Exercise",0]
["ERO122D  Enhancing Initial Response Effectiveness: Security Exercise",0]
["ERO123D  Enhancing Initial Response Effectiveness: Imperfect Information",0]
["ERO150D  Critical Thinking Skills",0]
["ERO170D  Explosive Effects and Countermeasures",0]
["ERO220D  Enhancing Response Effectiveness",0]
["ESF#12 Initial Training",0]
["ESF#12 Refresher Training",0]
["ESPC (Energy Savings Performance Contract) Comprehensive Workshop",0]
["ESPC Contracting and Negotiations",784.45690000000002]
["Essential Communications for the Audit Lifecycle",682.44690000000003]
["Essential Professional Skills for Grants Management",660.84118200000012]
["Essential Skills for Grants Professionals",660.84118200000012]
["Essential Skills for Grants Professionals ",455.005404]
["Essentials of Human Resources",356.01490000000001]
["Establishing a Mentoring Relationship",0]
["ETD 101DW: Introduction to Training and Drills",427.42189999999999]
["Ethical Decision-Making for Financial Managers",549.83389999999997]
["Ethics in Federal Contracting",600.83889999999997]
["Ethics in the Grants Environment",585.00694799999997]
["Ethics in the Grants Environment",0]
["ETR101DW  Emergency Termination and Recovery Overview",0]
["ETR400  Event Investigation and Analysis for Emergency Management",774.2559]
["Evaluating a Contractor's Performance",1141.4919]
["Evaluating and Presenting Analysis Results",1245.5772934499998]
["Evaluating and Presenting Analysis Results ",813.32215965000012]
["Evaluating Contractor Performance",764.05489999999998]
["Evaluating Federal Funds Management Capabilities of Recipients and Subrecipients",835.46190000000001]
["Evaluating Federal Funds Mgmt Capabilities of Recipients & Subrecipients(Online)",216.66924]
["Evaluator Training",1137.51351]
["Evolution of the Contemporary Congress",0]
["Ex Leadership Skills for Executives",284.3783775]
["Excel",341.254053]
["Excel",172.25204580000002]
["Excel (2007)",0]
["Excel 2003 Advance User",107.25127380000001]
["Excel 2007",269.75320379999999]
["Excel 2007",284.3783775]
["Excel Level 1",284.3783775]
["Excel Level 2",284.3783775]
["Excel Level 3",226.36518849000001]
["Excel Secrets",10725.12738]
["Excellence in Government and e-Government Fellows Program",1012.3870239]
["Executive - Legislative Branch Relations, 2 days",5056.2475519500003]
["Executive Communication Skills: Leading The Process of Change",4322.5513380000002]
["Executive DevelOFFICE OF PERSONNEL MANAGEMENTent Seminar Blended Course",6825.0810600000004]
["Executive DevelOFFICE OF PERSONNEL MANAGEMENTent Seminar: Leading Change",4322.5513380000002]
["Executive Development Seminar Blended Course",6825.0810600000004]
["Executive Development Seminar: Leading Change",4862.8702552499999]
["Executive Leadership Program",4862.8702552499999]
["Executive Leadership Program (ELP)",0]
["Executive Order 12871",7068.8339550000001]
["Executive Potential Program (EPP)",1586.83134645]
["Executive Survival Skills (SESDS)",340.11653949000004]
["Exempt Vs. Nonexempt: Understanding FLSA's Employee Classification Standards",938.44864574999997]
["Export Control ",938.44864574999997]
["Export Controls",0]
["EXR 101DW:Overview of the DOE/NNSA Emergency Exercise Program",0]
["EXR 102DW: Developing Exercise Scenarios",0]
["EXR 131DW: Fundamentals of Exercise Design",0]
["EXR 231: Exercise Design Lab",0]
["EXR111D  Drill and Exercise Train the Trainer Evaluator and Controller Course",49.984900000000003]
["Facilitation Skills e-Seminar",{"$error":"#VALUE!"}]
["Facilitation Skills for Business Analysts",1406.7178999999999]
["Facilitation Skills for Business Analysts - Virtual Classroom",407.30567081400005]
["Facilitation Techniques/Conflict Resolution",3924.4216094999997]
["Facilitative Leadership Seminar",1131.82594245]
["Facilities Construction Estimating",0]
["Facilities Information Management Systems",407.30567081400005]
["Facilities Information Management Systems",407.30567081400005]
["Facilities Information Mgmt System ",0]
["Faciliy Representative Workshop",0]
["Failure Modes and Effects Analysis",733.69621395000001]
["Fair Labor Standards Act Workshop (CLAS7100D)",733.69621395000001]
["Fair Labor Standards Act Workshop CLAS 7100D",0]
["Fall Festival (Benefits Training) - OPM",1733.35392]
["FAR Bootcamp",785.42599500000006]
["FAR31 Con Cost Principles",0]
["Fault Tree Analysis for System Assessment",641.64289999999994]
["Federal Accounting Fundamentals",1131.82594245]
["Federal Accounting II",815.05989999999997]
["Federal Acquisition Regulation (FAR) Overview",1018.07459145]
["Federal Appropriations Law",449.31783645000002]
["Federal Appropriations Law Update",866.06489999999997]
["Federal Assistance Law",904.32324045000007]
["Federal Assistance Law",807.63459209999996]
["Federal Budget Process",5727.3805228499996]
["Federal Budgetary Policies and Processes",0]
["Federal Budgeting Process - DOE OLC",0]
["Federal Budgeting Process in DOE",{"$error":"#VALUE!"}]
["Federal Contract Law",641.64289999999994]
["Federal Credit Accounting: An Introduction",1278.5651852400001]
["Federal Dispute Resolution Conference",1347.6826727999999]
["Federal Dispute Resolution Conference - LRP Publications",1402.933329]
["Federal Employee Benefits",1402.933329]
["Federal Employee Benefits - Grad School BENE7104D",958.76138700000001]
["Federal Employee Development - CDEV7007D",0]
["Federal Employment Law Training Group or Judge Advocate (JAG) School ",0]
["Federal Financial Assistance",616.30481971799998]
["Federal Financial Assistance",0]
["Federal Financial Assistance Cost Principles",0]
["Federal Financial Assistance Funds Management",318.20044586400007]
["Federal Financial Assistance Funds Management",784.45690000000002]
["Federal Financial Management Overview",784.45690000000002]
["Federal Financial Management Systems Requirements",784.45690000000002]
["Federal Financial Statement Audits",318.20044586400007]
["Federal Funds Management",444.171942]
["Federal Funds Management Financial Assistance Awards",600.83889999999997]
["Federal Grants Update 2012",449.31783645000002]
["Federal Human Resources Management (GS Online); Graduate School - PERS1730A",449.31783645000002]
["Federal Human Resources Management (GS Online); USDA Graduate School - PERS1730A",536.25636900000006]
["Federal Networks Conference",2275.02702]
["Federal Officer Training ($2,000 per)",1132.096779]
["Federal Pay Setting - Grad School STAF9002D",731.25868500000001]
["Federal Position Management - CLAS7012D",1070.0849000000001]
["Federal Real Property Lease Law",1110.4298550000001]
["Federal Real Property Lease Law - MCI ",1070.0849000000001]
["Federal Real Property Leasing",1077.9294690000002]
["Federal Real Property Leasing - MCI",3042.8486392499999]
["Federal Regulatory Policy",733.69621395000001]
["Federal Workforce Analysis and Planning",731.25868500000001]
["Federal Workforce Analysis and Planning (USDA)",692.64789999999994]
["FERS Benefits and Financial Literacy",1186.264089]
["FERS Benefits Application for HR - Grad School BENE8111D",0]
["FERS Retirement Seminar",682.508106]
["FERS Retirement Seminar",0]
["FIMS New User Training - DOE",807.09291900000017]
["Finance Class",764.05489999999998]
["Financial Administration of Federal Grants for Recipients",835.46190000000001]
["Financial Administration of Federal Grants for Recipients (Online)",2648.7814590000003]
["Financial Analysis",0]
["Financial Considerations for Business Decision Making",295.75351260000002]
["Financial Considerations in Business Decision Making",824.69729474999997]
["Financial Management",784.45690000000002]
["Financial Management of Business Operations in Government",749.77350000000001]
["Financial Management of Defense Working Capital Funds",0]
["Financial Planning & TSP",183.941351298]
["Financial Planning & TSP",0]
["Fire Extinguisher training ",0]
["Fire Prevention/Extinguisher Training",641.64289999999994]
["Fiscal Law in DoD",0]
["FIT-110 Foreign Access Central Tracking System Training",0]
["FIT-130DE Foreign Visits and Assignments Host Training",0]
["FIT-150 Exchange Visitor Program Training",0]
["FLC Annual Meeting",0]
["FOIA for Attorneys and Access Professionals",784.45690000000002]
["Forensic Auditing: Detection and Prevention of Fraud",753.85389999999995]
["From Strategic Plans to Tactical Execution",937.47190000000001]
["From Tactical to Strategic Thinking",1619.6025690000001]
["Fudamentals of Confined Space Program Mangement",1700.5826974500001]
["Fundamentals of Actinide Chemistry",1479.8509091999999]
["Fundamentals of Finance and Accounting for Administrative Assistants",1416.2043199500001]
["Fundamentals of Industrial Hygiene",774.2559]
["Fundamentals of Overhead and Other Indirect Cost Rates",0]
["Fundamentals of Program Management",563.12335475999987]
["Fundamentals of Program Management",1294.5987089999999]
["Fundamentals of Risk Management",3053.0862608399998]
["Fundamentals of Systems Engineering ",917.06989999999996]
["Fundamentals of Workforce Planning",0]
["General Contract Management Course",0]
["General Contract Management Training",0]
["General Technical Base",0]
["General Technical Base Course",221.81513444999999]
["Generation Shift: The Emerging Federal Workforce ",1402.933329]
["Getting Others to Work with You",0]
["Global Climate Change",1023.762159]
["Global Workforce (UNIVERSITY OF NEW MEXICO OLIT 593)",1023.762159]
["Global Workforce (UNM OLIT 593)",1077.9294690000002]
["Government Contract Finance and Accounting for Non-Financial Managers, Federal Publications Seminars",807.63459209999996]
["Government Contract Management",318.20044586400007]
["Government Purchase Card Training",1423.0395000000001]
["Government Specific I",1423.0395000000001]
["Government Specific II",1131.82594245]
["Governmental Accounting and Auditing Update",784.45690000000002]
["Governmental Accounting, Financial Reporting and Budgeting",392.73850000000004]
["Governmental Environment",606.95950000000005]
["Governmental Financial Management and Control",549.83389999999997]
["Governmentwide Commercial Purchase Card",753.85389999999995]
["Grammar Refresher",0]
["Grant Performance",855.86389999999994]
["Grants Administration for Federal Program Personnel",1876.8972914999999]
["GrassRoots Leadership: It's Your Ship",1422.4335606]
["GrassRoots Leadership: It's Your Ship Emplowering Your People to Share the Responsibility for Achievement",0]
["Green Building Design & Construction: The LEED Implementation Process",0]
["Green Building Operations & Maintenance: The LEED Implementation Process",216.66924]
["Greenhouse Gas Emissions/CAA Emerging Regulations",937.47190000000001]
["Group Facilitation",904.32324045000007]
["GRT 201 Grants Agreements Management",0]
["GSA Conference - Acquisition Training",0]
["GSA/FTS Networx Services Conference",0]
["GTB Addendum",597.19459275000008]
["Guiding Complex Problem-Solvin",0]
["Hardware Implementation Design and Production Controls (Pentagon S)",0]
["HAS 102DW: Hazards Survey and Hazards Assessment Overview",254.58635699999999]
["Haz Mat Course",487.50578999999999]
["Haz Mat Packaging and transportation",0]
["Hazard Analysis of Nuclear Explosive Operations",796.259457]
["Hazardous Materials Transportation",1511.267949]
["Hazards Analysis for SMEs",271.86572889000001]
["HAZWOPER 24 HR",449.31783645000002]
["HAZWOPER 40 HR",710.94594374999997]
["HAZWOPER 40-hour training",135.41827500000002]
["Hazwoper Refresher CLA",650.00771999999995]
["Health Physics Society Annual Meeting",853.13513250000005]
["Health Physics Society’s Annual Meeting",1423.0395000000001]
["HighTech Speaking",917.06989999999996]
["Hiring in the Federal Context",0]
["Historical Assessment Overview",1365.016212]
["Hoisting and Rigging",455.005404]
["Hour Construction Industry Outreach Training Program w/ Study Guide",0]
["How the Power System Works",449.31783645000002]
["How To Be a Highly Successful Team Leader (Two-Day) ",2269.3394524499995]
["How to Communicate with Diplomacy, Tact and Credibility",340.11653949000004]
["How to Communicate with Tact and Professionalism",486.4224438]
["How to Conduct an Internal Investigation",192.23978319]
["How to Get More Organized ",600.83889999999997]
["How to Prepare the Grant Application Budget",764.05489999999998]
["How to Write the Grant Application Narrative",78.488432189999997]
["HR - 8 HAZWOPER Refresher",216.66924]
["HR Forum",917.06989999999996]
["HR in the Federal Context",0]
["Human Factors",0]
["Human Performance Fundamentals",996.18883151759997]
["Human Performance Fundamentals",961.19891595000001]
["Human Resource Management",7530.3394361999999]
["Human Resource Mgmt Certification Level I ",0]
["Human Resource Mgmt Certification Level I (USDA Grad School)",861.26022899999998]
["HVAC Fundamentals",538.42306139999994]
["ICM 40-hour Mediation Certification Program",0]
["ICS 300/ICS 400",0]
["ICS 300: Intermediate Incident Command System (ICS) Training [Intermediate ICS for Expanding Incidents]",0]
["ICS 400: Advanced Incident command System (ICS) Training [Advanced ICS Command and General Staff - Complex]",0]
["ICS-100 Introduction to ICS",0]
["ICS-200 Basic ICS",0]
["ICS-300 Intermediate ICS",0]
["ICS-400 Advanced ICS",28.43783775]
["Identifying What the Customer Wants",407.30567081400005]
["Implementation and Management of Performance-Based Management Contracting ",1083.3462000000002]
["Implementation of NEPA - Duke University",427.42189999999999]
["Improper Payments",774.2559]
["Incentive Contracts",497.53757581199994]
["IND 100 Contract Prop Admin/Disp Fund",1077.9294690000002]
["IND 100 Contract Property Administration and Disposition Fundamentals",1077.9294690000002]
["IND 103 Contractor Property Systems Analysis Fundamentals",1077.9294690000002]
["IND 200 Contract Property Administration and Disposition",1298.9320937999998]
["Independent Government Cost Estimate",1298.9320937999998]
["Independent Government Cost Estimating",0]
["Industrial College of  Armed Forces",0]
["Industrial College of  Armed Forces (ICAF)",753.85389999999995]
["Influencing Skills",325.00385999999997]
["Influencing Without Authority",774.2559]
["Information Technology (IT) Acquisition",4248.6129598500002]
["Innovative Business Practices for the Public Sector",1023.762159]
["Institute of Nuclear Materials Management Conference",407.33817119999998]
["Integrated Safety Managment",904.32324045000007]
["Intellectual Property Law Summ",0]
["Intelligence/Counterintelligence",0]
["Interest Based Bargaining (000148)",1294.5987089999999]
["Interest Based Bargaining (000148)",1137.51351]
["Interest Groups, Lobbying and Campaign Finance",0]
["Intermediate Contract Property Administration and Disposition - DAU",0]
["Intermediate Contracting for Mission Support",807.63459209999996]
["Intermediate Contracting for Mission Support",211.252509]
["Intermediate Excel Skills",0]
["Intermediate Hiring Management (Quickhire) (000887)",961.19891595000001]
["Internal Consulting Skills for HR Professionals",784.45690000000002]
["Internal Control Over Financial Reporting",0]
["Internal Controls Training and Update",784.45690000000002]
["Internal Controls: Meeting Federal Requirements for Accountability",2087.33729085]
["Internal Controls: Meeting Federal Requirements for Accountability",1683.5199947999999]
["International Remuneration-An Overview of Global Rewards",0]
["Interpersonal Communications",164.30028469199999]
["Interpersonal Communications",295.75351260000002]
["Interpersonal Communications",622.92406499999993]
["Interpersonal Skills",1402.933329]
["Interpersonal Skills for Managers/Supervisors",937.47190000000001]
["Interpersonal Skills: Developing Effective Relationships",676.82053845000007]
["Interviewing for Selection and Assessment STAF8009D",0]
["Intro to DOE",1083.3462000000002]
["Intro to Linear Programming",187.68972915000001]
["Introduction to Bayesian Methods",49.984900000000003]
["Introduction to Business Analysis e-Seminar",855.84349800000007]
["Introduction to CERCLA",0]
["Introduction to Cost Estimating",938.44864574999997]
["Introduction to Employee DevelOFFICE OF PERSONNEL MANAGEMENTent",1006.6994563500001]
["Introduction to Employee DevelOFFICE OF PERSONNEL MANAGEMENTent",961.19891595000001]
["Introduction to Employee DevelOFFICE OF PERSONNEL MANAGEMENTent CDEV7001D",938.44864574999997]
["Introduction to Employee Development",1006.6994563500001]
["Introduction to Employee Development",961.19891595000001]
["Introduction to Employee Development CDEV7001D",811.42630380000003]
["Introduction to Environmental Laws & Regulations",1006.6994563500001]
["Introduction to Federal Accounting",824.69729474999997]
["Introduction to Federal Budgeting",1070.0849000000001]
["Introduction to Federal Contracting",187.68972915000001]
["Introduction to Federal EEO EEOP7004N",824.69729474999997]
["Introduction to Financial Management",866.06489999999997]
["Introduction to Grants and Cooperative Agreements for Federal Personnel",910.010808]
["Introduction to Grants and Cooperative Agreements for Federal Personnel",937.47190000000001]
["Introduction to Grants and Cooperative Agreements for Federal Personnel (Online)",0]
["Introduction to Greenhouse Gases Management",0]
["Introduction to HR for Team Leaders, Supervisors & Managers",407.30567081400005]
["Introduction to HR for Team Leaders, Supervisors and Managers",134.33492879999997]
["Introduction to Impact and Implementation - cyberFEDS® eLearning ",969.59484900000007]
["Introduction to NEPA",969.59484900000007]
["Introduction to NHPA, ARPA & NAGPRA Course",958.76138700000001]
["Introduction to PCB Management & Record Keeping Course",2269.3394524499995]
["Introduction to Quality Management",563.06918745000007]
["Introduction to R - Statistical Analysis",2155.5881014500001]
["Introduction to Radiation Safety",3130.8705179999997]
["Introduction to Software Engineering",790.57188945000007]
["Introduction to Strategic HC Mgmt",807.63459209999996]
["Introduction to Technical Writing",269.75320379999999]
["Introduction to Technical Writing Course",1077.9294690000002]
["Introduction to the CAA",319.587129]
["Introduction to the National Historic Preservation Act",0]
["Introduction to the Purchase Card Program",0]
["Introduction to the Purchase Card Program Refresher",508.51187281799997]
["Introduction to the Purchase Card Program Refresher",0]
["iPortal training",0]
["IS-700 NIMS: An Introduction",0]
["IS-800 NRF: An Introduction",0]
["ISC-121 Classified Matter Protection and Control",0]
["ISC-121DE Classified Matter Protection and Control",0]
["ISC-141 de OLC2",0]
["ISC-141DE Operations Security (OPSEC) Overview",0]
["ISC-202DV Legal Aspects of Inquiries",0]
["ISC-221 Classified Matter Protection and Control I",0]
["ISC-222 Special Program Security Officer (SPSO)",0]
["ISC-234 Technical Surveillance Countermeasures",0]
["ISC-241 Operations Security (OPSEC)",0]
["ISC-301 Conduct of Inquiries",0]
["ISC-321 Classified Matter Protection and Control II - Program Management",297.92020500000001]
["ISM Conference",113.751351]
["ISMS Conference",2273.8895064899998]
["ISO 14001 EMS Lead Auditor",1365.016212]
["ISO 9001 Internal Auditor",1222.8270232500001]
["ISO 9001: Lead Auditor Trg",1511.267949]
["ISO-14000 Lead Auditor Training",2004.19047]
["ISO17025:2005/ILAC:G13 Auditing Principles and Practices (ISO/IEC 17025:2005 & ILAC-G13:2007)",1467.9239]
["IT Project Risk Management",1467.9239]
["IT Project Risk Management- Virtual Classroom",0]
["JAG Contract Class ",0]
["JAG Course - Contracting",0]
["JAG Course - Employee and Labor Relations",1018.07459145]
["Job Analysis and KSA Examining (STAF8001D)",904.32324045000007]
["Jump Starting High-Performing Teams",641.64289999999994]
["Keeping the Audit on Track: Critical Skills for Audit Managers",641.64289999999994]
["Key to Audit Success: Focus on Objectives",341.254053]
["Knowledge Area 1 (KA1) Records Management Overview",341.254053]
["Knowledge Area 2 (KA2) Creating and Maintaining Agency Business Information ",341.254053]
["Knowledge Area 3 (KA3) Records Scheduling",1473.0799954499998]
["Labor & Employee Relations Conference",297.92020500000001]
["Labor Law & Labor Arbitration",284.3783775]
["Labor Law and Labor Arbitration",297.92020500000001]
["Labor Law and Labor Arbitration Conference - Labor Arbitration Institute",407.30567081400005]
["Labor Management Relations",3412.5405300000002]
["Labor Management Relations: Leading Change and Moving Forward",704.17502999999999]
["Land Use Planning",1188.7016179500001]
["Laser Safety Officer",0]
["LDI-400 Leadership Development Institute",3577.47998895]
["Leaders Growing Leaders",1219.0195000000001]
["Leadership & Professional Skills I",1219.0195000000001]
["Leadership & Professional Skills II",1467.9239]
["Leadership and Communication Skills for Business Analysts",1467.9239]
["Leadership and Communication Skills for Business Analysts - Virtual Classroom",1272.9317849999998]
["Leadership and Communication Skills for Project Management",1467.9239]
["Leadership and Communication Skills for Project Managers",1467.9239]
["Leadership and Communication Skills for Project Managers - Virtual Classroom",876.26589999999999]
["Leadership and Management Skills for Non-Managers",407.33817119999998]
["Leadership and Supervision",6370.075656]
["Leadership Assessment Program Level 1",5915.0702520000004]
["Leadership Assessment Program Level 2",4493.1783645000005]
["Leadership Competencies: Preparing for the Next Step",0]
["Leadership Development",5579.2329300000001]
["Leadership Development (OPM)",0]
["Leadership Development Institute",961.19891595000001]
["Leadership Essentials Graduate School MGMT7020D",961.19891595000001]
["Leadership Essentials USDA MGMT7020D",21125.250899999999]
["Leadership for a Democratic Society",3981.2972849999996]
["Leadership for Information Technology",3355.6648545000003]
["Leadership Foundations Seminar",5858.1945765]
["Leadership Potential Seminar",325.00385999999997]
["Leadership Skills",937.47190000000001]
["Leadership Skills and Techniques",2843.7837749999999]
["Leadership Skills for Dev. Resiliency in Yourself & Your Workforce",739.38378150000005]
["Leadership Skills for Non Sup",1478.7675630000001]
["Leadership Skills for Non Supervisors",4062.5482499999998]
["Leadership Skills for Non-Managers",4062.5482499999998]
["Leadership Skills for Non-Supervisors",4265.6756624999998]
["Leadership Skills for Non-Supervisors/Non-Managers",942.51119400000005]
["Leadership/Supervisory Courses",3179.35026045]
["Leading Across Generations",1406.7178999999999]
["Leading and Managing High-Performing Project Teams",1406.7178999999999]
["Leading and Managing High-Performing Project Teams - Virtual Classroom",2210.1887499300001]
["Leading Change in Organization",2269.3394524499995]
["Leading Complex Projects",1559.7329]
["Leading Cultural Transformation",2757.1160789999999]
["Leading Effective Meetings - AMA",1592.518914]
["Leading People",5289.4378214999997]
["Leading People",1586.83134645]
["Leading People (SESDS)",3577.47998895]
["Leading Strategically: From Vision to Performance",1018.07459145]
["Leading Teams and Groups TDEV82000D",937.47190000000001]
["Leading the Human Side of Change",3281.7264763500002]
["Leading Through Constructive Conflict",2648.7814590000003]
["Leading Virtual and Remote Teams - American Mgmt Assoc. (AMA)",2730.032424]
["Leading with Integrity",5727.3805228499996]
["Leading Work and Project Teams",0]
["Learn How to Do HR Queries in CHRIS ",0]
["Learn How to Do HR Queries in DOEInfo",1070.0849000000001]
["Lease Administration",1110.4298550000001]
["Lease Administration - MCI",0]
["LEED AP BD+C",1706.2702650000001]
["Legal Environment of Business (LAW 529)",0]
["LFR-102 Armorer Certification Course",0]
["LFR-104 Armorer Recertification",0]
["LFR-105 Armorer Certification Specialty Course",0]
["LFR-201 Live-Fire Range Operations",0]
["LFR-301 Performance Testing Controller/Evaluator",6045.0717960000002]
["Licensing Executive Society - PDS Series / 4 Modules",0]
["Life Cycle Cost Estimating",318.20044586400007]
["Life Cycle Cost Estimating",0]
["Lightning Phenomenology and Effects - Basic",1083.3462000000002]
["Local Government LAWS 7255 University of Colorado School of Law",0]
["LOG 304 Executive Acquisition Logistics Fundamentals",341.254053]
["LULAC Conference and Training",947.92792500000007]
["MACC  Plume Modeling",1406.7178999999999]
["Making Decisions Using Earned Value",1406.7178999999999]
["Making Decisions Using Earned Value - Virtual Classroom",1131.82594245]
["Management Analysis:  Advanced Applications (PGMT9000D)",1132.096779]
["Management Analysis:  Overview - Grad School PGMT7000D",1131.82594245]
["Management Analysis:  Overview (PGMT7000D)",1132.096779]
["Management Analysis:  Planning - Grad School PGMT7004D",406.25482500000004]
["Management Control",6028.8216029999994]
["Management DevelOFFICE OF PERSONNEL MANAGEMENTent Seminar (MDS)",6028.8216029999994]
["Management Development Seminar (MDS)",641.64289999999994]
["Managerial Cost Accounting",644.59098899999992]
["Managerial Cost Accounting Concepts and Standards",0]
["Managing a Project - DOE OLC",961.19891595000001]
["Managing a Special Emphasis Program",1006.6994563500001]
["Managing and Measuring Performance  ",961.19891595000001]
["Managing and Measuring Performance LABR7006D",753.85389999999995]
["Managing Change",{"$error":"#VALUE!"}]
["Managing Complex Projects",866.06489999999997]
["Managing Federal Grants and Cooperative Agreements for Recipients",947.67289999999991]
["Managing Federal Grants and Cooperative Agreements for Recipients (Online)",1586.83134645]
["Managing for Results",1586.83134645]
["Managing for Results (SESDS)",{"$error":"#VALUE!"}]
["Managing IT Projects",1794.3559]
["Managing IT Projects - Virtual Classroom",227.502702]
["Managing Multiple Priorities",1467.9239]
["Managing Multiple Projects",904.32324045000007]
["Managing Multiple Projects",1467.9239]
["Managing Multiple Projects - Virtual Classroom",216.66924]
["Managing Problem Behavior",0]
["Managing Process Improvement - DOE On-Line Training.",1467.9239]
["Managing Project Quality",1467.9239]
["Managing Project Quality - Virtual Classroom",1467.9239]
["Managing Scope, Schedule & Cost",1467.9239]
["Managing Scope, Schedule & Cost - Virtual Classroom",622.92406499999993]
["Managing Scope, Schedule and Cost Project Management",1406.7178999999999]
["Managing Stakeholder Expectations and Relationships",1406.7178999999999]
["Managing Stakeholder Expectations and Relationships - Virtual Classroom",216.66924]
["Managing the Federal Employee",1006.6994563500001]
["Managing Training for Results",1006.6994563500001]
["Managing Training for Results Graduate School Grad School",1006.6994563500001]
["Managing Training for Results USDA Grad School",753.85389999999995]
["Managing Virtual Teams and Telework",720.42522300000007]
["Market Research/Com Item Acquisition",937.47190000000001]
["Mastering Employee Performance Conversations",39520.469376000001]
["Masters in Project Management  - Boston University",1072.5127380000001]
["Mc Coy RCRA Refresher Course",0]
["MCA-101DC Introduction to Nuclear Materials Control and Accountability",0]
["MCA-103DC Transaction Data System",0]
["MCA-110 Basics of Nuclear Materials Accountability",0]
["MCA-111 Materials Accounting for Nuclear Safeguards",0]
["MCA-112 Nuclear Materials Management and Safeguards Systems I (NMMSS I)",0]
["MCA-114 Local Area Network Accounting System (LANMAS) Administrators Course",0]
["MCA-120 Basics of Nuclear Materials Control",0]
["MCA-130 Statistical Concepts in Material Control and Accountability",0]
["MCA-132 Sampling Plans for Material Control and Accountability",0]
["MCA-150 Material Control and Accountability Survey Procedures",0]
["MCA-153 Introduction to Performance Testing for Material Control and Accountability",0]
["MCA-212 Nuclear Materials Management and Safeguards Systems II (NMMSS II)",0]
["MCA-214 Local Area Network Accounting System (LANMAS) Users Course",0]
["MCA-224 Local Area Nuclear Material Accountability Software (LANMAS) Advanced User's Training",0]
["MCA-230 Statistical Concepts in Safeguards",0]
["MCA-241 Nondestructive Assay (NDA) Techniques for Safeguards Practitioners",0]
["MCA-243 Nondestructive Assay (NDA) of Special Nuclear Materials Holdup",0]
["MCA-244 Plutonium Calorimetric Assay Training",0]
["MCA-246 Calorimeter Operator Training School",0]
["MCA-248 Waste and Residue Nondestructive Assay (NDA) Measurements",0]
["MCA-260 Physical Inventories for Material Control and Accountability",0]
["MCA-342 Advanced Neutron Nondestructive Assay (NDA) Techniques",0]
["MCA-343 Gamma-Ray Spectroscopy for Nuclear Materials Accounting",2112.5250900000001]
["McCoy RCRA",2491.6962599999997]
["MCNP Software Users Course",0]
["MDI-300 Management Development Institute",1727.9371890000002]
["Measuring Program/Project Performance",568.756755]
["Mechanical Engineering PE Refresher Review Course",0]
["Mechanics of Communicating Effectively - DOE OLC",1131.82594245]
["Mediating Employee Disputes PMGT7003D",173.33539199999998]
["Meeting of the Minds, Washington State Labor & Industries and Labor Conference",713.04989999999998]
["Micro-Purchase Procedures",108.33462]
["Microsoft Project 2007",590.63789999999995]
["Microsoft Project 2007: Level 1",590.63789999999995]
["Microsoft Project 2007: Level 2",590.63789999999995]
["Microsoft Project 2010: Level 1",590.63789999999995]
["Microsoft Project 2010: Level 2",0]
["Mid Career Retirement Planning Seminar",406.62316270799994]
["Mid Career Retirement Planning Seminar",1406.7178999999999]
["Mission Driven Project Management: From Strategy to Action",0]
["Mission Focused Contracting",1944.6064290000002]
["Mission Focused Contracting",1109.0756722500003]
["Mission Strategy Execution",861.26022899999998]
["Mistake Free Grammar",0]
["MIT-111 Basic Instructor Training",0]
["MIT-119DB Introduction to Job Analysis",0]
["MIT-120 Job Analysis",0]
["MIT-200 Supervisor Development Program",0]
["MIT-209DE Introduction to Instructional Systems Design",0]
["MIT-210 Curriculum Development Training",625.63243049999994]
["Mixed Waste Short Course",764.05489999999998]
["Monitoring Grants and Cooperative Agreements for Federal Personnel",904.32324045000007]
["Monitoring Grants and Cooperative Agreements for Federal Personnel",835.46190000000001]
["Monitoring Grants and Cooperative Agreements for Federal Personnel (Online)",284.3783775]
["MS Access",172.25204580000002]
["MS Access (2007)",284.3783775]
["MS Access Level 1",284.3783775]
["MS Access Level 2",284.3783775]
["MS Access Level 3",108.33462]
["MS Project",1300.0154399999999]
["Nanotechnology and Potential Impacts",341.254053]
["NARA Vital Records",0]
["NARAC101  NARAC Dispersion Modeling",0]
["NARAC102  NARAC Web",682.508106]
["National Board of Boiler and Pressure Vessel Inspector Course",1250.1273474900004]
["National Elecectric Code",1251.2648609999999]
["National Electric Code",0]
["National Security Studies Programs",0]
["National Security Studies Programs (NSSP)",0]
["National War College",0]
["National War College (NWC)",1240.4313990000001]
["National Workers' Compensation and Disability Conference",216.66924]
["Natural Resource Awareness",227.502702]
["Navigating the Political Landscape",540.31891725000003]
["Navy Capitol Hill Workshop, 4 days",227.502702]
["NCMA Nuts, Bolts & Beyond",1023.762159]
["NCMA World Congress Conference",2112.5250900000001]
["Negotiating Labor Agreements - MIT Sloan",0]
["Negotiation and Mediation/Conflict Resolution",753.85389999999995]
["Negotiation Skills",407.30567081400005]
["Negotiation Strategies & Techniques",790.57188945000007]
["Negotiation Strategies & Techniques",406.25482500000004]
["NEPA Requirements Awareness",406.25482500000004]
["NEPA:  Assessing Cumulative Impacts",216.66924]
["Neural Networks",3406.8529624499997]
["New Leader Program",3406.8529624499997]
["New Leader Program (NLP)",0]
["New Methods for Safety Analysis",85.31351325]
["New Mexico Conference on Aging",0]
["New Wardens Monitor Training",1012.3870239]
["NFPA 70E/Arc Flash Electrical Safety",85.31351325]
["NM Aging Conference 2010",227.502702]
["NM EEO and Diversity Council",112.61383749000001]
["NM Leadership Council",325.00385999999997]
["NM Leadership Council",0]
["No FEAR Act",0]
["No Fear Act - On-stie for 53 management employees",341.254053]
["NOMAR Annual Conference and Training",585.00694799999997]
["Non-ACMP Ethics in the Grants Environment",731.25868500000001]
["NPMA Advanced Property Management",881.57297025000003]
["NPMA NES National Education Seminar",1023.762159]
["NQA -1 Lead Auditor Cert",1619.6025690000001]
["NQA-1 Lead Auditor Course",0]
["NSPD FEMA Training",1990.6486424999998]
["Nuclear Criticality Safety",1895.8558500000001]
["Nuclear Criticality Short Course",0]
["Nuclear Safety Issues for the Enduring Stockpile",0]
["Nuclear Weapon Safety Throughout All Design Phases",737.10875448000002]
["Nuclear Weapon Surety Overview-An Integrated Approach",0]
["Nuclear Weapons Orientation",0]
["Nuclear Weapons Risk Assessment Methodology",0]
["Nuclear Weapons Safety Assessment",0]
["Nuclear Weapons Surety Overview – An Integrated Approach",0]
["OER 103DW: Radiation and Pager/Pager-S",0]
["OER 105DW: Introduction to Radiation",0]
["OER122DW  Crisis / Critical Communications",0]
["OER430  Senior Energy Official - Practical Application Workshop",0]
["OER450  Executive Senior Energy Official Seminar Pilot",325.00385999999997]
["Operational Readiness Reviews",0]
["OPM Delegated Examining - Refresher Training",764.05489999999998]
["Optimizing Cost Share and Match Under Federal Grants",0]
["ORI101DW  Managing Offsite Response Interfaces",0]
["ORI200D  Managing Offsite Response Interfaces - Interactive Forum",42.250501800000002]
["OSHA 8-Hour Annual Update",901.34403840000004]
["OSHA Construction Safety Course",824.69729474999997]
["OSHA Standards for General Industry (OSHA 511)",866.67696000000001]
["OSHA Voluntary Protection Programs (VPP )",767.82161925000003]
["Out and Equal Conference",284.3783775]
["Outlook",284.3783775]
["Outlook Level 1",284.3783775]
["Outlook Level 2",284.3783775]
["Outlook Level 3",26.000308799999999]
["Overview of Current Wind Energy",427.42189999999999]
["Overview of Internal Control Guidance",216.66924]
["Overview of Metrics",1083.3462000000002]
["PAD 5003 - Research and Analytic Methods",1083.3462000000002]
["PAD 5006 - Leadership and Professional Ethics",1083.3462000000002]
["PAD 5220 - Managing People in Public and Non Profit Organizations",1083.3462000000002]
["PAD 5361 - Advanced Seminar and Research",1083.3462000000002]
["PAD 5710 - Public Sector Technology",1083.3462000000002]
["PAD 6600:003 Special Topics in Strategy and Policy",0]
["PAR 101DW: Protective Actions and Reentry Overview",0]
["PAR 101DW:Protective Actions and Reentry Overview",0]
["PAR 300D: Implementing Protective Actions & Reentry for Decision-Makers",0]
["PAR200D  Protective Actions & Reentry for Emergency Planners",142.18918875]
["Partner For Success",1131.82594245]
["Pay Setting (STAF9000D)",1131.82594245]
["PE Review Course",0]
["PER-099DE Personnel Security Awareness Briefing for Key Officials",0]
["PER-100DE Introduction to DOE Personnel Security",0]
["PER-101 Personnel Security Specialist Adjudication Training",0]
["PER-200 Advanced Personnel Security Training",0]
["PER-201 Introduction to Interviewing Techniques Seminar",0]
["PER-300 Administrative Review Hearing Procedures",0]
["PER-310DE Personnel Security Annual Refresher Training--FY2009",455.005404]
["Perf-Based Statement of Work",784.45690000000002]
["Performance Auditing",0]
["Performance Based Acquisition Preparing Work Statements",2929.09728825]
["Performance Budget Seminar (formerly Budgetary Performance Integration)",641.64289999999994]
["Performance Budgeting",807.09291900000017]
["Performance Measurement and Budgeting - BUDG8101D",407.30567081400005]
["Performance-Based Contracting",407.30567081400005]
["Performance-Based Management Contracting",1070.0849000000001]
["Performance-Based Service Acquisition",0]
["Personal Property and Nonproliferation Course",1077.9294690000002]
["Personal Property Management",187.68972915000001]
["Personnel Procedures for Clerks and Assistants",1083.3462000000002]
["Perspectives Bioenergy Conversion Technology Workshop",0]
["PFT-106DE Firearms Safety",0]
["PFT-110 Basic Security Officer Training",0]
["PFT-202 Survey of Protective Forces",0]
["PFT-215 Basic Security Police Officer Training",0]
["PFT-310 Security Police Officer III Certification",0]
["PFT-320 Precision Rifle/Forward Observer Team",0]
["PFT-320A Fieldcraft",0]
["PFT-321 Precision Rifle/Forward Observer Team Instructor Certificate",0]
["PFT-330 Engagement Simulation Systems Instructor Certification",0]
["PFT-370 Opposition Force",0]
["PFT-401 Firearms Instructor Certification",0]
["PFT-401A Advanced Firearms Instructor Certification",0]
["PFT-402 Advanced Weapons Systems Instructor Certification",0]
["PFT-403 Intermediate Force Instructor Certification",0]
["PFT-405 Basic Tactical Entry",0]
["PFT-406 Basic Tactical entry Instructor Certification",0]
["PFT-407 Security Police Officer III Instructor Certification",0]
["PFT-408 Ground Control Instructor Certification",0]
["PFT-460 Tactical Leadership",0]
["PFT-501 Live Fire Shoot House Instructor Certification",0]
["PHY-100DB  Introduction to Physical Protection Systems",0]
["PHY-100DB Intro to Physical Protection Systems",0]
["PHY-120 Intermediate Physical Security Systems",0]
["PHY-128DB Introduction to Basic Survey",0]
["PHY-128DE Introduction to Basic Survey",0]
["PHY-130 Basic Survey",0]
["PHY-130 Basic Survey, Module 10, Survey Assessment Training",0]
["PHY-202 Survey of Physical Security Systems",0]
["PHY-210DE Facility Survey Officer Orientation",0]
["PHY-230 Facility Survey Team Leader",2269.3394524499995]
["Planning and Managing Organizational Change",318.20044586400007]
["Planning for Performance-Based Management Contracting",506.19351195000002]
["Planning for Retirement",295.75351260000002]
["Platform Skills - More than Just Public Speaking",0]
["Platform Skills – More than Just Public Speaking",1067.0960070000001]
["PLC-II HANDS-ON TROUBLESHOOTING",1402.933329]
["PLC-III HANDS-ON APPLICATIONS",2843.7837749999999]
["PMP Boot Camp",2843.7837749999999]
["PMP Bootcamp",2843.7837749999999]
["PMP Bootcamp and PMP Test",2039.1799000000001]
["PMP® Exam Express: Certification Preparation",1131.82594245]
["Position Classification:  Advanced  CLAS9000D",2312.9441369999995]
["Position Classification: An Introduction (USDA)",2326.2151279499999]
["Position Classification: Basic",2275.02702]
["Position Classification: Basic ",1131.82594245]
["Position Management:  Techniques to Improve Organizational Efficiency - Graduate School Course - CLAS7010D",1131.82594245]
["Position Management:  Techniques to Improve Organizational Efficiency - USDA Course - CLAS7010D",733.69621395000001]
["Position Management: Techniques to Improve Organizational Efficiency",733.69621395000001]
["Position Management:Techniques to Improve Organization Efficiency (CLAS7010D)",62.834079600000003]
["Power Point 2002 Level I",0]
["Power Point 2003 Adv User",0]
["Power Point 2003 Beginning",3031.4735041500003]
["Power Thinking: The Strategies of Outstanding Leaders",284.3783775]
["Powerpoint",284.3783775]
["Powerpoint Level 1",284.3783775]
["Powerpoint Level 2",284.3783775]
["Powerpoint Level 3",1423.0395000000001]
["PowerSpeaking",784.45690000000002]
["PPBE Workshop: Defense Planning, Programming, Budgeting and Execution",0]
["PPM-112DB On-the-Job Trainers (OJT)",0]
["PPM-151 Foreign Ownership, Control, or Influence",676.82053845000007]
["Practical Guide to the Davis-Bacon Act",955.51134839999997]
["Practical Statistical Sampling for Auditors ",318.20044586400007]
["Practical Time Management",641.64289999999994]
["Preparation and Analysis of the SF 133",1012.3870239]
["Preparing and Delivering Congressional Testimony, 2 days",641.64289999999994]
["Preparing Federal Financial Statements Using the U.S. Standard General Ledger",1467.9239]
["Preparing for the PMI Agile Certified Practitioner (PMI-ACP)® Exam",1467.9239]
["Preparing for the PMI Agile Certified Practitioner (PMI-ACP)® Exam-Virtual Class",641.64289999999994]
["Preparing High-Impact Audit Reports",506.19351195000002]
["Pre-Retirement for CSRS",514.58944500000007]
["Pre-Retirement Seminar",0]
["Presidential Management Fellows Orientation Registration",335.56648544999996]
["Preventing Violence in the Workplace",910.010808]
["Price Productivity Improvement - Lehigh University",216.12756690000001]
["Price-Anderson Amendments Act",1179.0782536554]
["Primavera 6.0 Planner/Schedule",1359.32864445]
["Primavera Basic Class 102",937.47190000000001]
["Principles of Analytics",1467.9239]
["Principles of Business Analysis",1467.9239]
["Principles of Business Analysis - Virtual Classroom",0]
["Principles of Environmental Restoration: Techniques for Streamlining RCRA (HSWA) and CERCLA Projects",824.69729474999997]
["Principles of Ergonomics (OSHA 2250)",1083.3462000000002]
["Principles of Finance",1402.933329]
["Principles of Industrial Ventilation",0]
["Privacy and Information Security",0]
["Privacy Awareness",0]
["Probabilistic Safety Analysis",0]
["Probabilistic Uncertainty Analysis",780.00926399999992]
["Problem Solving",2273.8895064899998]
["Process Hazard Analysis Leadership Training",1473.0799954499998]
["Processing Personnel Actions",1406.7178999999999]
["Procurement for Project Managers",1406.7178999999999]
["Procurement for Project Managers - Virtual Classroom",764.05489999999998]
["Procuring Goods and Services Under Federal Grants",0]
["Professional Assertiveness COURSE COMM0171 ",0]
["Professional Business Writing",406.62316270799994]
["Professional Business Writing",514.58944500000007]
["Professional Communication",1525.0495000000001]
["Professional Government Supervisor Program",957.87389999999994]
["Program and Budget Analysis Using Microsoft Excel",1023.762159]
["Program Evaluation (UNIVERSITY OF NEW MEXICO Course OLIT 508)",1023.762159]
["Program Evaluation (UNM Course OLIT 508)",0]
["Program Management Overview Real Property Asset Management",0]
["Program Management Workshop ",682.508106]
["Programming MS Access with Visual Basic for Applications",108.33462]
["Project 2007",1406.7178999999999]
["Project Cost Estimating",1406.7178999999999]
["Project Cost Estimating - Virtual Classroom",407.30567081400005]
["Project Execution and Operational Readiness Reviews",407.30567081400005]
["Project Leadership/Supervision",1365.016212]
["Project Leadership: A Practical Guide to Communication, Influence and Collaboration",1406.7178999999999]
["Project Management Essentials for Team Members",1406.7178999999999]
["Project Management Essentials for Team Members - Virtual Classroom",1479.8509091999999]
["Project Management for Administrative Assistants",0]
["Project Management for Non-Project Managers Simulation  PROJ001A-DOE OLC",1131.82594245]
["Project Management for Trainers",1423.0395000000001]
["Project Management I",1423.0395000000001]
["Project Management II",407.30567081400005]
["Project Management Overview Real Property Asset Mgmt",3981.2972849999996]
["Project Management Principles",1467.9239]
["Project Management Principles - Virtual Classroom",1530.15]
["Project Management Principles Online",915.42753899999991]
["Project Management Professional",969.59484900000007]
["Project Management Professions (PMP)",1794.3559]
["Project Management Simulation",1794.3559]
["Project Management Simulation - Virtual Classroom",1467.9239]
["Project Management Skills for Business Analysts",1467.9239]
["Project Management Skills for Business Analysts - Virtual Classroom",1307.414694546]
["Project Management Systems & Practices in DOE",318.20044586400007]
["Project Management Workshop",2193.7760550000003]
["Project Planning for Project Managers",1467.9239]
["Project Risk Management",1467.9239]
["Project Risk Management - Virtual Classroom",1109.0756722500003]
["Property Management",1083.3462000000002]
["Property Management for Custodial Officer",1251.2648609999999]
["PSU Traffic and Transportation Course",9037.5448369499991]
["Public Sector Leadership: Vision, Values and Vital Strategies",10725.12738]
["Public Sector Leadership: Vision, Values and Vital Strategies",406.25482500000004]
["Public Speaking",0]
["Purchase Card Training",84.175999740000009]
["Putting Your Best Foot Forward Training Seminar",164.30028469199999]
["Putting Your Best Foot Forward Training Seminar",301.44108015]
["Qualification Standards for GS Positions",1012.9286970000001]
["Qualifications Analysis - STAF7023D",910.010808]
["Quality Assurance for Radioactive Material Packaging",0]
["Quality Assurance Hands on Weapons Classes",260.49059378999999]
["Rad Worker I",904.32324045000007]
["Rad Worker II",2104.3999935000002]
["Radiation Safety Officer Course",1029.1788900000001]
["Radioactive Material Trasport Training",1027.0121976]
["Radiochemistry Course - Idaho State University",0]
["RAP 111: Decontamination Techniques",0]
["RAP 130DW: Data Processing Principles",0]
["RAP 150DW: Radiation Detection Monitoring",0]
["RAP 160DW: Security Procedures for RAP Responder",0]
["RAP 165DW: DOE/NNSA Asset Overview",0]
["RAP 170DW: Response Agency Network",0]
["RAP Team Emergency Response",0]
["RAP Team Quarterly Training",0]
["RAP112DW  Radiological Assistance Program: Health and Safety",0]
["RAP140DW  Principles of Navigation",0]
["RAP163DW  Explosive Threat Awareness",0]
["RAP166DW  Mission Planning",0]
["RAP168DW  DOE/NNSA Policy and Procedures",0]
["RAP169DW  Principles of Recordkeeping and Information Management",0]
["RAP171DW  Crime Scene Issues, Hazards, and Law Enforcement Interface",0]
["RAP180DW  Training Practices and Instructor Development",0]
["RAP190DW  Radiological Assistance Program (RAP) Overview",0]
["RAP430  RAPTER Training and Evaluation Exercise",0]
["RAP431  RoadRAPTER Pilot",45.500540400000006]
["Reading Methods - Software  ~$80.00",407.30567081400005]
["Real Property Asset Management",1245.8481299999999]
["Real Property Asset Management Training at WAPA",341.254053]
["Records  Scheduling KA3 ",341.254053]
["Records Management",341.254053]
["Records Schedule  Implementation KA4",752.92560900000001]
["REFRESHER - ISO17025:2005/ILAC:G13 Auditing Principles and Practices (ISO/IEC 17025:2005 & ILAC-G13:2007)",1018.07459145]
["Registered Environmental Manager",216.66924]
["Renovator Training",1467.9239]
["Requirements Management for Project Managers",1467.9239]
["Requirements Management for Project Managers - Virtual Classroom",2843.7837749999999]
["Resiliency Advantage",753.85389999999995]
["Resolving Conflict",733.69621395000001]
["Resolving Conflict",514.58944500000007]
["Retirement Planning",692.64789999999994]
["Retirement Planning for Federal Employees  (2-day)  CSRS",692.64789999999994]
["Retirement Planning for Federal Employees  (2-day)  FERS",815.05989999999997]
["Retirement Planning for Federal Employees (3-day)",0]
["Retirement Training",284.3783775]
["Risk Assessment",335.83732200000003]
["Root Cause Analysis",0]
["SAF-099DE General Technical Base Addendum",0]
["SAF-100DE Federal Employee Occupational Safety and Health (FEOSH) Orientation Program",0]
["SAF-101 General Technical Base",0]
["SAF-101E GTB eLearning",0]
["SAF-105   Safety Management Fundamentals",0]
["SAF-105 Overview of Safety Management",0]
["SAF-105 Safety Management Fundamentals",0]
["SAF-105 Technical Safety Manager Overview",0]
["SAF-107  Facility Representative Engineering",0]
["SAF-107 Applied Engineering Fundamentals",0]
["SAF-107 Facility Representative Engineering",0]
["SAF-111 Electrical Systems and Safety Awareness",0]
["SAF-115DE DOE Laser Safety",0]
["SAF-133V Human Performance Fundamentals",0]
["SAF-134V Evaluator Training",0]
["SAF-160 Nuclear Safety Fundamentals",0]
["SAF-220 Senior Technical Safety Manager Overview",0]
["SAF-221 Senior Technical Safety Manager Applications",0]
["SAF-230 Accident Investigation",2275.02702]
["SAF-230V Accident Investigation",0]
["SAF-233V Advanced Human Performance",0]
["SAF-237 Multi-Agency Radiation Survey and Assessment of Materials and Equipment",0]
["SAF-241V ORPS Report Writing",0]
["SAF-242V Unreviewed Safety Question",0]
["SAF-243 CAIRS Fundamentals",0]
["SAF-243V Managing Maintenance Error",0]
["SAF-244V CAIRS Record Keeping & Recording",0]
["SAF-245V ORPS Data Entry",0]
["SAF-250 Protective Force Safety Fundamentals",0]
["SAF-251 Advanced Protective Force Safety",0]
["SAF-251 Proforce Safety Applications",0]
["SAF-261V Conduct of Operations",0]
["SAF-265V Conduct of Maintenance",0]
["SAF-270 Safety System Oversight Duties and Responsibilities",0]
["SAF-271 Safety System Oversight Assessments",0]
["SAF-280 Integration of Safety into the Design Process",0]
["SAF-340V  Nuclear Executive Leadership Training",0]
["SAF-340V Nuclear Executive Leadership Training",0]
["SAF-380 DOE Oversight Awareness",0]
["SAF-381 DOE Oversight Implementation",0]
["SAF-382 Basics of Performance Measurement",0]
["SAF-383V Basics of Data Analysis",0]
["SAF-385 Assessment Techniques",0]
["SAF-385 DOE Oversight Assessment",0]
["SAF-601 Risk Management Overview",0]
["SAF-701 Safety Basis Overview",0]
["SAF-705 Safety Basis Document Preparation Basics",0]
["SAF-710 Safety Basis Document Preparation - Advanced (Doe-STD-3009)",0]
["SAF-715 Nuclear Safety Management",0]
["SAF-715 Nuclear Safety Management (10 CFR 830)",0]
["SAF-720 Hazard Identification",0]
["SAF-725 Hazard Categorization",0]
["SAF-730 Specific Hazards Analysis",0]
["SAF-735 Hazard Evaluation Techniques I",0]
["SAF-740 Hazard Evaluation Techniques II",0]
["SAF-743 Chemical Facility Safety Basis",0]
["SAF-745 Airborne Release Fractions & Respirable Fractions",0]
["SAF-750 Analytical Modeling Techniques Overview",0]
["SAF-755 MACCS2 Modeling Code",0]
["SAF-755 MELCOR Accident Consequence Code System 2 (MACCS2)",0]
["SAF-760 CFAST Modeling Code",0]
["SAF-765 ALOHA Modeling Code",0]
["SAF-766 ALOHA/EPIcode Modeling Code",0]
["SAF-770 MELCOR Modeling Code",0]
["SAF-775 EPIcode Modeling Code",0]
["SAF-776 GENII Modeling Code",0]
["SAF-780 Accident Analysis Techniques",0]
["SAF-783 Environmental Restoration, Deactivation & Decommissioning Safety Basis",0]
["SAF-785 Technical Safety Requirements Developer",0]
["SAF-790 Accelerator Facility Safety Basis",0]
["SAF-795 Packaging and Transportation Safety Basis",0]
["Safe Harbor Methodologies",568.756755]
["Safety and Health Professional Development Conference ",308.75366700000001]
["Safety Conference and Exposition",0]
["Safety Principles – Past Lessons and Future Challenges",785.42599500000006]
["Safety Professional Workshop",0]
["SAS-006.2 TAP Workshop",0]
["SAS-101DE Introduction to Safeguards and Security",0]
["SAS-110 Safeguards and Security Awareness Coordinators Training",1080.6378345000001]
["SCADA Fundamentals ",864.51026760000002]
["Scheduling and Cost Control",4248.6129598500002]
["Science and Technology Policy Issues",5727.3805228499996]
["Science, Technology, and Public Policy",407.30567081400005]
["Scope Management/Baseline Development",0]
["Security Refresher",0]
["Self Study DOE 5610.11",1365.016212]
["Seminar for Executives on Legislative Operations, 5 days",3185.037828]
["Seminar for New Managers Blended",5727.3805228499996]
["Seminar for New Managers: Leading People (SNM)",7223.2107885000005]
["Senior Executive Assessment Program",19825.23546]
["Senior Executive Fellows Program",1586.83134645]
["Senior Executive Service DevelOFFICE OF PERSONNEL MANAGEMENTent Seminars",1586.83134645]
["Senior Executive Service Development Seminars",178.75212299999998]
["Service Comutation Dates (USDA Web-based)",713.04989999999998]
["Service Contract Act Overview",966.88648350000005]
["SES Briefings",4532.9913373500003]
["SES Leadership Horizons Series: ",9037.5448369499991]
["SES Leadership Horizons Series: A Cosmic Experience for Executives",10725.12738]
["SES Leadership Horizons Series: A Cosmic Experience for Executives",3975.6097174500001]
["SES Leadership Horizons Series: Executive Equilibrium",3975.6097174500001]
["SES Leadership Horizons Series: The Constitution and Contemporary Public Sector Leadership",5403.1891725000005]
["SES Leadership Horizons Series: The Executive Zenith",4532.9913373500003]
["SES Leadership Horizons Series: Women and Leadership",541.67310000000009]
["Sexual Harassment Training",655.42445100000009]
["SGL Accounts",0]
["Shaping Smart Business Arrangements",1077.9294690000002]
["Shaping Smart Business Arrangements",1049.6829]
["Simplified Acquisition Procedures",774.2559]
["Simplified Acquisition Refresher",1259.2274555700001]
["Six Sigma Black Belt Training",523.25621460000002]
["Six Sigma Green Belt Training",739.38378150000005]
["Six Sigma Yellow Belt Training",0]
["Skill Soft Courses",2275.02702]
["SMS/Aviation Safety Program Management",0]
["SNL Reliability Methodology",2275.02702]
["Social Media For Governement",0]
["Social Security Seminar",295.75351260000002]
["Social Styles",650.00771999999995]
["Society of American Indian Government Employees Conference",1560.0185279999998]
["Socioeconomic Impact Analysis Under NEPA",1706.2702650000001]
["Software Quality Engineering ",1070.0849000000001]
["Source Selection",1131.82594245]
["Source Selection",407.30567081400005]
["Source Selection at DOE",1525.0495000000001]
["SpeakingUp:Presenting to Executives",216.66924]
["Specialty training (Stress, Nutrition, others)",1751.7708054]
["SR-25 SWS Operator Course",0]
["SSO/FR Conference",0]
["STARS IDS-Discoverer View",0]
["STARS IDW",641.64289999999994]
["Statements of Federal Financial Accounting Standards: SFFAS",650.00771999999995]
["Statistics (intermediate)",2929.09728825]
["Strategic HR Management (formerly Strategic Management of Human Capital)",790.57188945000007]
["Strategic Human Capital Management",785.42599500000006]
["Strategic Human Capital Management - PGMT7015D",785.42599500000006]
["Strategic Human Capital Management (USDA)",3497.8540432499999]
["Strategic Leadership",407.30567081400005]
["Strategic Planning",937.47190000000001]
["Strategic Planning and Performance Measurement",1406.7178999999999]
["Strategic Portfolio and Resource Management",910.010808]
["Strategic Supply Management - Lehigh University",917.06989999999996]
["Strategic Workforce Planning for Senior Leaders",861.26022899999998]
["Stress Management",0]
["STRIPES  6.3 Training and Updates",0]
["STRIPES Acquisition Training",0]
["STRIPES Fin Assist Training",0]
["STRIPES Overview",0]
["STRIPES Requisitioner",1141.4919]
["Subawarding for Pass-Through Entities",1243.5019]
["Subawarding for Pass-Through Entities (Online)",904.32324045000007]
["Suitability Adjudication",2929.09728825]
["Supervising and Managing Teleworkers and Other Non-Traditional Work Arrangements",3810.6702584999998]
["Supervisory Leadership Seminar 1: Frontline Supervision Skills",3629.2097699999999]
["Supervisory Leadership Seminar II: Learning to Lead",3810.6702584999998]
["Supervisory Leadership Seminar II: Learning to Lead",1990.6486424999998]
["Supervisory Leadership Seminar: Week 2 Online",919.76092380000011]
["Surveillance Methodology",1049.9249697299999]
["Survey of Weapons DevelOFFICE OF PERSONNEL MANAGEMENTent",1049.9249697299999]
["Survey of Weapons Development",0]
["Survival Skills for Managers",216.66924]
["Sustainability/Pollution Prevention/EMS",2166.6924000000004]
["Sustaining Competitive Advantage",407.30567081400005]
["SW Conference on Disabilities",2502.5297219999998]
["Systems Engineering",0]
["Tactical Driving & Procedures",325.00385999999997]
["TAP Workshop",713.04989999999998]
["Target Thinking - Inside and Outside the Box",3867.5459340000002]
["Task and Delivery Order Contracting",325.00385999999997]
["Team Building and Team Leadership",449.31783645000002]
["Team building, teamwork, cooperation on teams, leading teams, high performing team players",373.75443899999999]
["Team Leadership Effectiveness",373.75443899999999]
["Tech Transfer - Annual Course",1070.0849000000001]
["Tech Transfer - Semiannual Course - Hosted in Jackson",1110.4298550000001]
["Techniques of Negotiating Federal Real Property Leases",0]
["Techniques of Negotiating Federal Real Property Leases - MCI",408.36735009]
["Technology Investment Agreements",408.36735009]
["Technology-Based Training [23015 at UNIVERSITY OF NEW MEXICO].",774.2559]
["Technology-Based Training [23015 at UNM].",641.64289999999994]
["Terminating Contracts",216.66924]
["The Antideficiency Act",5056.2475519500003]
["The Art of International Negotiations",4532.9913373500003]
["The Aspen Institute Executive Seminar",341.254053]
["The Aspen Institute Leading Change in Government Seminar",1228.5145908]
["The Business of Writing: A Step by Step Approach to Writing at Work (DOI)",226.36518849000001]
["The CMII Model",340.11653949000004]
["The E-mail and Business Writing Workshop",641.64289999999994]
["THE ESSENTIALS OF COMMUNICATING WITH DIPLOMACY AND PROFESSIONALISM",845.66289999999992]
["The Federal Budget Process",427.42189999999999]
["The Internal Audit Activity's Role in Governance, Risk and Control",641.64289999999994]
["The Legislative Process: Working with Congress",1131.82594245]
["The Prompt Payment Act and Voucher Examination",2648.7814590000003]
["The Service Contract Act",1023.762159]
["The Voice of Leadership:  How Leaders Inspire, Influence & Achieve Results - AMA",1023.762159]
["Theory and Practice of Distance Learning (UNIVERSITY OF NEW MEXICO Course OLIT 535)",1365.016212]
["Theory and Practice of Distance Learning (UNM Course OLIT 535)",0]
["Think on Your Feet",340.11653949000004]
["Threats and Vulnerabilities:  Challenges to Nuclear Weapon Safety",2269.3394524499995]
["TIME MANAGEMENT WORKSHOP",2377.9449090000003]
["Train the Trainer",2496.8421544500002]
["Training for Trainers",0]
["Training the Trainer ",0]
["Transitioning into a Project Management Role  - DOE OLC",0]
["TRF-100 Tactical Response Force 1",0]
["TRF-100D Tactical Response Force 1 Prerequisite",0]
["TRF-200 Tactical Response Force 2",0]
["TRF-410 Tactical Response Force 1 Instructor Certification",0]
["TRF-420 Tactical Response Force 2 Instructor Certification",595.84041000000002]
["Troubleshooting and Closing the Project  - DOE OLC",56.8756755]
["TSP",774.2559]
["TSP Pre-Separation Seminar",0]
["Types of Contracts",407.33817119999998]
["Types of Contracts",641.64289999999994]
["Types of Contracts",0]
["U.S. Standard General Ledger:  Practical Applications",785.42599500000006]
["Understanding Career Options",764.05489999999998]
["Understanding National Policy Requirements",807.63459209999996]
["Understanding National Policy Requirements Affecting Grants",0]
["Understanding National Policy Requirements Affecting Grants",3179.35026045]
["Understanding Rights",287.08674300000001]
["Understanding the 360 Degree Leader",0]
["Understanding the Federal Hiring Process",409.61319822000002]
["Understanding Your Rights and Responsibilities as a Federal Employee",807.63459209999996]
["Understanding, Recognizing and Valuing Diversity",764.05489999999998]
["Uniform Administrative Requirements",835.46190000000001]
["Uniform Administrative Requirements: OMB Circular A-102 & 2 CFR Part 215",0]
["Uniform Administrative Requirements:OMB Circular A-102 & 2 CFR Part 215 (Online)",0]
["Unique Signal",455.005404]
["Unreviewed Safety Questions",1083.3462000000002]
["Update GAAP, GAAS",1083.3462000000002]
["URP 5501 Planning Issues and Processes",1083.3462000000002]
["URP 5510 Planning Methods I",1083.3462000000002]
["URP 5511 Planning Methods II",1083.3462000000002]
["URP 5520 Urban & Spatial Analysis",1083.3462000000002]
["URP 5530 Planning Law",1083.3462000000002]
["URP 6630 Planning Studio I",151.9949]
["URP 6632 City Design Policy",0]
["USACE Fiscal Law Online Refresher",733.69621395000001]
["Use Control Systems Overview",784.45690000000002]
["Using HR Flexibilities STAF8010D",0]
["Using Performance Metrics to Improve Program Effectiveness",0]
["Valuing and Leveraging Diversity",0]
["VAP-140 Vulnerability Assessment Fundamentals",0]
["VAP-240 ASSESS - ATLAS",0]
["VAP-240 ASSESS-ATLAS",0]
["VAP-315 Advanced Vulnerability Assessment Baseline Course",0]
["VAP-316 Vulnerability Assessments Baseline",0]
["VAP-320 VA Facility Characterization and VA Software Modeling",0]
["VAP-325 VA Explosives Effects Modeling",0]
["VAP-330 Chemical/Biological Weapons and Radiological Sabotage Vas",0]
["VAP-335 LSPTs, Exercises, and Protocol Documents",0]
["VAP-340 Tabletop Vas, JCATS, and Neutralization",3412.5405300000002]
["VAP-345 Integration of all VA tools, Processes, and Outputs",1467.9239]
["Various SANS Course",1467.9239]
["Verifying and Validating the Solution",0]
["Verifying and Validating the Solution - Virtual Classroom",0]
["Visio 2003",2843.7837749999999]
["Visio 2003 Beginners",920.84427000000005]
["Visual Basic",4151.9243114999999]
["Visual Studio",1586.83134645]
["Washington Executive Seminar",947.92792500000007]
["Washington Executive Seminar (SESDS)",947.92792500000007]
["Washington Self-Insurers Association Claims Management Training",947.92792500000007]
["Washington Self-Insurers Association Conference",1083.3462000000002]
["Washington Self-Insurers Association Legal Conference",216.66924]
["Waste Management Symposium",568.756755]
["Water and Energy Industries",568.756755]
["Web Design & DevelOFFICE OF PERSONNEL MANAGEMENTent",284.3783775]
["Web Design & Development",284.3783775]
["Windows Level 1",284.3783775]
["Windows Level 2",0]
["Windows Level 3",407.30567081400005]
["Winning Briefing and Presentation Skills",455.005404]
["Winning Briefing and Presentation Skills",195.00231599999998]
["Winning Briefing and Presentation Skills",3981.2972849999996]
["Winning Presentations Skills",341.254053]
["Women's Leadership Seminar",0]
["Word",0]
["Word 2003 Beginning",341.254053]
["Word 2003 Expert User",341.254053]
["Word Level 1",341.254053]
["Word Level 2",0]
["Word Level 3",733.69621395000001]
["Work For Others",733.69621395000001]
["Workers Compensation and Disability Retirement ",0]
["Workforce Analysis and Planning Workshop (PGMT7013D)",1057.8875642999999]
["Workforce Planning",0]
["WR-708 Survey of Nuclear Weapons",753.85389999999995]
["Writing ECQ Statements",774.2559]
["Writing Effective Individual Development Plans",746.39]
["Writing Performance Work Statements (PWS)",766.59]

{"sheet":"dropdown","index":1,"n_rows":284,"n_cols":19,"rows_kept":284,"cut":false,"hidden":true,"merged":[[8,15,9,15]]}
["updated 3/20/11",null,null,"updated 3/4/10",null,"updated 2/23/10",null,"updated 3/20/11",null,null,null,null,null,"updated 3/20/11",null,null,null,"Course","Cost"]
[null,null,null,"Professional Skills Courses",null,"TQP FAQS",null,"PMCDP",null,"ACMP",null,"Competencies (Comps)",null,"Section",null,"Priority",null,"Accountability for Federal Grants","$‎749.00"]
[null,"Introduction to Analytical Risk Management",null,null,null,null,null,null,null,null,null,null,null,null,null,null,null,"Accountability for Federal Grants (Online)","$‎819.00"]
["CIP100D","DOE/NNSA Asset Overview",null,"Acquisition Management for Technical Personnel",null,"Non-TQP participant",null,"Acquisition Managment for Technical Personnel",null,"Accountability for Federal Grants: Planning, Measuring and Reporting",null,"Accountability",null,"Section II. Mission Critical Training",null,1,null,"Accounting for Business Operations In Government","$‎769.00"]
["CIP101DW","Vehicle Bomb Search Methods",null,"Advanced Business Solutions for Contracting",null,"Aviation Manager",null,"Advanced Concepts in Project Management",null,"Advanced Cost Principles",null,"Acquisition Management",null,"Section III. Development Programs",null,2,null,"Acquisition I","$‎1,395.00"]
["CIP110DW","Weapons of Mass Destruction (WMD): Training",null,"Advanced Contract Administration",null,"Aviation Safety Officer",null,"Advanced Risk Management",null,"Advanced Property Management Seminar",null,"Budget Management",null,"Section IV. Competency Areas",null,3,null,"Acquisition of Commercial Items","$‎699.00"]
["CIP300DC","Weapons of Mass Destruction (WMD): Training Exercises",null,"Advanced Contracting for Mission Support",null,"Chemical Processing",null,"Capital Planning for DOE O 413.B Capital Asset Projects",null,"Appropriation Law for Financial Assistance",null,"Business Process Man/ Reengineering",null,"Section V. DOE Training",null,4,null,"Activity-Based Cost Management: Managing Costs And Performance","$‎769.00"]
["CIP400DC","Continuity of Operations Awareness",null,"Breaking the Code:  Understanding Project Management",null,"Civil/Structural Engineering",null,"Contract Officer Representative",null,"Audit of Federal Grants and Cooperative Agreements",null,"Computer Literacy",null,"Section VI. Other Needs Areas",null,"Training Priority",null,"Administration of Contractor-Held Property","$‎1,029.00"]
["COO101DW","Consequence Assessment Application",null,"Changing Dimensions in DOE",null,"Construction Management",null,"Cost & Schedule Estimation and Analysis",null,"CLC 003 Sealed Bidding",null,"Conflict Management",null,null,null,"Priority 1 - Training required by Federal, State, or Local law",null,"Administration of Cost-Reimbursement Contracts","$‎1,049.00"]
["ECA110","Consequence Based Emergency Decision Making",null,"Cost Principles Refresher",null,"Criticality Safety",null,"Effective Program and Project Communication",null,"CLC 004 Market Research",null,"Continual Learning",null,null,null,null,null,"Advanced COR/COTR Workshop","$‎1,049.00"]
["ECA201","Categorization and Classification Overview",null,"CSRS Retirement Preparation Seminar",null,"Deactivation and Decommissioning",null,"Environmental Laws and Regulations",null,"CLC 009 Service-Disabled Veteran-Owned Small Business Program",null,"Creativity and Innovation",null,null,null,"Priority 2 - Training required by Departmental Directives or other Government regulations or requirements",null,"Advanced Cost Principles","$‎589.00"]
["ECC101DW","Integrating Emergencies into the Occurrence Reporting System",null,"Diversity Awareness Training",null,"Electrical Systems and Safety Oversight",null,"Executive Communications",null,"CLC 015 Commercial Acquisitions",null,"Decisiveness",null,null,null,"Priority 3 - Training required by position-, organization-, or mission- specific requirements",null,"Advanced Federal Contract Law","$‎1,049.00"]
["ECC120D","Emergency Facilities and Equipment Overview",null,"DOE Complex Overview",null,"Emergency Management",null,"Facilitating Conflict Resolution",null,"CLC 020 Commercial Item Determination",null,"Desktop Software Applications",null,null,null,"Priority 4 - Training desired for personal growth and professional enhancement",null,"Advanced Leadership Skills and Techniques","$‎979.00"]
["EFE101DW","Introduction to DOE Emergency Management System",null,"DOE Program Planning",null,"Environmental Compliance",null,"Federal Budgeting Process in DOE",null,"CLC 022 Profit Policy Revisions",null,"Developing Others",null,null,null,null,null,"Advanced Simplified Acquisition Procedures","$‎1,049.00"]
["EMP170DW","Emergency Medical Support Introduction",null,"Facilities Information Management Systems",null,"Environmental Restoration",null,"Labor Management Relations",null,"CLC 023 Commercial Item Determination: Executive Overview",null,"Emotional Intelligence",null,null,null,null,null,"Agile Project Management for the Federal Environment","$‎1,439.00"]
["EMS101DW","Emergency Medical Integration & Coordination",null,"Federal Financial Assistance",null,"Facility Maintenance Management",null,"LEED for New Construction and Existing Buildings",null,"CLC 027 Buy American Act",null,"Entrepreneurship",null,null,null,null,null,"Agile Project Management for the Federal Environment- Virtual Classroom","$‎1,439.00"]
["EMS200D","Emergency Notifications and Communications",null,"Federal Financial Assistance Cost Principles",null,"Facility Representative",null,"Managing Contract Changes",null,"CLC 060 Time and Materials Contracts",null,"Executing Strategy",null,null,null,null,null,"Analytics Boot Camp","$‎1,529.00"]
["ENC101DW","Program Administration Overview",null,"Federal Financial Assistance Funds Management",null,"Fire Protection",null,"Negotiation Strategies & Techniques",null,"CLC 104 Analyzing Profit or Fee",null,"External Awareness",null,null,null,null,null,"Analytics Capstone","$‎1,759.00"]
["EPA102DW","Roles and Responsibilities of the EM Program Administrator",null,"FERS Retirement Seminar",null,"General Technical Base",null,"Performance-Based Management Contracting",null,"CLC 131 Commercial Item Pricing",null,"Financial Management",null,null,null,null,null,"Analyzing Program Performance Options in a Constrained Budget Environment","$‎769.00"]
["EPA130DW","Emergency Public Information Overview",null,"Financial Considerations for Business Decision Making",null,"Industrial Hygiene",null,"Planning for Safety in Project Management",null,"CON 100 Shaping Smart Business Arrangements",null,"Flexibility",null,null,null,null,null,"Anytime Coaching","$‎919.00"]
["EPI101DW","Spokesperson and the Media Training",null,"Financial Planning & TSP",null,"Instrumentation and Control",null,"Program Management and Portfolio Analysis ",null,"CON 110 Mission Support Planning",null,"Human Capital Management",null,null,null,null,null,"Applying for Federal Grants and Cooperative Agreements","$‎749.00"]
["EPI110D","Joint Information Center (JIC) Overview",null,"Fundamentals of Program Management",null,"Mechanical Systems",null,"Program Management Simulation ",null,"CON 111 Mission Planning Execution",null,"Influencing/Negotiating",null,null,null,null,null,"Applying for Federal Grants and Cooperative Agreements (Online)","$‎819.00"]
["EPI120D","EPI & Social Media Distance Tutorial",null,"General Contract Management Training",null,"NNSA Package Certification Engineer",null,"Project Execution and Readiness Reviews",null,"CON 112 Mission Performance Assessment",null,"Integrity and Honesty",null,null,null,null,null,"Appropriations Law for Business Operations in Government","$‎629.00"]
["EPI230DT","Readiness Assurance Overview",null,"Green Building Design & Construction: The LEED Implementation Process",null,"Nuclear Explosive Safety Study",null,"Project Leadership",null,"CON 120 Mission Focused Contracting",null,"Interpersonal Skills",null,null,null,null,null,"Appropriations Law for Federal Grants","$‎589.00"]
["ERA101DW","Managing Corrective Actions Overview",null,"Green Building Operations & Maintenance: The LEED Implementation Process",null,"Nuclear Safety Specialist",null,"Project Management Essentials",null,"CON 214 Business Decisions for Contracting",null,"IT Management",null,null,null,null,null,"Appropriations Law in the Defense Environment","$‎629.00"]
["ERA131DW","Preparing for Evaluation of Your Emergency Management Program or Exercise",null,"Intermediate Contracting for Mission Support",null,"Occupational Safety",null,"Project Management Systems & Practices in DOE",null,"CON 215 Intermediate Contracting for Mission Support",null,"Leveraging Diversity",null,null,null,null,null,"Appropriations Law Refresher and Update","$‎629.00"]
["ERA200D","Effective Techniques for Evaluating Your Emergency Management Program",null,"Interpersonal Communications",null,"Quality Assurance",null,"Project Risk Analysis & Management",null,"CON 216 Legal Considerations in Contracting",null,"Measuring Program/Project Performance",null,null,null,null,null,"Appropriations Law Seminar","$‎939.00"]
["ERA400","Emergency Response Organization Overview",null,"Introduction to HR for Team Leaders, Supervisors & Managers",null,"Radiation Protection",null,"Real Property Asset Management",null,"CON 217 Cost Analysis and Negotiation Techniques",null,"Oral Communication",null,null,null,null,null,"Army PPBES Workshop","$‎1,029.00"]
["ERO102DW","Roles and Responsibilities of Initial Responders: Enhancing Initial Response Effectiveness",null,"Introduction to the Purchase Card Program",null,"Safeguards and Security",null,"Scope Management Baseline Development",null,"CON 218 Advanced Contracting for Mission Support",null,"Partnering",null,null,null,null,null,"Assessing and Recovering Troubled Projects","$‎1,379.00"]
["ERO110D","Explosive Effects and Countermeasures",null,"Introduction to the Purchase Card Program Refresher",null,"Safeguards and Security General Technical Base Qualification Standard",null,"Strategic Planning",null,"CON 237 Simplified Acquisition Procedures (on-line)",null,"Political Savvy",null,null,null,null,null,"Assessing and Recovering Troubled Projects - Virtual Classroom","$‎1,379.00"]
["ERO170D","Enhancing Response Effectiveness",null,"Life Cycle Cost Estimating",null,"Safety Software Quality Assurance ",null,"Systems Engineering",null,"CON 353 Advanced Business Solutions for Mission Support",null,"Presentation and Briefing Skills",null,null,null,null,null,"Audit Boot Camp","$‎1,029.00"]
["ERO220D","Introduction to Training and Drills",null,"Mid Career Retirement Planning Seminar",null,"Senior Technical Safety Manager",null,"Value Management",null,"Contract Administration for M&O Contractors",null,"Problem Solving",null,null,null,null,null,"Audit Interviews: Skills for Success","$‎629.00"]
["ETD101DW","Emergency Termination and Recovery Overview",null,"Mission Focused Contracting",null,"Technical Program Manager",null,null,null,"Contract Administration for Technical Representatives",null,"Program Management",null,null,null,null,null,"Audit of Federal Grants and Cooperative Agreements","$‎749.00"]
["ETR101DW","Event Investigation and Analysis for Emergency Management",null,"Performance Based Acquisition Preparing Work Statements",null,"Technical Training",null,null,null,"Contract Property Management Seminar",null,"Project Management",null,null,null,null,null,"Audit of Federal Grants and Cooperative Agreements (Online)","$‎819.00"]
["ETR400","Overview of the DOE/NNSA Emergency Exercise Program",null,"Platform Skills – More than Just Public Speaking",null,"Transportation & Traffic Management",null,null,null,"Cooperative Agreements and Substantial Involvement",null,"Public Service Motivation",null,null,null,null,null,"Auditing Fundamentals in the Federal Environment","$‎629.00"]
["EXR101DW","Developing Exercise Scenarios",null,"Professional Business Writing",null,"Waste Management",null,null,null,"Cost Principles OMB Circulars A-21, A-87, A-122 and FAR 31.2",null,"Resilience",null,null,null,null,null,"Basic (Level I) Contracting Officer's Representative","$‎539.00"]
["EXR102DW","Developing Exercise Objectives",null,"Program Management Overview Real Property Asset Management",null,"Weapons Quality Assurance",null,null,null,"Demilitarization Course",null,"Safety Management",null,null,null,null,null,"Basics of Personal Property Management","$‎1,029.00"]
["EXR103DW","Drill and Exercise Train the Trainer Evaluator and Controller Course ",null,"Program Management Workshop ",null,null,null,null,null,"DOE TIA Training",null,"Strategic Thinking",null,null,null,null,null,"Becoming a Strategic Business Partner: Expanding Your Role to Deliver Results","$‎899.00"]
["EXR111","Fundamentals of Exercise Design",null,"Shaping Smart Business Arrangements",null,null,null,null,null,"Earned Value Management",null,"Stress Management",null,null,null,null,null,"Best Value Source Selection Using Tradeoffs","$‎699.00"]
["EXR131DW","Exercise Design Lab",null,"Survival Skills for Managers",null,null,null,null,null,"Essential Skills for Grants Professionals ",null,"Team Building",null,null,null,null,null,"Breakthrough Problem Solving","$‎919.00"]
["EXR231","Hazards Survey and Hazards Assessment Overview",null,"Types of Contracts",null,null,null,null,null,"Ethics in the Grants Environment",null,"Technical Credibility",null,null,null,null,null,"Briefing and Presentation Skills","$‎919.00"]
["HAS102DW","Intermediate Incident Command System (ICS) Training  (Restricted)",null,"Valuing and Leveraging Diversity",null,null,null,null,null,"Federal Assistance Law",null,"Technology Management",null,null,null,null,null,"Budget Analyst's Essential Guide to Formulation, Justification, and Execution","$‎769.00"]
["ICS300","Advanced Incident Command System (ICS) Training  (Restricted)",null,"Winning Briefing and Presentation Skills",null,null,null,null,null,"Federal Financial Assistance",null,"Using E-Mail Effectively",null,null,null,null,null,"Budget Estimating Using Microsoft Excel","$‎769.00"]
["ICS400","NARAC Dispersion Modeling",null,"Workforce Planning",null,null,null,null,null,"Federal Funds Management",null,"Vision",null,null,null,null,null,"Budget Execution","$‎769.00"]
["NARAC101","NARAC Web",null,null,null,null,null,null,null,"Financial Management",null,"Written Communications",null,null,null,null,null,"Budget Formulation","$‎769.00"]
["NARAC102","Radiation and Pager/Pager-S",null,null,null,null,null,null,null,"Government Purchase Card Training",null,null,null,null,null,null,null,"Budget Justification: Effective Preparation and Submission","$‎769.00"]
["OER103DW","Introduction to Radiation",null,null,null,null,null,null,null,"Grant Performance",null,null,null,null,null,null,null,"Budgeting and Accounting: Making the Connection","$‎629.00"]
["OER105DW","Crisis / Critical Communications",null,null,null,null,null,null,null,"GRT 201 Grants Agreements Management",null,null,null,null,null,null,null,"Building and Sustaining Teams","$‎919.00"]
["OER122DW","Senior Energy Official - Practical Application Workshop  (Restricted)",null,null,null,null,null,null,null,"Introduction to Grants and Cooperative Agreements for Federal Personnel",null,null,null,null,null,null,null,"Building Business Cases","$‎1,379.00"]
["OER430","Managing Offsite Response Interfaces",null,null,null,null,null,null,null,"Monitoring Grants and Cooperative Agreements for Federal Personnel",null,null,null,null,null,null,null,"Building Credibility to Support Your Customer","$‎899.00"]
["ORI101DW","Managing Offsite Response Interfaces - Interactive Forum",null,null,null,null,null,null,null,"Performance-Based Contracting",null,null,null,null,null,null,null,"Business Analysis and Information Technology","$‎1,020.00"]
["ORI200D","Protective Action and Reentry Overview",null,null,null,null,null,null,null,"Personal Property and Nonproliferation Course",null,null,null,null,null,null,null,"Business Management Skills","$‎595.00"]
["PAR101DW","Protective Actions & Reentry for Emergency Planners",null,null,null,null,null,null,null,"Planning for Performance-Based Management Contracting",null,null,null,null,null,null,null,"Business Management Systems for Grant Recipients","$‎749.00"]
["PAR200D","Implementing Protective Actions & Reentry for Decision-Makers",null,null,null,null,null,null,null,"Project Management Essentials",null,null,null,null,null,null,null,"Business Writing","$‎739.00"]
["PAR300D","Radiological Assistance Program: Health and Safety",null,null,null,null,null,null,null,"Property Management",null,null,null,null,null,null,null,"Capital Asset Planning and Justification Using OMB Criteria","$‎769.00"]
["RAP112DW","Assessment and Data Processing",null,null,null,null,null,null,null,"Understanding National Policy Requirements Affecting Grants",null,null,null,null,null,null,null,"CBAP Exam Preparation","$‎1,759.00"]
["RAP130DW","Principles of Navigation",null,null,null,null,null,null,null,"Uniform Administrative Requirements",null,null,null,null,null,null,null,"Certified Government Auditing Professional (CGAP) Preparatory Course","$‎839.00"]
["RAP140DW","Principles of Radiation",null,null,null,null,null,null,null,null,null,null,null,null,null,null,null,"Certified Internal Auditor (CIA) Preparatory Course 5-day","$‎1,499.00"]
["RAP150DW","Security Procedures for the RAP Responder",null,null,null,null,null,null,null,null,null,null,null,null,null,null,null,"Changes Under Government Contracts","$‎759.00"]
["RAP160DW","Explosive Threat Awareness",null,null,null,null,null,null,null,null,null,null,null,null,null,null,null,"Closeout of Grants for Federal Personnel","$‎749.00"]
["RAP163DW","Mission Planning",null,null,null,null,null,null,null,null,null,null,null,null,null,null,null,"Collaboration and Knowledge Sharing","$‎1,529.00"]
["RAP166DW","Principles of Recordkeeping and Information Management",null,null,null,null,null,null,null,null,null,null,null,null,null,null,null,"Communicating Strategically","$‎739.00"]
["RAP169DW","Response Agency Network",null,null,null,null,null,null,null,null,null,null,null,null,null,null,null,"CON 100: Shaping Smart Business Arrangements","$‎1,029.00"]
["RAP170DW","Crime Scene Issues, Hazards, and Law Enforcement Interface",null,null,null,null,null,null,null,null,null,null,null,null,null,null,null,"CON 110:  Mission Support Planning","$‎1,029.00"]
["RAP171DW","Training Practices and Instructor Development",null,null,null,null,null,null,null,null,null,null,null,null,null,null,null,"CON 111:  Mission Strategy Execution","$‎1,029.00"]
["RAP180DW","Radiological Assistance Program (RAP) Overview",null,null,null,null,null,null,null,null,null,null,null,null,null,null,null,"CON 112:  Mission Performance Assessment","$‎1,029.00"]
["RAP190DW","RAPTER Training and Evaluation Exercise  (Restricted)",null,null,null,null,null,null,null,null,null,null,null,null,null,null,null,"CON 214:  Business Decisions for Contracting","$‎1,049.00"]
["RAP430",null,null,null,null,null,null,null,null,null,null,null,null,null,null,null,null,"CON 215:  Intermediate Contracting for Mission Support","$‎1,979.00"]
[null,null,null,null,null,null,null,null,null,null,null,null,null,null,null,null,null,"CON 216:  Legal Considerations in Contracting","$‎1,049.00"]
[null,"Acquisition Management for Technical Personnel",null,null,null,null,null,null,null,null,null,null,null,null,null,null,null,"CON 217:  Cost Analysis and Negotiation Techniques","$‎1,049.00"]
[null,"Advanced Business Solutions for Contracting",null,null,null,null,null,null,null,null,null,null,null,null,null,null,null,"CON 218:  Advanced Contracting for Mission Support","$‎2,249.00"]
[null,"Advanced Contract Administration",null,null,null,null,null,null,null,null,null,null,null,null,null,null,null,"CON 243: Architect-Engineer Services Contracting","$‎1,049.00"]
[null,"Advanced Contracting for Mission Support",null,null,null,null,null,null,null,null,null,null,null,null,null,null,null,"CON 244:  Construction Contracting","$‎1,049.00"]
[null,"Breaking the Code:  Understanding Project Management",null,null,null,null,null,null,null,null,null,null,null,null,null,null,null,"CON 353:  Advanced Business Solutions for Mission Support","$‎2,249.00"]
[null,"Changing Dimensions in DOE",null,null,null,null,null,null,null,null,null,null,null,null,null,null,null,"Conducting the Internal Audit Engagement","$‎829.00"]
[null,"Cost Principles Refresher",null,null,null,null,null,null,null,null,null,null,null,null,null,null,null,"Construction Claims","$‎759.00"]
[null,"CSRS Retirement Preparation Seminar",null,null,null,null,null,null,null,null,null,null,null,null,null,null,null,"Contract Administration","$‎1,029.00"]
[null,"Diversity Awareness Training",null,null,null,null,null,null,null,null,null,null,null,null,null,null,null,"Contract Claims","$‎1,049.00"]
[null,"DOE Complex Overview",null,null,null,null,null,null,null,null,null,null,null,null,null,null,null,"Contract Closeout","$‎699.00"]
[null,"DOE Program Planning",null,null,null,null,null,null,null,null,null,null,null,null,null,null,null,"Contracting Officer's Representative Course","$‎1,029.00"]
[null,"Facilities Information Management Systems",null,null,null,null,null,null,null,null,null,null,null,null,null,null,null,"Contracting With Small Business Concerns","$‎759.00"]
[null,"Federal Financial Assistance",null,null,null,null,null,null,null,null,null,null,null,null,null,null,null,"Cooperative Agreements and Substantial Involvement","$‎589.00"]
[null,"Federal Financial Assistance Cost Principles",null,null,null,null,null,null,null,null,null,null,null,null,null,null,null,"COR/COTR Refresher","$‎539.00"]
[null,"Federal Financial Assistance Funds Management",null,null,null,null,null,null,null,null,null,null,null,null,null,null,null,"Cost and Price Analysis","$‎1,049.00"]
[null,"FERS Retirement Seminar",null,null,null,null,null,null,null,null,null,null,null,null,null,null,null,"Cost and Price Analysis of Lease Proposals","$‎1,049.00"]
[null,"Financial Considerations for Business Decision Making",null,null,null,null,null,null,null,null,null,null,null,null,null,null,null,"Cost Estimating for Technical Personnel","$‎759.00"]
[null,"Financial Planning & TSP",null,null,null,null,null,null,null,null,null,null,null,null,null,null,null,"Cost Principles: 2 CFR Part 220 (A-21), 225 (A-87), 230 (A-122), and FAR 31.2","$‎749.00"]
[null,"Fundamentals of Program Management",null,null,null,null,null,null,null,null,null,null,null,null,null,null,null,"Cost Principles:2 CFR Part 220 (A-21), 225 (A-87), 230 (A-122), and FAR (Online)","$‎849.00"]
[null,"General Contract Management Training",null,null,null,null,null,null,null,null,null,null,null,null,null,null,null,"Crafting High Quality Requirements - Virtual Classroom","$‎0.00"]
[null,"Green Building Design & Construction: The LEED Implementation Process",null,null,null,null,null,null,null,null,null,null,null,null,null,null,null,"Crafting High-Quality Requirements","$‎1,439.00"]
[null,"Green Building Operations & Maintenance: The LEED Implementation Process",null,null,null,null,null,null,null,null,null,null,null,null,null,null,null,"Creativity and Innovation","$‎739.00"]
[null,"Intermediate Contracting for Mission Support",null,null,null,null,null,null,null,null,null,null,null,null,null,null,null,"Critical Thinking for Problem Solving","$‎919.00"]
[null,"Interpersonal Communications",null,null,null,null,null,null,null,null,null,null,null,null,null,null,null,"Customer Service Skills and Techniques","$‎629.00"]
[null,"Introduction to HR for Team Leaders, Supervisors & Managers",null,null,null,null,null,null,null,null,null,null,null,null,null,null,null,"Data Analysis and Modeling Techniques","$‎1,449.00"]
[null,"Introduction to the Purchase Card Program",null,null,null,null,null,null,null,null,null,null,null,null,null,null,null,"Data Analysis for Financial Managers Using Microsoft Excel","$‎939.00"]
[null,"Introduction to the Purchase Card Program Refresher",null,null,null,null,null,null,null,null,null,null,null,null,null,null,null,"Data Collection Techniques","$‎1,449.00"]
[null,"Life Cycle Cost Estimating",null,null,null,null,null,null,null,null,null,null,null,null,null,null,null,"Decision Making","$‎969.00"]
[null,"Mid Career Retirement Planning Seminar",null,null,null,null,null,null,null,null,null,null,null,null,null,null,null,"Decision Support for Financial Managers","$‎769.00"]
[null,"Mission Focused Contracting",null,null,null,null,null,null,null,null,null,null,null,null,null,null,null,"Defense Acquisition Management: An Overview","$‎399.00"]
[null,"Performance Based Acquisition Preparing Work Statements",null,null,null,null,null,null,null,null,null,null,null,null,null,null,null,"Developing IDC Proposals & CAPs for State, Local, & Tribal Under 2CFR225 (A-87)","$‎749.00"]
[null,"Platform Skills – More than Just Public Speaking",null,null,null,null,null,null,null,null,null,null,null,null,null,null,null,"Developing Nonprofit IDC Rate Proposals Under 2 CFR Part 230 (A-122)","$‎749.00"]
[null,"Professional Business Writing",null,null,null,null,null,null,null,null,null,null,null,null,null,null,null,"Developing University F&A Rate Proposals Under 2 CFR Part 220 (A-21)","$‎749.00"]
[null,"Program Management Overview Real Property Asset Management",null,null,null,null,null,null,null,null,null,null,null,null,null,null,null,"DoD Fiscal Law Online Refresher","$‎399.00"]
[null,"Program Management Workshop ",null,null,null,null,null,null,null,null,null,null,null,null,null,null,null,"Earned Value Management & Cost Estimating I","$‎1,395.00"]
[null,"Shaping Smart Business Arrangements",null,null,null,null,null,null,null,null,null,null,null,null,null,null,null,"Earned Value Management & Cost Estimating II","$‎1,395.00"]
[null,"Survival Skills for Managers",null,null,null,null,null,null,null,null,null,null,null,null,null,null,null,"Effective Supervision: HR Essentials","$‎739.00"]
[null,"Types of Contracts",null,null,null,null,null,null,null,null,null,null,null,null,null,null,null,"Engaging Leadership","$‎739.00"]
[null,"Valuing and Leveraging Diversity",null,null,null,null,null,null,null,null,null,null,null,null,null,null,null,"Essential Communications for the Audit Lifecycle","$‎769.00"]
[null,"Winning Briefing and Presentation Skills",null,null,null,null,null,null,null,null,null,null,null,null,null,null,null,"Essential Professional Skills for Grants Management","$‎669.00"]
[null,"Workforce Planning",null,null,null,null,null,null,null,null,null,null,null,null,null,null,null,"Establishing a Mentoring Relationship","$‎349.00"]
[null,null,null,null,null,null,null,null,null,null,null,null,null,null,null,null,null,"Ethical Decision-Making for Financial Managers","$‎419.00"]
[null,null,null,null,null,null,null,null,null,null,null,null,null,null,null,null,null,"Ethics in Federal Contracting","$‎539.00"]
[null,"Acquisition Managment for Technical Personnel",null,null,null,null,null,null,null,null,null,null,null,null,null,null,null,"Ethics in the Grants Environment","$‎589.00"]
[null,"Advanced Concepts in Project Management",null,null,null,null,null,null,null,null,null,null,null,null,null,null,null,"Evaluating a Contractor's Performance","$‎759.00"]
[null,"Advanced Risk Management",null,null,null,null,null,null,null,null,null,null,null,null,null,null,null,"Evaluating and Presenting Analysis Results","$‎1,119.00"]
[null,"Capital Planning for DOE O 413.B Capital Asset Projects",null,null,null,null,null,null,null,null,null,null,null,null,null,null,null,"Evaluating Federal Funds Management Capabilities of Recipients and Subrecipients","$‎749.00"]
[null,"Contract Officer Representative",null,null,null,null,null,null,null,null,null,null,null,null,null,null,null,"Evaluating Federal Funds Mgmt Capabilities of Recipients & Subrecipients(Online)","$‎819.00"]
[null,"Cost & Schedule Estimation and Analysis",null,null,null,null,null,null,null,null,null,null,null,null,null,null,null,"Facilitation Skills e-Seminar","$‎49.00"]
[null,"Effective Program and Project Communication",null,null,null,null,null,null,null,null,null,null,null,null,null,null,null,"Facilitation Skills for Business Analysts","$‎1,379.00"]
[null,"Environmental Laws and Regulations",null,null,null,null,null,null,null,null,null,null,null,null,null,null,null,"Facilitation Skills for Business Analysts - Virtual Classroom","$‎1,379.00"]
[null,"Executive Communications",null,null,null,null,null,null,null,null,null,null,null,null,null,null,null,"Federal Accounting Fundamentals","$‎629.00"]
[null,"Facilitating Conflict Resolution",null,null,null,null,null,null,null,null,null,null,null,null,null,null,null,"Federal Acquisition Regulation (FAR) Overview","$‎799.00"]
[null,"Federal Budgeting Process in DOE",null,null,null,null,null,null,null,null,null,null,null,null,null,null,null,"Federal Assistance Law","$‎849.00"]
[null,"Labor Management Relations",null,null,null,null,null,null,null,null,null,null,null,null,null,null,null,"Federal Contract Law","$‎1,029.00"]
[null,"LEED for New Construction and Existing Buildings",null,null,null,null,null,null,null,null,null,null,null,null,null,null,null,"Federal Credit Accounting: An Introduction","$‎629.00"]
[null,"Managing Contract Changes",null,null,null,null,null,null,null,null,null,null,null,null,null,null,null,"Federal Financial Management Overview","$‎769.00"]
[null,"Negotiation Strategies & Techniques",null,null,null,null,null,null,null,null,null,null,null,null,null,null,null,"Federal Financial Management Systems Requirements","$‎769.00"]
[null,"Performance-Based Management Contracting",null,null,null,null,null,null,null,null,null,null,null,null,null,null,null,"Federal Financial Statement Audits","$‎769.00"]
[null,"Planning for Safety in Project Management",null,null,null,null,null,null,null,null,null,null,null,null,null,null,null,"Federal Grants Update 2012","$‎589.00"]
[null,"Program Management and Portfolio Analysis ",null,null,null,null,null,null,null,null,null,null,null,null,null,null,null,"Federal Real Property Lease Law","$‎1,049.00"]
[null,"Program Management Simulation ",null,null,null,null,null,null,null,null,null,null,null,null,null,null,null,"Federal Real Property Leasing","$‎1,049.00"]
[null,"Project Execution and Readiness Reviews",null,null,null,null,null,null,null,null,null,null,null,null,null,null,null,"FERS Benefits and Financial Literacy","$‎679.00"]
[null,"Project Leadership",null,null,null,null,null,null,null,null,null,null,null,null,null,null,null,"Financial Administration of Federal Grants for Recipients","$‎749.00"]
[null,"Project Management Essentials",null,null,null,null,null,null,null,null,null,null,null,null,null,null,null,"Financial Administration of Federal Grants for Recipients (Online)","$‎819.00"]
[null,"Project Management Systems & Practices in DOE",null,null,null,null,null,null,null,null,null,null,null,null,null,null,null,"Financial Management of Business Operations in Government","$‎769.00"]
[null,"Project Risk Analysis & Management",null,null,null,null,null,null,null,null,null,null,null,null,null,null,null,"Financial Management of Defense Working Capital Funds","$‎735.00"]
[null,"Real Property Asset Management",null,null,null,null,null,null,null,null,null,null,null,null,null,null,null,"Fiscal Law in DoD","$‎629.00"]
[null,"Scope Management Baseline Development",null,null,null,null,null,null,null,null,null,null,null,null,null,null,null,"Forensic Auditing: Detection and Prevention of Fraud","$‎769.00"]
[null,"Strategic Planning",null,null,null,null,null,null,null,null,null,null,null,null,null,null,null,"From Strategic Plans to Tactical Execution","$‎739.00"]
[null,"Systems Engineering",null,null,null,null,null,null,null,null,null,null,null,null,null,null,null,"From Tactical to Strategic Thinking","$‎919.00"]
[null,"Value Management",null,null,null,null,null,null,null,null,null,null,null,null,null,null,null,"Fundamentals of Overhead and Other Indirect Cost Rates","$‎759.00"]
[null,null,null,null,null,null,null,null,null,null,null,null,null,null,null,null,null,"Fundamentals of Workforce Planning","$‎899.00"]
[null,null,null,null,null,null,null,null,null,null,null,null,null,null,null,null,null,"Government Specific I","$‎1,395.00"]
[null,"Accountability for Federal Grants: Planning, Measuring and Reporting",null,null,null,null,null,null,null,null,null,null,null,null,null,null,null,"Government Specific II","$‎1,395.00"]
[null,"Advanced Cost Principles",null,null,null,null,null,null,null,null,null,null,null,null,null,null,null,"Governmental Accounting, Financial Reporting and Budgeting","$‎769.00"]
[null,"Advanced Property Management Seminar",null,null,null,null,null,null,null,null,null,null,null,null,null,null,null,"Governmental Environment","$‎385.00"]
[null,"Appropriation Law for Financial Assistance",null,null,null,null,null,null,null,null,null,null,null,null,null,null,null,"Governmental Financial Management and Control","$‎595.00"]
[null,"Audit of Federal Grants and Cooperative Agreements",null,null,null,null,null,null,null,null,null,null,null,null,null,null,null,"Governmentwide Commercial Purchase Card","$‎539.00"]
[null,"CLC 003 Sealed Bidding",null,null,null,null,null,null,null,null,null,null,null,null,null,null,null,"Grammar Refresher","$‎739.00"]
[null,"CLC 004 Market Research",null,null,null,null,null,null,null,null,null,null,null,null,null,null,null,"Grants Administration for Federal Program Personnel","$‎839.00"]
[null,"CLC 009 Service-Disabled Veteran-Owned Small Business Program",null,null,null,null,null,null,null,null,null,null,null,null,null,null,null,"Group Facilitation","$‎919.00"]
[null,"CLC 015 Commercial Acquisitions",null,null,null,null,null,null,null,null,null,null,null,null,null,null,null,"HighTech Speaking","$‎1,395.00"]
[null,"CLC 020 Commercial Item Determination",null,null,null,null,null,null,null,null,null,null,null,null,null,null,null,"Hiring in the Federal Context","$‎899.00"]
[null,"CLC 022 Profit Policy Revisions",null,null,null,null,null,null,null,null,null,null,null,null,null,null,null,"How to Prepare the Grant Application Budget","$‎589.00"]
[null,"CLC 023 Commercial Item Determination: Executive Overview",null,null,null,null,null,null,null,null,null,null,null,null,null,null,null,"How to Write the Grant Application Narrative","$‎749.00"]
[null,"CLC 027 Buy American Act",null,null,null,null,null,null,null,null,null,null,null,null,null,null,null,"HR in the Federal Context","$‎899.00"]
[null,"CLC 060 Time and Materials Contracts",null,null,null,null,null,null,null,null,null,null,null,null,null,null,null,"Improper Payments","$‎419.00"]
[null,"CLC 104 Analyzing Profit or Fee",null,null,null,null,null,null,null,null,null,null,null,null,null,null,null,"Incentive Contracts","$‎759.00"]
[null,"CLC 131 Commercial Item Pricing",null,null,null,null,null,null,null,null,null,null,null,null,null,null,null,"Influencing Skills","$‎739.00"]
[null,"CON 100 Shaping Smart Business Arrangements",null,null,null,null,null,null,null,null,null,null,null,null,null,null,null,"Information Technology (IT) Acquisition","$‎759.00"]
[null,"CON 110 Mission Support Planning",null,null,null,null,null,null,null,null,null,null,null,null,null,null,null,"Internal Control Over Financial Reporting","$‎769.00"]
[null,"CON 111 Mission Planning Execution",null,null,null,null,null,null,null,null,null,null,null,null,null,null,null,"Internal Controls: Meeting Federal Requirements for Accountability","$‎769.00"]
[null,"CON 112 Mission Performance Assessment",null,null,null,null,null,null,null,null,null,null,null,null,null,null,null,"Interpersonal Skills: Developing Effective Relationships","$‎919.00"]
[null,"CON 120 Mission Focused Contracting",null,null,null,null,null,null,null,null,null,null,null,null,null,null,null,"Introduction to Business Analysis e-Seminar","$‎49.00"]
[null,"CON 214 Business Decisions for Contracting",null,null,null,null,null,null,null,null,null,null,null,null,null,null,null,"Introduction to Federal Contracting","$‎1,049.00"]
[null,"CON 215 Intermediate Contracting for Mission Support",null,null,null,null,null,null,null,null,null,null,null,null,null,null,null,"Introduction to Grants and Cooperative Agreements for Federal Personnel","$‎849.00"]
[null,"CON 216 Legal Considerations in Contracting",null,null,null,null,null,null,null,null,null,null,null,null,null,null,null,"Introduction to Grants and Cooperative Agreements for Federal Personnel (Online)","$‎919.00"]
[null,"CON 217 Cost Analysis and Negotiation Techniques",null,null,null,null,null,null,null,null,null,null,null,null,null,null,null,"IT Project Risk Management","$‎1,439.00"]
[null,"CON 218 Advanced Contracting for Mission Support",null,null,null,null,null,null,null,null,null,null,null,null,null,null,null,"IT Project Risk Management- Virtual Classroom","$‎1,439.00"]
[null,"CON 237 Simplified Acquisition Procedures (on-line)",null,null,null,null,null,null,null,null,null,null,null,null,null,null,null,"Keeping the Audit on Track: Critical Skills for Audit Managers","$‎629.00"]
[null,"CON 353 Advanced Business Solutions for Mission Support",null,null,null,null,null,null,null,null,null,null,null,null,null,null,null,"Key to Audit Success: Focus on Objectives","$‎629.00"]
[null,"Contract Administration for M&O Contractors",null,null,null,null,null,null,null,null,null,null,null,null,null,null,null,"Leadership & Professional Skills I","$‎1,195.00"]
[null,"Contract Administration for Technical Representatives",null,null,null,null,null,null,null,null,null,null,null,null,null,null,null,"Leadership & Professional Skills II","$‎1,195.00"]
[null,"Contract Property Management Seminar",null,null,null,null,null,null,null,null,null,null,null,null,null,null,null,"Leadership and Communication Skills for Business Analysts","$‎1,439.00"]
[null,"Cooperative Agreements and Substantial Involvement",null,null,null,null,null,null,null,null,null,null,null,null,null,null,null,"Leadership and Communication Skills for Business Analysts - Virtual Classroom","$‎1,439.00"]
[null,"Cost Principles OMB Circulars A-21, A-87, A-122 and FAR 31.2",null,null,null,null,null,null,null,null,null,null,null,null,null,null,null,"Leadership and Communication Skills for Project Managers","$‎1,439.00"]
[null,"Demilitarization Course",null,null,null,null,null,null,null,null,null,null,null,null,null,null,null,"Leadership and Communication Skills for Project Managers - Virtual Classroom","$‎1,439.00"]
[null,"DOE TIA Training",null,null,null,null,null,null,null,null,null,null,null,null,null,null,null,"Leadership and Management Skills for Non-Managers","$‎859.00"]
[null,"Earned Value Management",null,null,null,null,null,null,null,null,null,null,null,null,null,null,null,"Leadership Skills and Techniques","$‎919.00"]
[null,"Essential Skills for Grants Professionals ",null,null,null,null,null,null,null,null,null,null,null,null,null,null,null,"Leading and Managing High-Performing Project Teams","$‎1,379.00"]
[null,"Ethics in the Grants Environment",null,null,null,null,null,null,null,null,null,null,null,null,null,null,null,"Leading and Managing High-Performing Project Teams - Virtual Classroom","$‎1,379.00"]
[null,"Federal Assistance Law",null,null,null,null,null,null,null,null,null,null,null,null,null,null,null,"Leading Cultural Transformation","$‎1,529.00"]
[null,"Federal Financial Assistance",null,null,null,null,null,null,null,null,null,null,null,null,null,null,null,"Leading the Human Side of Change","$‎919.00"]
[null,"Federal Funds Management",null,null,null,null,null,null,null,null,null,null,null,null,null,null,null,"Leading the Human Side of Change"]
[null,"Financial Management",null,null,null,null,null,null,null,null,null,null,null,null,null,null,null,"Lease Administration","$‎1,049.00"]
[null,"Government Purchase Card Training",null,null,null,null,null,null,null,null,null,null,null,null,null,null,null,"Making Decisions Using Earned Value","$‎1,379.00"]
[null,"Grant Performance",null,null,null,null,null,null,null,null,null,null,null,null,null,null,null,"Making Decisions Using Earned Value - Virtual Classroom","$‎1,379.00"]
[null,"GRT 201 Grants Agreements Management",null,null,null,null,null,null,null,null,null,null,null,null,null,null,null,"Managerial Cost Accounting","$‎629.00"]
[null,"Introduction to Grants and Cooperative Agreements for Federal Personnel",null,null,null,null,null,null,null,null,null,null,null,null,null,null,null,"Managing Change","$‎739.00"]
[null,"Monitoring Grants and Cooperative Agreements for Federal Personnel",null,null,null,null,null,null,null,null,null,null,null,null,null,null,null,"Managing Complex Projects","$‎1,379.00"]
[null,"Performance-Based Contracting",null,null,null,null,null,null,null,null,null,null,null,null,null,null,null,"Managing Federal Grants and Cooperative Agreements for Recipients","$‎849.00"]
[null,"Personal Property and Nonproliferation Course",null,null,null,null,null,null,null,null,null,null,null,null,null,null,null,"Managing Federal Grants and Cooperative Agreements for Recipients (Online)","$‎929.00"]
[null,"Planning for Performance-Based Management Contracting",null,null,null,null,null,null,null,null,null,null,null,null,null,null,null,"Managing IT Projects","$‎1,759.00"]
[null,"Project Management Essentials",null,null,null,null,null,null,null,null,null,null,null,null,null,null,null,"Managing IT Projects - Virtual Classroom","$‎1,759.00"]
[null,"Property Management",null,null,null,null,null,null,null,null,null,null,null,null,null,null,null,"Managing Multiple Projects","$‎1,439.00"]
[null,"Understanding National Policy Requirements Affecting Grants",null,null,null,null,null,null,null,null,null,null,null,null,null,null,null,"Managing Multiple Projects - Virtual Classroom","$‎1,439.00"]
[null,"Uniform Administrative Requirements",null,null,null,null,null,null,null,null,null,null,null,null,null,null,null,"Managing Project Quality","$‎1,439.00"]
[null,null,null,null,null,null,null,null,null,null,null,null,null,null,null,null,null,"Managing Project Quality - Virtual Classroom","$‎1,439.00"]
[null,null,null,null,null,null,null,null,null,null,null,null,null,null,null,null,null,"Managing Scope, Schedule & Cost","$‎1,439.00"]
[null,null,null,null,null,null,null,null,null,null,null,null,null,null,null,null,null,"Managing Scope, Schedule & Cost - Virtual Classroom","$‎1,439.00"]
[null,null,null,null,null,null,null,null,null,null,null,null,null,null,null,null,null,"Managing Stakeholder Expectations and Relationships","$‎1,379.00"]
[null,null,null,null,null,null,null,null,null,null,null,null,null,null,null,null,null,"Managing Stakeholder Expectations and Relationships - Virtual Classroom","$‎1,379.00"]
[null,null,null,null,null,null,null,null,null,null,null,null,null,null,null,null,null,"Managing Virtual Teams and Telework","$‎739.00"]
[null,null,null,null,null,null,null,null,null,null,null,null,null,null,null,null,null,"Mastering Employee Performance Conversations","$‎919.00"]
[null,null,null,null,null,null,null,null,null,null,null,null,null,null,null,null,null,"Micro-Purchase Procedures","$‎699.00"]
[null,null,null,null,null,null,null,null,null,null,null,null,null,null,null,null,null,"Microsoft Project 2007: Level 1","$‎579.00"]
[null,null,null,null,null,null,null,null,null,null,null,null,null,null,null,null,null,"Microsoft Project 2007: Level 2","$‎579.00"]
[null,null,null,null,null,null,null,null,null,null,null,null,null,null,null,null,null,"Microsoft Project 2010: Level 1","$‎579.00"]
[null,null,null,null,null,null,null,null,null,null,null,null,null,null,null,null,null,"Microsoft Project 2010: Level 2","$‎579.00"]
[null,null,null,null,null,null,null,null,null,null,null,null,null,null,null,null,null,"Mission Driven Project Management: From Strategy to Action","$‎1,379.00"]
[null,null,null,null,null,null,null,null,null,null,null,null,null,null,null,null,null,"Monitoring Grants and Cooperative Agreements for Federal Personnel","$‎749.00"]
[null,null,null,null,null,null,null,null,null,null,null,null,null,null,null,null,null,"Monitoring Grants and Cooperative Agreements for Federal Personnel (Online)","$‎819.00"]
[null,null,null,null,null,null,null,null,null,null,null,null,null,null,null,null,null,"Negotiation Skills","$‎739.00"]
[null,null,null,null,null,null,null,null,null,null,null,null,null,null,null,null,null,"Optimizing Cost Share and Match Under Federal Grants","$‎749.00"]
[null,null,null,null,null,null,null,null,null,null,null,null,null,null,null,null,null,"Overview of Internal Control Guidance","$‎419.00"]
[null,null,null,null,null,null,null,null,null,null,null,null,null,null,null,null,null,"Performance Auditing","$‎769.00"]
[null,null,null,null,null,null,null,null,null,null,null,null,null,null,null,null,null,"Performance Budgeting","$‎629.00"]
[null,null,null,null,null,null,null,null,null,null,null,null,null,null,null,null,null,"Performance-Based Service Acquisition","$‎1,049.00"]
[null,null,null,null,null,null,null,null,null,null,null,null,null,null,null,null,null,"PMP® Exam Express: Certification Preparation","$‎1,999.00"]
[null,null,null,null,null,null,null,null,null,null,null,null,null,null,null,null,null,"PowerSpeaking","$‎1,395.00"]
[null,null,null,null,null,null,null,null,null,null,null,null,null,null,null,null,null,"PPBE Workshop: Defense Planning, Programming, Budgeting and Execution","$‎769.00"]
[null,null,null,null,null,null,null,null,null,null,null,null,null,null,null,null,null,"Preparation and Analysis of the SF 133","$‎629.00"]
[null,null,null,null,null,null,null,null,null,null,null,null,null,null,null,null,null,"Preparing Federal Financial Statements Using the U.S. Standard General Ledger","$‎629.00"]
[null,null,null,null,null,null,null,null,null,null,null,null,null,null,null,null,null,"Preparing for the PMI Agile Certified Practitioner (PMI-ACP)® Exam","$‎1,439.00"]
[null,null,null,null,null,null,null,null,null,null,null,null,null,null,null,null,null,"Preparing for the PMI Agile Certified Practitioner (PMI-ACP)® Exam-Virtual Class","$‎1,439.00"]
[null,null,null,null,null,null,null,null,null,null,null,null,null,null,null,null,null,"Preparing High-Impact Audit Reports","$‎629.00"]
[null,null,null,null,null,null,null,null,null,null,null,null,null,null,null,null,null,"Principles of Analytics","$‎919.00"]
[null,null,null,null,null,null,null,null,null,null,null,null,null,null,null,null,null,"Principles of Business Analysis","$‎1,439.00"]
[null,null,null,null,null,null,null,null,null,null,null,null,null,null,null,null,null,"Principles of Business Analysis - Virtual Classroom","$‎1,439.00"]
[null,null,null,null,null,null,null,null,null,null,null,null,null,null,null,null,null,"Procurement for Project Managers","$‎1,379.00"]
[null,null,null,null,null,null,null,null,null,null,null,null,null,null,null,null,null,"Procurement for Project Managers - Virtual Classroom","$‎1,379.00"]
[null,null,null,null,null,null,null,null,null,null,null,null,null,null,null,null,null,"Procuring Goods and Services Under Federal Grants","$‎749.00"]
[null,null,null,null,null,null,null,null,null,null,null,null,null,null,null,null,null,"Professional Government Supervisor Program","$‎1,495.00"]
[null,null,null,null,null,null,null,null,null,null,null,null,null,null,null,null,null,"Program and Budget Analysis Using Microsoft Excel","$‎939.00"]
[null,null,null,null,null,null,null,null,null,null,null,null,null,null,null,null,null,"Project Cost Estimating","$‎1,379.00"]
[null,null,null,null,null,null,null,null,null,null,null,null,null,null,null,null,null,"Project Cost Estimating - Virtual Classroom","$‎1,379.00"]
[null,null,null,null,null,null,null,null,null,null,null,null,null,null,null,null,null,"Project Management Essentials for Team Members","$‎1,379.00"]
[null,null,null,null,null,null,null,null,null,null,null,null,null,null,null,null,null,"Project Management Essentials for Team Members - Virtual Classroom","$‎1,379.00"]
[null,null,null,null,null,null,null,null,null,null,null,null,null,null,null,null,null,"Project Management I","$‎1,395.00"]
[null,null,null,null,null,null,null,null,null,null,null,null,null,null,null,null,null,"Project Management II","$‎1,395.00"]
[null,null,null,null,null,null,null,null,null,null,null,null,null,null,null,null,null,"Project Management Principles - Virtual Classroom","$‎1,439.00"]
[null,null,null,null,null,null,null,null,null,null,null,null,null,null,null,null,null,"Project Management Principles Online"]
[null,null,null,null,null,null,null,null,null,null,null,null,null,null,null,null,null,"Project Management Simulation","$‎1,759.00"]
[null,null,null,null,null,null,null,null,null,null,null,null,null,null,null,null,null,"Project Management Simulation - Virtual Classroom","$‎1,759.00"]
[null,null,null,null,null,null,null,null,null,null,null,null,null,null,null,null,null,"Project Management Skills for Business Analysts","$‎1,439.00"]
[null,null,null,null,null,null,null,null,null,null,null,null,null,null,null,null,null,"Project Management Skills for Business Analysts - Virtual Classroom","$‎1,439.00"]
[null,null,null,null,null,null,null,null,null,null,null,null,null,null,null,null,null,"Project Risk Management","$‎1,439.00"]
[null,null,null,null,null,null,null,null,null,null,null,null,null,null,null,null,null,"Project Risk Management - Virtual Classroom","$‎1,439.00"]
[null,null,null,null,null,null,null,null,null,null,null,null,null,null,null,null,null,"Requirements Management for Project Managers","$‎1,439.00"]
[null,null,null,null,null,null,null,null,null,null,null,null,null,null,null,null,null,"Requirements Management for Project Managers - Virtual Classroom","$‎1,439.00"]
[null,null,null,null,null,null,null,null,null,null,null,null,null,null,null,null,null,"Resolving Conflict","$‎739.00"]
[null,null,null,null,null,null,null,null,null,null,null,null,null,null,null,null,null,"Retirement Planning for Federal Employees  (2-day)  CSRS","$‎679.00"]
[null,null,null,null,null,null,null,null,null,null,null,null,null,null,null,null,null,"Retirement Planning for Federal Employees  (2-day)  FERS","$‎679.00"]
[null,null,null,null,null,null,null,null,null,null,null,null,null,null,null,null,null,"Retirement Planning for Federal Employees (3-day)","$‎799.00"]
[null,null,null,null,null,null,null,null,null,null,null,null,null,null,null,null,null,"Service Contract Act Overview","$‎699.00"]
[null,null,null,null,null,null,null,null,null,null,null,null,null,null,null,null,null,"Simplified Acquisition Procedures","$‎1,029.00"]
[null,null,null,null,null,null,null,null,null,null,null,null,null,null,null,null,null,"Simplified Acquisition Refresher","$‎759.00"]
[null,null,null,null,null,null,null,null,null,null,null,null,null,null,null,null,null,"Source Selection","$‎1,049.00"]
[null,null,null,null,null,null,null,null,null,null,null,null,null,null,null,null,null,"SpeakingUp:Presenting to Executives","$‎1,495.00"]
[null,null,null,null,null,null,null,null,null,null,null,null,null,null,null,null,null,"Statements of Federal Financial Accounting Standards: SFFAS","$‎629.00"]
[null,null,null,null,null,null,null,null,null,null,null,null,null,null,null,null,null,"Strategic Planning and Performance Measurement","$‎919.00"]
[null,null,null,null,null,null,null,null,null,null,null,null,null,null,null,null,null,"Strategic Portfolio and Resource Management","$‎1,379.00"]
[null,null,null,null,null,null,null,null,null,null,null,null,null,null,null,null,null,"Strategic Workforce Planning for Senior Leaders","$‎899.00"]
[null,null,null,null,null,null,null,null,null,null,null,null,null,null,null,null,null,"Subawarding for Pass-Through Entities","$‎1,119.00"]
[null,null,null,null,null,null,null,null,null,null,null,null,null,null,null,null,null,"Subawarding for Pass-Through Entities (Online)","$‎1,219.00"]
[null,null,null,null,null,null,null,null,null,null,null,null,null,null,null,null,null,"Task and Delivery Order Contracting","$‎699.00"]
[null,null,null,null,null,null,null,null,null,null,null,null,null,null,null,null,null,"Techniques of Negotiating Federal Real Property Leases","$‎1,049.00"]
[null,null,null,null,null,null,null,null,null,null,null,null,null,null,null,null,null,"Terminating Contracts","$‎759.00"]
[null,null,null,null,null,null,null,null,null,null,null,null,null,null,null,null,null,"The Antideficiency Act","$‎629.00"]
[null,null,null,null,null,null,null,null,null,null,null,null,null,null,null,null,null,"The Federal Budget Process","$‎629.00"]
[null,null,null,null,null,null,null,null,null,null,null,null,null,null,null,null,null,"The Internal Audit Activity's Role in Governance, Risk and Control","$‎829.00"]
[null,null,null,null,null,null,null,null,null,null,null,null,null,null,null,null,null,"The Legislative Process: Working with Congress","$‎419.00"]
[null,null,null,null,null,null,null,null,null,null,null,null,null,null,null,null,null,"The Prompt Payment Act and Voucher Examination","$‎629.00"]
[null,null,null,null,null,null,null,null,null,null,null,null,null,null,null,null,null,"Types of Contracts","$‎759.00"]
[null,null,null,null,null,null,null,null,null,null,null,null,null,null,null,null,null,"U.S. Standard General Ledger:  Practical Applications","$‎629.00"]
[null,null,null,null,null,null,null,null,null,null,null,null,null,null,null,null,null,"Understanding National Policy Requirements Affecting Grants","$‎749.00"]
[null,null,null,null,null,null,null,null,null,null,null,null,null,null,null,null,null,"Uniform Administrative Requirements: OMB Circular A-102 & 2 CFR Part 215","$‎749.00"]
[null,null,null,null,null,null,null,null,null,null,null,null,null,null,null,null,null,"Uniform Administrative Requirements:OMB Circular A-102 & 2 CFR Part 215 (Online)","$‎819.00"]
[null,null,null,null,null,null,null,null,null,null,null,null,null,null,null,null,null,"USACE Fiscal Law Online Refresher","$‎149.00"]
[null,null,null,null,null,null,null,null,null,null,null,null,null,null,null,null,null,"Using Performance Metrics to Improve Program Effectiveness","$‎769.00"]
[null,null,null,null,null,null,null,null,null,null,null,null,null,null,null,null,null,"Verifying and Validating the Solution","$‎1,439.00"]
[null,null,null,null,null,null,null,null,null,null,null,null,null,null,null,null,null,"Verifying and Validating the Solution - Virtual Classroom","$‎1,439.00"]
[null,null,null,null,null,null,null,null,null,null,null,null,null,null,null,null,null,"Writing Effective Individual Development Plans","$‎739.00"]
[null,null,null,null,null,null,null,null,null,null,null,null,null,null,null,null,null,"Writing Performance Work Statements (PWS)","$‎759.00"]

{"sheet":"Data Output","index":2,"n_rows":200,"n_cols":7,"rows_kept":200,"cut":false,"hidden":true,"merged":[[199,3,199,4],[199,5,199,6]]}
["Header","Job Title/Competency Name","Courses","# Empl","Course Cost","Total Cost","Priority"]
[{"$f":"'II. Mission Critical Need'!$B$2","v":"Section II. Mission Critical Training"},{"$f":"'II. Mission Critical Need'!B5","v":0},{"$f":"'II. Mission Critical Need'!C5","v":0},{"$f":"'II. Mission Critical Need'!D5","v":0},{"$f":"'II. Mission Critical Need'!E5","v":0},{"$f":"PRODUCT(D2:E2)","v":0},{"$f":"'II. Mission Critical Need'!G5","v":0}]
[{"$f":"'II. Mission Critical Need'!$B$2","v":"Section II. Mission Critical Training"},{"$f":"'II. Mission Critical Need'!B6","v":0},{"$f":"'II. Mission Critical Need'!C6","v":0},{"$f":"'II. Mission Critical Need'!D6","v":0},{"$f":"'II. Mission Critical Need'!E6","v":0},{"$f":"PRODUCT(D3:E3)","v":0},{"$f":"'II. Mission Critical Need'!G6","v":0}]
[{"$f":"'II. Mission Critical Need'!$B$2","v":"Section II. Mission Critical Training"},{"$f":"'II. Mission Critical Need'!B7","v":0},{"$f":"'II. Mission Critical Need'!C7","v":0},{"$f":"'II. Mission Critical Need'!D7","v":0},{"$f":"'II. Mission Critical Need'!E7","v":0},{"$f":"PRODUCT(D4:E4)","v":0},{"$f":"'II. Mission Critical Need'!G7","v":0}]
[{"$f":"'II. Mission Critical Need'!$B$2","v":"Section II. Mission Critical Training"},{"$f":"'II. Mission Critical Need'!B8","v":0},{"$f":"'II. Mission Critical Need'!C8","v":0},{"$f":"'II. Mission Critical Need'!D8","v":0},{"$f":"'II. Mission Critical Need'!E8","v":0},{"$f":"PRODUCT(D5:E5)","v":0},{"$f":"'II. Mission Critical Need'!G8","v":0}]
[{"$f":"'II. Mission Critical Need'!$B$2","v":"Section II. Mission Critical Training"},{"$f":"'II. Mission Critical Need'!B9","v":0},{"$f":"'II. Mission Critical Need'!C9","v":0},{"$f":"'II. Mission Critical Need'!D9","v":0},{"$f":"'II. Mission Critical Need'!E9","v":0},0,{"$f":"'II. Mission Critical Need'!G9","v":0}]
[{"$f":"'II. Mission Critical Need'!$B$2","v":"Section II. Mission Critical Training"},{"$f":"'II. Mission Critical Need'!B10","v":0},{"$f":"'II. Mission Critical Need'!C10","v":0},{"$f":"'II. Mission Critical Need'!D10","v":0},{"$f":"'II. Mission Critical Need'!E10","v":0},0,{"$f":"'II. Mission Critical Need'!G10","v":0}]
[{"$f":"'II. Mission Critical Need'!$B$2","v":"Section II. Mission Critical Training"},{"$f":"'II. Mission Critical Need'!B11","v":0},{"$f":"'II. Mission Critical Need'!C11","v":0},{"$f":"'II. Mission Critical Need'!D11","v":0},{"$f":"'II. Mission Critical Need'!E11","v":0},0,{"$f":"'II. Mission Critical Need'!G11","v":0}]
[{"$f":"'II. Mission Critical Need'!$B$2","v":"Section II. Mission Critical Training"},{"$f":"'II. Mission Critical Need'!B12","v":0},{"$f":"'II. Mission Critical Need'!C12","v":0},{"$f":"'II. Mission Critical Need'!D12","v":0},{"$f":"'II. Mission Critical Need'!E12","v":0},0,{"$f":"'II. Mission Critical Need'!G12","v":0}]
[{"$f":"'II. Mission Critical Need'!$B$2","v":"Section II. Mission Critical Training"},{"$f":"'II. Mission Critical Need'!B13","v":0},{"$f":"'II. Mission Critical Need'!C13","v":0},{"$f":"'II. Mission Critical Need'!D13","v":0},{"$f":"'II. Mission Critical Need'!E13","v":0},0,{"$f":"'II. Mission Critical Need'!G13","v":0}]
[{"$f":"'II. Mission Critical Need'!$B$2","v":"Section II. Mission Critical Training"},{"$f":"'II. Mission Critical Need'!B14","v":0},{"$f":"'II. Mission Critical Need'!C14","v":0},{"$f":"'II. Mission Critical Need'!D14","v":0},{"$f":"'II. Mission Critical Need'!E14","v":0},0,{"$f":"'II. Mission Critical Need'!G14","v":0}]
[{"$f":"'II. Mission Critical Need'!$B$2","v":"Section II. Mission Critical Training"},{"$f":"'II. Mission Critical Need'!B15","v":0},{"$f":"'II. Mission Critical Need'!C15","v":0},{"$f":"'II. Mission Critical Need'!D15","v":0},{"$f":"'II. Mission Critical Need'!E15","v":0},0,{"$f":"'II. Mission Critical Need'!G15","v":0}]
[{"$f":"'II. Mission Critical Need'!$B$2","v":"Section II. Mission Critical Training"},{"$f":"'II. Mission Critical Need'!B16","v":0},{"$f":"'II. Mission Critical Need'!C16","v":0},{"$f":"'II. Mission Critical Need'!D16","v":0},{"$f":"'II. Mission Critical Need'!E16","v":0},0,{"$f":"'II. Mission Critical Need'!G16","v":0}]
[{"$f":"'II. Mission Critical Need'!$B$2","v":"Section II. Mission Critical Training"},{"$f":"'II. Mission Critical Need'!B17","v":0},{"$f":"'II. Mission Critical Need'!C17","v":0},{"$f":"'II. Mission Critical Need'!D17","v":0},{"$f":"'II. Mission Critical Need'!E17","v":0},0,{"$f":"'II. Mission Critical Need'!G17","v":0}]
[{"$f":"'II. Mission Critical Need'!$B$2","v":"Section II. Mission Critical Training"},{"$f":"'II. Mission Critical Need'!B18","v":0},{"$f":"'II. Mission Critical Need'!C18","v":0},{"$f":"'II. Mission Critical Need'!D18","v":0},{"$f":"'II. Mission Critical Need'!E18","v":0},0,{"$f":"'II. Mission Critical Need'!G18","v":0}]
[{"$f":"'II. Mission Critical Need'!$B$2","v":"Section II. Mission Critical Training"},{"$f":"'II. Mission Critical Need'!B19","v":0},{"$f":"'II. Mission Critical Need'!C19","v":0},{"$f":"'II. Mission Critical Need'!D19","v":0},{"$f":"'II. Mission Critical Need'!E19","v":0},0,{"$f":"'II. Mission Critical Need'!G19","v":0}]
[{"$f":"'II. Mission Critical Need'!$B$2","v":"Section II. Mission Critical Training"},{"$f":"'II. Mission Critical Need'!B20","v":0},{"$f":"'II. Mission Critical Need'!C20","v":0},{"$f":"'II. Mission Critical Need'!D20","v":0},{"$f":"'II. Mission Critical Need'!E20","v":0},0,{"$f":"'II. Mission Critical Need'!G20","v":0}]
[{"$f":"'II. Mission Critical Need'!$B$2","v":"Section II. Mission Critical Training"},{"$f":"'II. Mission Critical Need'!B21","v":0},{"$f":"'II. Mission Critical Need'!C21","v":0},{"$f":"'II. Mission Critical Need'!D21","v":0},{"$f":"'II. Mission Critical Need'!E21","v":0},0,{"$f":"'II. Mission Critical Need'!G21","v":0}]
[{"$f":"'II. Mission Critical Need'!$B$2","v":"Section II. Mission Critical Training"},{"$f":"'II. Mission Critical Need'!B22","v":0},{"$f":"'II. Mission Critical Need'!C22","v":0},{"$f":"'II. Mission Critical Need'!D22","v":0},{"$f":"'II. Mission Critical Need'!E22","v":0},0,{"$f":"'II. Mission Critical Need'!G22","v":0}]
[{"$f":"'II. Mission Critical Need'!$B$2","v":"Section II. Mission Critical Training"},{"$f":"'II. Mission Critical Need'!B23","v":0},{"$f":"'II. Mission Critical Need'!C23","v":0},{"$f":"'II. Mission Critical Need'!D23","v":0},{"$f":"'II. Mission Critical Need'!E23","v":0},{"$f":"PRODUCT(D20:E20)","v":0},{"$f":"'II. Mission Critical Need'!G23","v":0}]
[{"$f":"'II. Mission Critical Need'!$B$2","v":"Section II. Mission Critical Training"},{"$f":"'II. Mission Critical Need'!B24","v":0},{"$f":"'II. Mission Critical Need'!C24","v":0},{"$f":"'II. Mission Critical Need'!D24","v":0},{"$f":"'II. Mission Critical Need'!E24","v":0},0,{"$f":"'II. Mission Critical Need'!G24","v":0}]
[{"$f":"'II. Mission Critical Need'!$B$2","v":"Section II. Mission Critical Training"},{"$f":"'II. Mission Critical Need'!B25","v":0},{"$f":"'II. Mission Critical Need'!C25","v":0},{"$f":"'II. Mission Critical Need'!D25","v":0},{"$f":"'II. Mission Critical Need'!E25","v":0},0,{"$f":"'II. Mission Critical Need'!G25","v":0}]
[{"$f":"'II. Mission Critical Need'!$B$2","v":"Section II. Mission Critical Training"},{"$f":"'II. Mission Critical Need'!B26","v":0},{"$f":"'II. Mission Critical Need'!C26","v":0},{"$f":"'II. Mission Critical Need'!D26","v":0},{"$f":"'II. Mission Critical Need'!E26","v":0},0,{"$f":"'II. Mission Critical Need'!G26","v":0}]
[{"$f":"'II. Mission Critical Need'!$B$2","v":"Section II. Mission Critical Training"},{"$f":"'II. Mission Critical Need'!B27","v":0},{"$f":"'II. Mission Critical Need'!C27","v":0},{"$f":"'II. Mission Critical Need'!D27","v":0},{"$f":"'II. Mission Critical Need'!E27","v":0},0,{"$f":"'II. Mission Critical Need'!G27","v":0}]
[{"$f":"'II. Mission Critical Need'!$B$2","v":"Section II. Mission Critical Training"},{"$f":"'II. Mission Critical Need'!B28","v":0},{"$f":"'II. Mission Critical Need'!C28","v":0},{"$f":"'II. Mission Critical Need'!D28","v":0},{"$f":"'II. Mission Critical Need'!E28","v":0},0,{"$f":"'II. Mission Critical Need'!G28","v":0}]
[{"$f":"'II. Mission Critical Need'!$B$2","v":"Section II. Mission Critical Training"},{"$f":"'II. Mission Critical Need'!B29","v":0},{"$f":"'II. Mission Critical Need'!C29","v":0},{"$f":"'II. Mission Critical Need'!D29","v":0},{"$f":"'II. Mission Critical Need'!E29","v":0},0,{"$f":"'II. Mission Critical Need'!G29","v":0}]
[{"$f":"'II. Mission Critical Need'!$B$2","v":"Section II. Mission Critical Training"},{"$f":"'II. Mission Critical Need'!B30","v":0},{"$f":"'II. Mission Critical Need'!C30","v":0},{"$f":"'II. Mission Critical Need'!D30","v":0},{"$f":"'II. Mission Critical Need'!E30","v":0},0,{"$f":"'II. Mission Critical Need'!G30","v":0}]
[{"$f":"'II. Mission Critical Need'!$B$2","v":"Section II. Mission Critical Training"},{"$f":"'II. Mission Critical Need'!B31","v":0},{"$f":"'II. Mission Critical Need'!C31","v":0},{"$f":"'II. Mission Critical Need'!D31","v":0},{"$f":"'II. Mission Critical Need'!E31","v":0},0,{"$f":"'II. Mission Critical Need'!G31","v":0}]
[{"$f":"'II. Mission Critical Need'!$B$2","v":"Section II. Mission Critical Training"},{"$f":"'II. Mission Critical Need'!B32","v":0},{"$f":"'II. Mission Critical Need'!C32","v":0},{"$f":"'II. Mission Critical Need'!D32","v":0},{"$f":"'II. Mission Critical Need'!E32","v":0},0,{"$f":"'II. Mission Critical Need'!G32","v":0}]
[{"$f":"'II. Mission Critical Need'!$B$2","v":"Section II. Mission Critical Training"},{"$f":"'II. Mission Critical Need'!B33","v":0},{"$f":"'II. Mission Critical Need'!C33","v":0},{"$f":"'II. Mission Critical Need'!D33","v":0},{"$f":"'II. Mission Critical Need'!E33","v":0},0,{"$f":"'II. Mission Critical Need'!G33","v":0}]
[{"$f":"'II. Mission Critical Need'!$B$2","v":"Section II. Mission Critical Training"},{"$f":"'II. Mission Critical Need'!B34","v":0},{"$f":"'II. Mission Critical Need'!C34","v":0},{"$f":"'II. Mission Critical Need'!D34","v":0},{"$f":"'II. Mission Critical Need'!E34","v":0},0,{"$f":"'II. Mission Critical Need'!G34","v":0}]
[{"$f":"'II. Mission Critical Need'!$B$2","v":"Section II. Mission Critical Training"},{"$f":"'II. Mission Critical Need'!B35","v":0},{"$f":"'II. Mission Critical Need'!C35","v":0},{"$f":"'II. Mission Critical Need'!D35","v":0},{"$f":"'II. Mission Critical Need'!E35","v":0},0,{"$f":"'II. Mission Critical Need'!G35","v":0}]
[{"$f":"'II. Mission Critical Need'!$B$2","v":"Section II. Mission Critical Training"},{"$f":"'II. Mission Critical Need'!B36","v":0},{"$f":"'II. Mission Critical Need'!C36","v":0},{"$f":"'II. Mission Critical Need'!D36","v":0},{"$f":"'II. Mission Critical Need'!E36","v":0},0,{"$f":"'II. Mission Critical Need'!G36","v":0}]
[{"$f":"'II. Mission Critical Need'!$B$2","v":"Section II. Mission Critical Training"},{"$f":"'II. Mission Critical Need'!B37","v":0},{"$f":"'II. Mission Critical Need'!C37","v":0},{"$f":"'II. Mission Critical Need'!D37","v":0},{"$f":"'II. Mission Critical Need'!E37","v":0},0,{"$f":"'II. Mission Critical Need'!G37","v":0}]
[{"$f":"'II. Mission Critical Need'!$B$2","v":"Section II. Mission Critical Training"},{"$f":"'II. Mission Critical Need'!B38","v":0},{"$f":"'II. Mission Critical Need'!C38","v":0},{"$f":"'II. Mission Critical Need'!D38","v":0},{"$f":"'II. Mission Critical Need'!E38","v":0},0,{"$f":"'II. Mission Critical Need'!G38","v":0}]
[{"$f":"'II. Mission Critical Need'!$B$2","v":"Section II. Mission Critical Training"},{"$f":"'II. Mission Critical Need'!B39","v":0},{"$f":"'II. Mission Critical Need'!C39","v":0},{"$f":"'II. Mission Critical Need'!D39","v":0},{"$f":"'II. Mission Critical Need'!E39","v":0},0,{"$f":"'II. Mission Critical Need'!G39","v":0}]
[{"$f":"'II. Mission Critical Need'!$B$2","v":"Section II. Mission Critical Training"},{"$f":"'II. Mission Critical Need'!B40","v":0},{"$f":"'II. Mission Critical Need'!C40","v":0},{"$f":"'II. Mission Critical Need'!D40","v":0},{"$f":"'II. Mission Critical Need'!E40","v":0},0,{"$f":"'II. Mission Critical Need'!G40","v":0}]
[{"$f":"'II. Mission Critical Need'!$B$2","v":"Section II. Mission Critical Training"},{"$f":"'II. Mission Critical Need'!B41","v":0},{"$f":"'II. Mission Critical Need'!C41","v":0},{"$f":"'II. Mission Critical Need'!D41","v":0},{"$f":"'II. Mission Critical Need'!E41","v":0},0,{"$f":"'II. Mission Critical Need'!G41","v":0}]
[{"$f":"'II. Mission Critical Need'!$B$2","v":"Section II. Mission Critical Training"},{"$f":"'II. Mission Critical Need'!B42","v":0},{"$f":"'II. Mission Critical Need'!C42","v":0},{"$f":"'II. Mission Critical Need'!D42","v":0},{"$f":"'II. Mission Critical Need'!E42","v":0},0,{"$f":"'II. Mission Critical Need'!G42","v":0}]
[{"$f":"'II. Mission Critical Need'!$B$2","v":"Section II. Mission Critical Training"},{"$f":"'II. Mission Critical Need'!B43","v":0},{"$f":"'II. Mission Critical Need'!C43","v":0},{"$f":"'II. Mission Critical Need'!D43","v":0},{"$f":"'II. Mission Critical Need'!E43","v":0},0,{"$f":"'II. Mission Critical Need'!G43","v":0}]
[{"$f":"'II. Mission Critical Need'!$B$2","v":"Section II. Mission Critical Training"},{"$f":"'II. Mission Critical Need'!B44","v":0},{"$f":"'II. Mission Critical Need'!C44","v":0},{"$f":"'II. Mission Critical Need'!D44","v":0},{"$f":"'II. Mission Critical Need'!E44","v":0},0,{"$f":"'II. Mission Critical Need'!G44","v":0}]
[{"$f":"'II. Mission Critical Need'!$B$2","v":"Section II. Mission Critical Training"},{"$f":"'II. Mission Critical Need'!B45","v":0},{"$f":"'II. Mission Critical Need'!C45","v":0},{"$f":"'II. Mission Critical Need'!D45","v":0},{"$f":"'II. Mission Critical Need'!E45","v":0},0,{"$f":"'II. Mission Critical Need'!G45","v":0}]
[{"$f":"'II. Mission Critical Need'!$B$2","v":"Section II. Mission Critical Training"},{"$f":"'II. Mission Critical Need'!B46","v":0},{"$f":"'II. Mission Critical Need'!C46","v":0},{"$f":"'II. Mission Critical Need'!D46","v":0},{"$f":"'II. Mission Critical Need'!E46","v":0},0,{"$f":"'II. Mission Critical Need'!G46","v":0}]
[{"$f":"'II. Mission Critical Need'!$B$2","v":"Section II. Mission Critical Training"},{"$f":"'II. Mission Critical Need'!B47","v":0},{"$f":"'II. Mission Critical Need'!C47","v":0},{"$f":"'II. Mission Critical Need'!D47","v":0},{"$f":"'II. Mission Critical Need'!E47","v":0},0,{"$f":"'II. Mission Critical Need'!G47","v":0}]
[{"$f":"'II. Mission Critical Need'!$B$2","v":"Section II. Mission Critical Training"},{"$f":"'II. Mission Critical Need'!B48","v":0},{"$f":"'II. Mission Critical Need'!C48","v":0},{"$f":"'II. Mission Critical Need'!D48","v":0},{"$f":"'II. Mission Critical Need'!E48","v":0},0,{"$f":"'II. Mission Critical Need'!G48","v":0}]
[{"$f":"'II. Mission Critical Need'!$B$2","v":"Section II. Mission Critical Training"},{"$f":"'II. Mission Critical Need'!B49","v":0},{"$f":"'II. Mission Critical Need'!C49","v":0},{"$f":"'II. Mission Critical Need'!D49","v":0},{"$f":"'II. Mission Critical Need'!E49","v":0},0,{"$f":"'II. Mission Critical Need'!G49","v":0}]
[{"$f":"'II. Mission Critical Need'!$B$2","v":"Section II. Mission Critical Training"},{"$f":"'II. Mission Critical Need'!B50","v":0},{"$f":"'II. Mission Critical Need'!C50","v":0},{"$f":"'II. Mission Critical Need'!D50","v":0},{"$f":"'II. Mission Critical Need'!E50","v":0},0,{"$f":"'II. Mission Critical Need'!G50","v":0}]
[{"$f":"'II. Mission Critical Need'!$B$2","v":"Section II. Mission Critical Training"},{"$f":"'II. Mission Critical Need'!B51","v":0},{"$f":"'II. Mission Critical Need'!C51","v":0},{"$f":"'II. Mission Critical Need'!D51","v":0},{"$f":"'II. Mission Critical Need'!E51","v":0},0,{"$f":"'II. Mission Critical Need'!G51","v":0}]
[{"$f":"'II. Mission Critical Need'!$B$2","v":"Section II. Mission Critical Training"},{"$f":"'II. Mission Critical Need'!B52","v":0},{"$f":"'II. Mission Critical Need'!C52","v":0},{"$f":"'II. Mission Critical Need'!D52","v":0},{"$f":"'II. Mission Critical Need'!E52","v":0},0,{"$f":"'II. Mission Critical Need'!G52","v":0}]
[{"$f":"'II. Mission Critical Need'!$B$2","v":"Section II. Mission Critical Training"},{"$f":"'II. Mission Critical Need'!B53","v":0},{"$f":"'II. Mission Critical Need'!C53","v":0},{"$f":"'II. Mission Critical Need'!D53","v":0},{"$f":"'II. Mission Critical Need'!E53","v":0},0,{"$f":"'II. Mission Critical Need'!G53","v":0}]
[{"$f":"'II. Mission Critical Need'!$B$2","v":"Section II. Mission Critical Training"},{"$f":"'II. Mission Critical Need'!B54","v":0},{"$f":"'II. Mission Critical Need'!C54","v":0},{"$f":"'II. Mission Critical Need'!D54","v":0},{"$f":"'II. Mission Critical Need'!E54","v":0},0,{"$f":"'II. Mission Critical Need'!G54","v":0}]
[{"$f":"'II. Mission Critical Need'!$B$2","v":"Section II. Mission Critical Training"},{"$f":"'II. Mission Critical Need'!B55","v":0},{"$f":"'II. Mission Critical Need'!C55","v":0},{"$f":"'II. Mission Critical Need'!D55","v":0},{"$f":"'II. Mission Critical Need'!E55","v":0},0,{"$f":"'II. Mission Critical Need'!G55","v":0}]
[{"$f":"'II. Mission Critical Need'!$B$2","v":"Section II. Mission Critical Training"},{"$f":"'II. Mission Critical Need'!B56","v":0},{"$f":"'II. Mission Critical Need'!C56","v":0},{"$f":"'II. Mission Critical Need'!D56","v":0},{"$f":"'II. Mission Critical Need'!E56","v":0},0,{"$f":"'II. Mission Critical Need'!G56","v":0}]
[{"$f":"'II. Mission Critical Need'!$B$2","v":"Section II. Mission Critical Training"},{"$f":"'II. Mission Critical Need'!B57","v":0},{"$f":"'II. Mission Critical Need'!C57","v":0},{"$f":"'II. Mission Critical Need'!D57","v":0},{"$f":"'II. Mission Critical Need'!E57","v":0},0,{"$f":"'II. Mission Critical Need'!G57","v":0}]
[{"$f":"'II. Mission Critical Need'!$B$2","v":"Section II. Mission Critical Training"},{"$f":"'II. Mission Critical Need'!B58","v":0},{"$f":"'II. Mission Critical Need'!C58","v":0},{"$f":"'II. Mission Critical Need'!D58","v":0},{"$f":"'II. Mission Critical Need'!E58","v":0},0,{"$f":"'II. Mission Critical Need'!G58","v":0}]
[{"$f":"'II. Mission Critical Need'!$B$2","v":"Section II. Mission Critical Training"},{"$f":"'II. Mission Critical Need'!B59","v":0},{"$f":"'II. Mission Critical Need'!C59","v":0},{"$f":"'II. Mission Critical Need'!D59","v":0},{"$f":"'II. Mission Critical Need'!E59","v":0},0,{"$f":"'II. Mission Critical Need'!G59","v":0}]
[{"$f":"'II. Mission Critical Need'!$B$2","v":"Section II. Mission Critical Training"},{"$f":"'II. Mission Critical Need'!B60","v":0},{"$f":"'II. Mission Critical Need'!C60","v":0},{"$f":"'II. Mission Critical Need'!D60","v":0},{"$f":"'II. Mission Critical Need'!E60","v":0},0,{"$f":"'II. Mission Critical Need'!G60","v":0}]
[{"$f":"'II. Mission Critical Need'!$B$2","v":"Section II. Mission Critical Training"},{"$f":"'II. Mission Critical Need'!B61","v":0},{"$f":"'II. Mission Critical Need'!C61","v":0},{"$f":"'II. Mission Critical Need'!D61","v":0},{"$f":"'II. Mission Critical Need'!E61","v":0},0,{"$f":"'II. Mission Critical Need'!G61","v":0}]
[{"$f":"'II. Mission Critical Need'!$B$2","v":"Section II. Mission Critical Training"},{"$f":"'II. Mission Critical Need'!B62","v":0},{"$f":"'II. Mission Critical Need'!C62","v":0},{"$f":"'II. Mission Critical Need'!D62","v":0},{"$f":"'II. Mission Critical Need'!E62","v":0},0,{"$f":"'II. Mission Critical Need'!G62","v":0}]
[{"$f":"'II. Mission Critical Need'!$B$2","v":"Section II. Mission Critical Training"},{"$f":"'II. Mission Critical Need'!B63","v":0},{"$f":"'II. Mission Critical Need'!C63","v":0},{"$f":"'II. Mission Critical Need'!D63","v":0},{"$f":"'II. Mission Critical Need'!E63","v":0},0,{"$f":"'II. Mission Critical Need'!G63","v":0}]
[{"$f":"'II. Mission Critical Need'!$B$2","v":"Section II. Mission Critical Training"},{"$f":"'II. Mission Critical Need'!B64","v":0},{"$f":"'II. Mission Critical Need'!C64","v":0},{"$f":"'II. Mission Critical Need'!D64","v":0},{"$f":"'II. Mission Critical Need'!E64","v":0},0,{"$f":"'II. Mission Critical Need'!G64","v":0}]
[{"$f":"'II. Mission Critical Need'!$B$2","v":"Section II. Mission Critical Training"},{"$f":"'II. Mission Critical Need'!B65","v":0},{"$f":"'II. Mission Critical Need'!C65","v":0},{"$f":"'II. Mission Critical Need'!D65","v":0},{"$f":"'II. Mission Critical Need'!E65","v":0},0,{"$f":"'II. Mission Critical Need'!G65","v":0}]
[{"$f":"'II. Mission Critical Need'!$B$2","v":"Section II. Mission Critical Training"},{"$f":"'II. Mission Critical Need'!B66","v":0},{"$f":"'II. Mission Critical Need'!C66","v":0},{"$f":"'II. Mission Critical Need'!D66","v":0},{"$f":"'II. Mission Critical Need'!E66","v":0},0,{"$f":"'II. Mission Critical Need'!G66","v":0}]
[{"$f":"'II. Mission Critical Need'!$B$2","v":"Section II. Mission Critical Training"},{"$f":"'II. Mission Critical Need'!B67","v":0},{"$f":"'II. Mission Critical Need'!C67","v":0},{"$f":"'II. Mission Critical Need'!D67","v":0},{"$f":"'II. Mission Critical Need'!E67","v":0},0,{"$f":"'II. Mission Critical Need'!G67","v":0}]
[{"$f":"'II. Mission Critical Need'!$B$2","v":"Section II. Mission Critical Training"},{"$f":"'II. Mission Critical Need'!B68","v":0},{"$f":"'II. Mission Critical Need'!C68","v":0},{"$f":"'II. Mission Critical Need'!D68","v":0},{"$f":"'II. Mission Critical Need'!E68","v":0},0,{"$f":"'II. Mission Critical Need'!G68","v":0}]
[{"$f":"'II. Mission Critical Need'!$B$2","v":"Section II. Mission Critical Training"},{"$f":"'II. Mission Critical Need'!B69","v":0},{"$f":"'II. Mission Critical Need'!C69","v":0},{"$f":"'II. Mission Critical Need'!D69","v":0},{"$f":"'II. Mission Critical Need'!E69","v":0},0,{"$f":"'II. Mission Critical Need'!G69","v":0}]
[{"$f":"'II. Mission Critical Need'!$B$2","v":"Section II. Mission Critical Training"},{"$f":"'II. Mission Critical Need'!B70","v":0},{"$f":"'II. Mission Critical Need'!C70","v":0},{"$f":"'II. Mission Critical Need'!D70","v":0},{"$f":"'II. Mission Critical Need'!E70","v":0},0,{"$f":"'II. Mission Critical Need'!G70","v":0}]
[{"$f":"'II. Mission Critical Need'!$B$2","v":"Section II. Mission Critical Training"},{"$f":"'II. Mission Critical Need'!B71","v":0},{"$f":"'II. Mission Critical Need'!C71","v":0},{"$f":"'II. Mission Critical Need'!D71","v":0},{"$f":"'II. Mission Critical Need'!E71","v":0},0,{"$f":"'II. Mission Critical Need'!G71","v":0}]
[{"$f":"'II. Mission Critical Need'!$B$2","v":"Section II. Mission Critical Training"},{"$f":"'II. Mission Critical Need'!B72","v":0},{"$f":"'II. Mission Critical Need'!C72","v":0},{"$f":"'II. Mission Critical Need'!D72","v":0},{"$f":"'II. Mission Critical Need'!E72","v":0},0,{"$f":"'II. Mission Critical Need'!G72","v":0}]
[{"$f":"'II. Mission Critical Need'!$B$2","v":"Section II. Mission Critical Training"},{"$f":"'II. Mission Critical Need'!B73","v":0},{"$f":"'II. Mission Critical Need'!C73","v":0},{"$f":"'II. Mission Critical Need'!D73","v":0},{"$f":"'II. Mission Critical Need'!E73","v":0},0,{"$f":"'II. Mission Critical Need'!G73","v":0}]
[{"$f":"'II. Mission Critical Need'!$B$2","v":"Section II. Mission Critical Training"},{"$f":"'II. Mission Critical Need'!B74","v":0},{"$f":"'II. Mission Critical Need'!C74","v":0},{"$f":"'II. Mission Critical Need'!D74","v":0},{"$f":"'II. Mission Critical Need'!E74","v":0},0,{"$f":"'II. Mission Critical Need'!G74","v":0}]
[{"$f":"'II. Mission Critical Need'!$B$2","v":"Section II. Mission Critical Training"},{"$f":"'II. Mission Critical Need'!B75","v":0},{"$f":"'II. Mission Critical Need'!C75","v":0},{"$f":"'II. Mission Critical Need'!D75","v":0},{"$f":"'II. Mission Critical Need'!E75","v":0},0,{"$f":"'II. Mission Critical Need'!G75","v":0}]
[{"$f":"'II. Mission Critical Need'!$B$2","v":"Section II. Mission Critical Training"},{"$f":"'II. Mission Critical Need'!B76","v":0},{"$f":"'II. Mission Critical Need'!C76","v":0},{"$f":"'II. Mission Critical Need'!D76","v":0},{"$f":"'II. Mission Critical Need'!E76","v":0},0,{"$f":"'II. Mission Critical Need'!G76","v":0}]
[{"$f":"'II. Mission Critical Need'!$B$2","v":"Section II. Mission Critical Training"},{"$f":"'II. Mission Critical Need'!B77","v":0},{"$f":"'II. Mission Critical Need'!C77","v":0},{"$f":"'II. Mission Critical Need'!D77","v":0},{"$f":"'II. Mission Critical Need'!E77","v":0},0,{"$f":"'II. Mission Critical Need'!G77","v":0}]
[{"$f":"'II. Mission Critical Need'!$B$2","v":"Section II. Mission Critical Training"},{"$f":"'II. Mission Critical Need'!B78","v":0},{"$f":"'II. Mission Critical Need'!C78","v":0},{"$f":"'II. Mission Critical Need'!D78","v":0},{"$f":"'II. Mission Critical Need'!E78","v":0},0,{"$f":"'II. Mission Critical Need'!G78","v":0}]
[{"$f":"'II. Mission Critical Need'!$B$2","v":"Section II. Mission Critical Training"},{"$f":"'II. Mission Critical Need'!B79","v":0},{"$f":"'II. Mission Critical Need'!C79","v":0},{"$f":"'II. Mission Critical Need'!D79","v":0},{"$f":"'II. Mission Critical Need'!E79","v":0},0,{"$f":"'II. Mission Critical Need'!G79","v":0}]
[{"$f":"'II. Mission Critical Need'!$B$2","v":"Section II. Mission Critical Training"},{"$f":"'II. Mission Critical Need'!B80","v":0},{"$f":"'II. Mission Critical Need'!C80","v":0},{"$f":"'II. Mission Critical Need'!D80","v":0},{"$f":"'II. Mission Critical Need'!E80","v":0},0,{"$f":"'II. Mission Critical Need'!G80","v":0}]
[{"$f":"'II. Mission Critical Need'!$B$2","v":"Section II. Mission Critical Training"},{"$f":"'II. Mission Critical Need'!B81","v":0},{"$f":"'II. Mission Critical Need'!C81","v":0},{"$f":"'II. Mission Critical Need'!D81","v":0},{"$f":"'II. Mission Critical Need'!E81","v":0},0,{"$f":"'II. Mission Critical Need'!G81","v":0}]
[{"$f":"'III. Other Needs '!$B$2","v":"Section III. Other Needs Training - Non Mission Critical"},{"$f":"'III. Other Needs '!B5","v":0},{"$f":"'III. Other Needs '!C5","v":0},{"$f":"'III. Other Needs '!D5","v":0},{"$f":"'III. Other Needs '!E5","v":0},{"$f":"PRODUCT(D79:E79)","v":0},{"$f":"'III. Other Needs '!G5","v":0}]
[{"$f":"'III. Other Needs '!$B$2","v":"Section III. Other Needs Training - Non Mission Critical"},{"$f":"'III. Other Needs '!B6","v":0},{"$f":"'III. Other Needs '!C6","v":0},{"$f":"'III. Other Needs '!D6","v":0},{"$f":"'III. Other Needs '!E6","v":0},{"$f":"PRODUCT(D80:E80)","v":0},{"$f":"'III. Other Needs '!G6","v":0}]
[{"$f":"'III. Other Needs '!$B$2","v":"Section III. Other Needs Training - Non Mission Critical"},{"$f":"'III. Other Needs '!B7","v":0},{"$f":"'III. Other Needs '!C7","v":0},{"$f":"'III. Other Needs '!D7","v":0},{"$f":"'III. Other Needs '!E7","v":0},0,{"$f":"'III. Other Needs '!G7","v":0}]
[{"$f":"'III. Other Needs '!$B$2","v":"Section III. Other Needs Training - Non Mission Critical"},{"$f":"'III. Other Needs '!B8","v":0},{"$f":"'III. Other Needs '!C8","v":0},{"$f":"'III. Other Needs '!D8","v":0},{"$f":"'III. Other Needs '!E8","v":0},0,{"$f":"'III. Other Needs '!G8","v":0}]
[{"$f":"'III. Other Needs '!$B$2","v":"Section III. Other Needs Training - Non Mission Critical"},{"$f":"'III. Other Needs '!B9","v":0},{"$f":"'III. Other Needs '!C9","v":0},{"$f":"'III. Other Needs '!D9","v":0},{"$f":"'III. Other Needs '!E9","v":0},0,{"$f":"'III. Other Needs '!G9","v":0}]
[{"$f":"'III. Other Needs '!$B$2","v":"Section III. Other Needs Training - Non Mission Critical"},{"$f":"'III. Other Needs '!B10","v":0},{"$f":"'III. Other Needs '!C10","v":0},{"$f":"'III. Other Needs '!D10","v":0},{"$f":"'III. Other Needs '!E10","v":0},0,{"$f":"'III. Other Needs '!G10","v":0}]
[{"$f":"'III. Other Needs '!$B$2","v":"Section III. Other Needs Training - Non Mission Critical"},{"$f":"'III. Other Needs '!B11","v":0},{"$f":"'III. Other Needs '!C11","v":0},{"$f":"'III. Other Needs '!D11","v":0},{"$f":"'III. Other Needs '!E11","v":0},0,{"$f":"'III. Other Needs '!G11","v":0}]
[{"$f":"'III. Other Needs '!$B$2","v":"Section III. Other Needs Training - Non Mission Critical"},{"$f":"'III. Other Needs '!B12","v":0},{"$f":"'III. Other Needs '!C12","v":0},{"$f":"'III. Other Needs '!D12","v":0},{"$f":"'III. Other Needs '!E12","v":0},0,{"$f":"'III. Other Needs '!G12","v":0}]
[{"$f":"'III. Other Needs '!$B$2","v":"Section III. Other Needs Training - Non Mission Critical"},{"$f":"'III. Other Needs '!B13","v":0},{"$f":"'III. Other Needs '!C13","v":0},{"$f":"'III. Other Needs '!D13","v":0},{"$f":"'III. Other Needs '!E13","v":0},0,{"$f":"'III. Other Needs '!G13","v":0}]
[{"$f":"'III. Other Needs '!$B$2","v":"Section III. Other Needs Training - Non Mission Critical"},{"$f":"'III. Other Needs '!B14","v":0},{"$f":"'III. Other Needs '!C14","v":0},{"$f":"'III. Other Needs '!D14","v":0},{"$f":"'III. Other Needs '!E14","v":0},0,{"$f":"'III. Other Needs '!G14","v":0}]
[{"$f":"'III. Other Needs '!$B$2","v":"Section III. Other Needs Training - Non Mission Critical"},{"$f":"'III. Other Needs '!B15","v":0},{"$f":"'III. Other Needs '!C15","v":0},{"$f":"'III. Other Needs '!D15","v":0},{"$f":"'III. Other Needs '!E15","v":0},0,{"$f":"'III. Other Needs '!G15","v":0}]
[{"$f":"'III. Other Needs '!$B$2","v":"Section III. Other Needs Training - Non Mission Critical"},{"$f":"'III. Other Needs '!B16","v":0},{"$f":"'III. Other Needs '!C16","v":0},{"$f":"'III. Other Needs '!D16","v":0},{"$f":"'III. Other Needs '!E16","v":0},0,{"$f":"'III. Other Needs '!G16","v":0}]
[{"$f":"'III. Other Needs '!$B$2","v":"Section III. Other Needs Training - Non Mission Critical"},{"$f":"'III. Other Needs '!B17","v":0},{"$f":"'III. Other Needs '!C17","v":0},{"$f":"'III. Other Needs '!D17","v":0},{"$f":"'III. Other Needs '!E17","v":0},0,{"$f":"'III. Other Needs '!G17","v":0}]
[{"$f":"'III. Other Needs '!$B$2","v":"Section III. Other Needs Training - Non Mission Critical"},{"$f":"'III. Other Needs '!B18","v":0},{"$f":"'III. Other Needs '!C18","v":0},{"$f":"'III. Other Needs '!D18","v":0},{"$f":"'III. Other Needs '!E18","v":0},0,{"$f":"'III. Other Needs '!G18","v":0}]
[{"$f":"'III. Other Needs '!$B$2","v":"Section III. Other Needs Training - Non Mission Critical"},{"$f":"'III. Other Needs '!B19","v":0},{"$f":"'III. Other Needs '!C19","v":0},{"$f":"'III. Other Needs '!D19","v":0},{"$f":"'III. Other Needs '!E19","v":0},0,{"$f":"'III. Other Needs '!G19","v":0}]
[{"$f":"'III. Other Needs '!$B$2","v":"Section III. Other Needs Training - Non Mission Critical"},{"$f":"'III. Other Needs '!B20","v":0},{"$f":"'III. Other Needs '!C20","v":0},{"$f":"'III. Other Needs '!D20","v":0},{"$f":"'III. Other Needs '!E20","v":0},0,{"$f":"'III. Other Needs '!G20","v":0}]
[{"$f":"'III. Other Needs '!$B$2","v":"Section III. Other Needs Training - Non Mission Critical"},{"$f":"'III. Other Needs '!B21","v":0},{"$f":"'III. Other Needs '!C21","v":0},{"$f":"'III. Other Needs '!D21","v":0},{"$f":"'III. Other Needs '!E21","v":0},0,{"$f":"'III. Other Needs '!G21","v":0}]
[{"$f":"'III. Other Needs '!$B$2","v":"Section III. Other Needs Training - Non Mission Critical"},{"$f":"'III. Other Needs '!B22","v":0},{"$f":"'III. Other Needs '!C22","v":0},{"$f":"'III. Other Needs '!D22","v":0},{"$f":"'III. Other Needs '!E22","v":0},0,{"$f":"'III. Other Needs '!G22","v":0}]
[{"$f":"'III. Other Needs '!$B$2","v":"Section III. Other Needs Training - Non Mission Critical"},{"$f":"'III. Other Needs '!B23","v":0},{"$f":"'III. Other Needs '!C23","v":0},{"$f":"'III. Other Needs '!D23","v":0},{"$f":"'III. Other Needs '!E23","v":0},0,{"$f":"'III. Other Needs '!G23","v":0}]
[{"$f":"'III. Other Needs '!$B$2","v":"Section III. Other Needs Training - Non Mission Critical"},{"$f":"'III. Other Needs '!B24","v":0},{"$f":"'III. Other Needs '!C24","v":0},{"$f":"'III. Other Needs '!D24","v":0},{"$f":"'III. Other Needs '!E24","v":0},0,{"$f":"'III. Other Needs '!G24","v":0}]
[{"$f":"'III. Other Needs '!$B$2","v":"Section III. Other Needs Training - Non Mission Critical"},{"$f":"'III. Other Needs '!B25","v":0},{"$f":"'III. Other Needs '!C25","v":0},{"$f":"'III. Other Needs '!D25","v":0},{"$f":"'III. Other Needs '!E25","v":0},0,{"$f":"'III. Other Needs '!G25","v":0}]
[{"$f":"'III. Other Needs '!$B$2","v":"Section III. Other Needs Training - Non Mission Critical"},{"$f":"'III. Other Needs '!B26","v":0},{"$f":"'III. Other Needs '!C26","v":0},{"$f":"'III. Other Needs '!D26","v":0},{"$f":"'III. Other Needs '!E26","v":0},0,{"$f":"'III. Other Needs '!G26","v":0}]
[{"$f":"'III. Other Needs '!$B$2","v":"Section III. Other Needs Training - Non Mission Critical"},{"$f":"'III. Other Needs '!B27","v":0},{"$f":"'III. Other Needs '!C27","v":0},{"$f":"'III. Other Needs '!D27","v":0},{"$f":"'III. Other Needs '!E27","v":0},0,{"$f":"'III. Other Needs '!G27","v":0}]
[{"$f":"'III. Other Needs '!$B$2","v":"Section III. Other Needs Training - Non Mission Critical"},{"$f":"'III. Other Needs '!B28","v":0},{"$f":"'III. Other Needs '!C28","v":0},{"$f":"'III. Other Needs '!D28","v":0},{"$f":"'III. Other Needs '!E28","v":0},0,{"$f":"'III. Other Needs '!G28","v":0}]
[{"$f":"'III. Other Needs '!$B$2","v":"Section III. Other Needs Training - Non Mission Critical"},{"$f":"'III. Other Needs '!B29","v":0},{"$f":"'III. Other Needs '!C29","v":0},{"$f":"'III. Other Needs '!D29","v":0},{"$f":"'III. Other Needs '!E29","v":0},0,{"$f":"'III. Other Needs '!G29","v":0}]
[{"$f":"'III. Other Needs '!$B$2","v":"Section III. Other Needs Training - Non Mission Critical"},{"$f":"'III. Other Needs '!B30","v":0},{"$f":"'III. Other Needs '!C30","v":0},{"$f":"'III. Other Needs '!D30","v":0},{"$f":"'III. Other Needs '!E30","v":0},0,{"$f":"'III. Other Needs '!G30","v":0}]
[{"$f":"'III. Other Needs '!$B$2","v":"Section III. Other Needs Training - Non Mission Critical"},{"$f":"'III. Other Needs '!B31","v":0},{"$f":"'III. Other Needs '!C31","v":0},{"$f":"'III. Other Needs '!D31","v":0},{"$f":"'III. Other Needs '!E31","v":0},0,{"$f":"'III. Other Needs '!G31","v":0}]
[{"$f":"'III. Other Needs '!$B$2","v":"Section III. Other Needs Training - Non Mission Critical"},{"$f":"'III. Other Needs '!B32","v":0},{"$f":"'III. Other Needs '!C32","v":0},{"$f":"'III. Other Needs '!D32","v":0},{"$f":"'III. Other Needs '!E32","v":0},0,{"$f":"'III. Other Needs '!G32","v":0}]
[{"$f":"'III. Other Needs '!$B$2","v":"Section III. Other Needs Training - Non Mission Critical"},{"$f":"'III. Other Needs '!B33","v":0},{"$f":"'III. Other Needs '!C33","v":0},{"$f":"'III. Other Needs '!D33","v":0},{"$f":"'III. Other Needs '!E33","v":0},0,{"$f":"'III. Other Needs '!G33","v":0}]
[{"$f":"'III. Other Needs '!$B$2","v":"Section III. Other Needs Training - Non Mission Critical"},{"$f":"'III. Other Needs '!B34","v":0},{"$f":"'III. Other Needs '!C34","v":0},{"$f":"'III. Other Needs '!D34","v":0},{"$f":"'III. Other Needs '!E34","v":0},0,{"$f":"'III. Other Needs '!G34","v":0}]
[{"$f":"'III. Other Needs '!$B$2","v":"Section III. Other Needs Training - Non Mission Critical"},{"$f":"'III. Other Needs '!B35","v":0},{"$f":"'III. Other Needs '!C35","v":0},{"$f":"'III. Other Needs '!D35","v":0},{"$f":"'III. Other Needs '!E35","v":0},0,{"$f":"'III. Other Needs '!G35","v":0}]
[{"$f":"'III. Other Needs '!$B$2","v":"Section III. Other Needs Training - Non Mission Critical"},{"$f":"'III. Other Needs '!B36","v":0},{"$f":"'III. Other Needs '!C36","v":0},{"$f":"'III. Other Needs '!D36","v":0},{"$f":"'III. Other Needs '!E36","v":0},0,{"$f":"'III. Other Needs '!G36","v":0}]
[{"$f":"'III. Other Needs '!$B$2","v":"Section III. Other Needs Training - Non Mission Critical"},{"$f":"'III. Other Needs '!B37","v":0},{"$f":"'III. Other Needs '!C37","v":0},{"$f":"'III. Other Needs '!D37","v":0},{"$f":"'III. Other Needs '!E37","v":0},0,{"$f":"'III. Other Needs '!G37","v":0}]
[{"$f":"'III. Other Needs '!$B$2","v":"Section III. Other Needs Training - Non Mission Critical"},{"$f":"'III. Other Needs '!B38","v":0},{"$f":"'III. Other Needs '!C38","v":0},{"$f":"'III. Other Needs '!D38","v":0},{"$f":"'III. Other Needs '!E38","v":0},0,{"$f":"'III. Other Needs '!G38","v":0}]
[{"$f":"'III. Other Needs '!$B$2","v":"Section III. Other Needs Training - Non Mission Critical"},{"$f":"'III. Other Needs '!B39","v":0},{"$f":"'III. Other Needs '!C39","v":0},{"$f":"'III. Other Needs '!D39","v":0},{"$f":"'III. Other Needs '!E39","v":0},0,{"$f":"'III. Other Needs '!G39","v":0}]
[{"$f":"'III. Other Needs '!$B$2","v":"Section III. Other Needs Training - Non Mission Critical"},{"$f":"'III. Other Needs '!B40","v":0},{"$f":"'III. Other Needs '!C40","v":0},{"$f":"'III. Other Needs '!D40","v":0},{"$f":"'III. Other Needs '!E40","v":0},0,{"$f":"'III. Other Needs '!G40","v":0}]
[{"$f":"'III. Other Needs '!$B$2","v":"Section III. Other Needs Training - Non Mission Critical"},{"$f":"'III. Other Needs '!B41","v":0},{"$f":"'III. Other Needs '!C41","v":0},{"$f":"'III. Other Needs '!D41","v":0},{"$f":"'III. Other Needs '!E41","v":0},0,{"$f":"'III. Other Needs '!G41","v":0}]
[{"$f":"'III. Other Needs '!$B$2","v":"Section III. Other Needs Training - Non Mission Critical"},{"$f":"'III. Other Needs '!B42","v":0},{"$f":"'III. Other Needs '!C42","v":0},{"$f":"'III. Other Needs '!D42","v":0},{"$f":"'III. Other Needs '!E42","v":0},0,{"$f":"'III. Other Needs '!G42","v":0}]
[{"$f":"'III. Other Needs '!$B$2","v":"Section III. Other Needs Training - Non Mission Critical"},{"$f":"'III. Other Needs '!B43","v":0},{"$f":"'III. Other Needs '!C43","v":0},{"$f":"'III. Other Needs '!D43","v":0},{"$f":"'III. Other Needs '!E43","v":0},0,{"$f":"'III. Other Needs '!G43","v":0}]
[{"$f":"'III. Other Needs '!$B$2","v":"Section III. Other Needs Training - Non Mission Critical"},{"$f":"'III. Other Needs '!B44","v":0},{"$f":"'III. Other Needs '!C44","v":0},{"$f":"'III. Other Needs '!D44","v":0},{"$f":"'III. Other Needs '!E44","v":0},0,{"$f":"'III. Other Needs '!G44","v":0}]
[{"$f":"'III. Other Needs '!$B$2","v":"Section III. Other Needs Training - Non Mission Critical"},{"$f":"'III. Other Needs '!B45","v":0},{"$f":"'III. Other Needs '!C45","v":0},{"$f":"'III. Other Needs '!D45","v":0},{"$f":"'III. Other Needs '!E45","v":0},0,{"$f":"'III. Other Needs '!G45","v":0}]
[{"$f":"'III. Other Needs '!$B$2","v":"Section III. Other Needs Training - Non Mission Critical"},{"$f":"'III. Other Needs '!B46","v":0},{"$f":"'III. Other Needs '!C46","v":0},{"$f":"'III. Other Needs '!D46","v":0},{"$f":"'III. Other Needs '!E46","v":0},0,{"$f":"'III. Other Needs '!G46","v":0}]
[{"$f":"'III. Other Needs '!$B$2","v":"Section III. Other Needs Training - Non Mission Critical"},{"$f":"'III. Other Needs '!B47","v":0},{"$f":"'III. Other Needs '!C47","v":0},{"$f":"'III. Other Needs '!D47","v":0},{"$f":"'III. Other Needs '!E47","v":0},0,{"$f":"'III. Other Needs '!G47","v":0}]
[{"$f":"'III. Other Needs '!$B$2","v":"Section III. Other Needs Training - Non Mission Critical"},{"$f":"'III. Other Needs '!B48","v":0},{"$f":"'III. Other Needs '!C48","v":0},{"$f":"'III. Other Needs '!D48","v":0},{"$f":"'III. Other Needs '!E48","v":0},0,{"$f":"'III. Other Needs '!G48","v":0}]
[{"$f":"'III. Other Needs '!$B$2","v":"Section III. Other Needs Training - Non Mission Critical"},{"$f":"'III. Other Needs '!B49","v":0},{"$f":"'III. Other Needs '!C49","v":0},{"$f":"'III. Other Needs '!D49","v":0},{"$f":"'III. Other Needs '!E49","v":0},0,{"$f":"'III. Other Needs '!G49","v":0}]
[{"$f":"'III. Other Needs '!$B$2","v":"Section III. Other Needs Training - Non Mission Critical"},{"$f":"'III. Other Needs '!B50","v":0},{"$f":"'III. Other Needs '!C50","v":0},{"$f":"'III. Other Needs '!D50","v":0},{"$f":"'III. Other Needs '!E50","v":0},0,{"$f":"'III. Other Needs '!G50","v":0}]
[{"$f":"'III. Other Needs '!$B$2","v":"Section III. Other Needs Training - Non Mission Critical"},{"$f":"'III. Other Needs '!B51","v":0},{"$f":"'III. Other Needs '!C51","v":0},{"$f":"'III. Other Needs '!D51","v":0},{"$f":"'III. Other Needs '!E51","v":0},0,{"$f":"'III. Other Needs '!G51","v":0}]
[{"$f":"'III. Other Needs '!$B$2","v":"Section III. Other Needs Training - Non Mission Critical"},{"$f":"'III. Other Needs '!B52","v":0},{"$f":"'III. Other Needs '!C52","v":0},{"$f":"'III. Other Needs '!D52","v":0},{"$f":"'III. Other Needs '!E52","v":0},0,{"$f":"'III. Other Needs '!G52","v":0}]
[{"$f":"'III. Other Needs '!$B$2","v":"Section III. Other Needs Training - Non Mission Critical"},{"$f":"'III. Other Needs '!B53","v":0},{"$f":"'III. Other Needs '!C53","v":0},{"$f":"'III. Other Needs '!D53","v":0},{"$f":"'III. Other Needs '!E53","v":0},0,{"$f":"'III. Other Needs '!G53","v":0}]
[{"$f":"'III. Other Needs '!$B$2","v":"Section III. Other Needs Training - Non Mission Critical"},{"$f":"'III. Other Needs '!B54","v":0},{"$f":"'III. Other Needs '!C54","v":0},{"$f":"'III. Other Needs '!D54","v":0},{"$f":"'III. Other Needs '!E54","v":0},0,{"$f":"'III. Other Needs '!G54","v":0}]
[{"$f":"'III. Other Needs '!$B$2","v":"Section III. Other Needs Training - Non Mission Critical"},{"$f":"'III. Other Needs '!B55","v":0},{"$f":"'III. Other Needs '!C55","v":0},{"$f":"'III. Other Needs '!D55","v":0},{"$f":"'III. Other Needs '!E55","v":0},0,{"$f":"'III. Other Needs '!G55","v":0}]
[{"$f":"'III. Other Needs '!$B$2","v":"Section III. Other Needs Training - Non Mission Critical"},{"$f":"'III. Other Needs '!B56","v":0},{"$f":"'III. Other Needs '!C56","v":0},{"$f":"'III. Other Needs '!D56","v":0},{"$f":"'III. Other Needs '!E56","v":0},0,{"$f":"'III. Other Needs '!G56","v":0}]
[{"$f":"'III. Other Needs '!$B$2","v":"Section III. Other Needs Training - Non Mission Critical"},{"$f":"'III. Other Needs '!B57","v":0},{"$f":"'III. Other Needs '!C57","v":0},{"$f":"'III. Other Needs '!D57","v":0},{"$f":"'III. Other Needs '!E57","v":0},0,{"$f":"'III. Other Needs '!G57","v":0}]
[{"$f":"'III. Other Needs '!$B$2","v":"Section III. Other Needs Training - Non Mission Critical"},{"$f":"'III. Other Needs '!B58","v":0},{"$f":"'III. Other Needs '!C58","v":0},{"$f":"'III. Other Needs '!D58","v":0},{"$f":"'III. Other Needs '!E58","v":0},0,{"$f":"'III. Other Needs '!G58","v":0}]
[{"$f":"'III. Other Needs '!$B$2","v":"Section III. Other Needs Training - Non Mission Critical"},{"$f":"'III. Other Needs '!B59","v":0},{"$f":"'III. Other Needs '!C59","v":0},{"$f":"'III. Other Needs '!D59","v":0},{"$f":"'III. Other Needs '!E59","v":0},{"$f":"PRODUCT(D133:E133)","v":0},{"$f":"'III. Other Needs '!G59","v":0}]
[{"$f":"'III. Other Needs '!$B$2","v":"Section III. Other Needs Training - Non Mission Critical"},{"$f":"'III. Other Needs '!B60","v":0},{"$f":"'III. Other Needs '!C60","v":0},{"$f":"'III. Other Needs '!D60","v":0},{"$f":"'III. Other Needs '!E60","v":0},0,{"$f":"'III. Other Needs '!G60","v":0}]
[{"$f":"'III. Other Needs '!$B$2","v":"Section III. Other Needs Training - Non Mission Critical"},{"$f":"'III. Other Needs '!B61","v":0},{"$f":"'III. Other Needs '!C61","v":0},{"$f":"'III. Other Needs '!D61","v":0},{"$f":"'III. Other Needs '!E61","v":0},0,{"$f":"'III. Other Needs '!G61","v":0}]
[{"$f":"'III. Other Needs '!$B$2","v":"Section III. Other Needs Training - Non Mission Critical"},{"$f":"'III. Other Needs '!B62","v":0},{"$f":"'III. Other Needs '!C62","v":0},{"$f":"'III. Other Needs '!D62","v":0},{"$f":"'III. Other Needs '!E62","v":0},0,{"$f":"'III. Other Needs '!G62","v":0}]
[{"$f":"'III. Other Needs '!$B$2","v":"Section III. Other Needs Training - Non Mission Critical"},{"$f":"'III. Other Needs '!B63","v":0},{"$f":"'III. Other Needs '!C63","v":0},{"$f":"'III. Other Needs '!D63","v":0},{"$f":"'III. Other Needs '!E63","v":0},0,{"$f":"'III. Other Needs '!G63","v":0}]
[{"$f":"'III. Other Needs '!$B$2","v":"Section III. Other Needs Training - Non Mission Critical"},{"$f":"'III. Other Needs '!B64","v":0},{"$f":"'III. Other Needs '!C64","v":0},{"$f":"'III. Other Needs '!D64","v":0},{"$f":"'III. Other Needs '!E64","v":0},0,{"$f":"'III. Other Needs '!G64","v":0}]
[{"$f":"'III. Other Needs '!$B$2","v":"Section III. Other Needs Training - Non Mission Critical"},{"$f":"'III. Other Needs '!B65","v":0},{"$f":"'III. Other Needs '!C65","v":0},{"$f":"'III. Other Needs '!D65","v":0},{"$f":"'III. Other Needs '!E65","v":0},0,{"$f":"'III. Other Needs '!G65","v":0}]
[{"$f":"'III. Other Needs '!$B$2","v":"Section III. Other Needs Training - Non Mission Critical"},{"$f":"'III. Other Needs '!B66","v":0},{"$f":"'III. Other Needs '!C66","v":0},{"$f":"'III. Other Needs '!D66","v":0},{"$f":"'III. Other Needs '!E66","v":0},0,{"$f":"'III. Other Needs '!G66","v":0}]
[{"$f":"'III. Other Needs '!$B$2","v":"Section III. Other Needs Training - Non Mission Critical"},{"$f":"'III. Other Needs '!B67","v":0},{"$f":"'III. Other Needs '!C67","v":0},{"$f":"'III. Other Needs '!D67","v":0},{"$f":"'III. Other Needs '!E67","v":0},0,{"$f":"'III. Other Needs '!G67","v":0}]
[{"$f":"'III. Other Needs '!$B$2","v":"Section III. Other Needs Training - Non Mission Critical"},{"$f":"'III. Other Needs '!B68","v":0},{"$f":"'III. Other Needs '!C68","v":0},{"$f":"'III. Other Needs '!D68","v":0},{"$f":"'III. Other Needs '!E68","v":0},0,{"$f":"'III. Other Needs '!G68","v":0}]
[{"$f":"'III. Other Needs '!$B$2","v":"Section III. Other Needs Training - Non Mission Critical"},{"$f":"'III. Other Needs '!B69","v":0},{"$f":"'III. Other Needs '!C69","v":0},{"$f":"'III. Other Needs '!D69","v":0},{"$f":"'III. Other Needs '!E69","v":0},0,{"$f":"'III. Other Needs '!G69","v":0}]
[{"$f":"'III. Other Needs '!$B$2","v":"Section III. Other Needs Training - Non Mission Critical"},{"$f":"'III. Other Needs '!B70","v":0},{"$f":"'III. Other Needs '!C70","v":0},{"$f":"'III. Other Needs '!D70","v":0},{"$f":"'III. Other Needs '!E70","v":0},0,{"$f":"'III. Other Needs '!G70","v":0}]
[{"$f":"'III. Other Needs '!$B$2","v":"Section III. Other Needs Training - Non Mission Critical"},{"$f":"'III. Other Needs '!B71","v":0},{"$f":"'III. Other Needs '!C71","v":0},{"$f":"'III. Other Needs '!D71","v":0},{"$f":"'III. Other Needs '!E71","v":0},0,{"$f":"'III. Other Needs '!G71","v":0}]
[{"$f":"'III. Other Needs '!$B$2","v":"Section III. Other Needs Training - Non Mission Critical"},{"$f":"'III. Other Needs '!B72","v":0},{"$f":"'III. Other Needs '!C72","v":0},{"$f":"'III. Other Needs '!D72","v":0},{"$f":"'III. Other Needs '!E72","v":0},0,{"$f":"'III. Other Needs '!G72","v":0}]
[{"$f":"'III. Other Needs '!$B$2","v":"Section III. Other Needs Training - Non Mission Critical"},{"$f":"'III. Other Needs '!B73","v":0},{"$f":"'III. Other Needs '!C73","v":0},{"$f":"'III. Other Needs '!D73","v":0},{"$f":"'III. Other Needs '!E73","v":0},0,{"$f":"'III. Other Needs '!G73","v":0}]
[{"$f":"'III. Other Needs '!$B$2","v":"Section III. Other Needs Training - Non Mission Critical"},{"$f":"'III. Other Needs '!B74","v":0},{"$f":"'III. Other Needs '!C74","v":0},{"$f":"'III. Other Needs '!D74","v":0},{"$f":"'III. Other Needs '!E74","v":0},0,{"$f":"'III. Other Needs '!G74","v":0}]
[{"$f":"'III. Other Needs '!$B$2","v":"Section III. Other Needs Training - Non Mission Critical"},{"$f":"'III. Other Needs '!B75","v":0},{"$f":"'III. Other Needs '!C75","v":0},{"$f":"'III. Other Needs '!D75","v":0},{"$f":"'III. Other Needs '!E75","v":0},0,{"$f":"'III. Other Needs '!G75","v":0}]
[{"$f":"'III. Other Needs '!$B$2","v":"Section III. Other Needs Training - Non Mission Critical"},{"$f":"'III. Other Needs '!B76","v":0},{"$f":"'III. Other Needs '!C76","v":0},{"$f":"'III. Other Needs '!D76","v":0},{"$f":"'III. Other Needs '!E76","v":0},0,{"$f":"'III. Other Needs '!G76","v":0}]
[{"$f":"'III. Other Needs '!$B$2","v":"Section III. Other Needs Training - Non Mission Critical"},{"$f":"'III. Other Needs '!B77","v":0},{"$f":"'III. Other Needs '!C77","v":0},{"$f":"'III. Other Needs '!D77","v":0},{"$f":"'III. Other Needs '!E77","v":0},0,{"$f":"'III. Other Needs '!G77","v":0}]
[{"$f":"'III. Other Needs '!$B$2","v":"Section III. Other Needs Training - Non Mission Critical"},{"$f":"'III. Other Needs '!B78","v":0},{"$f":"'III. Other Needs '!C78","v":0},{"$f":"'III. Other Needs '!D78","v":0},{"$f":"'III. Other Needs '!E78","v":0},0,{"$f":"'III. Other Needs '!G78","v":0}]
[{"$f":"'III. Other Needs '!$B$2","v":"Section III. Other Needs Training - Non Mission Critical"},{"$f":"'III. Other Needs '!B79","v":0},{"$f":"'III. Other Needs '!C79","v":0},{"$f":"'III. Other Needs '!D79","v":0},{"$f":"'III. Other Needs '!E79","v":0},0,{"$f":"'III. Other Needs '!G79","v":0}]
[{"$f":"'III. Other Needs '!$B$2","v":"Section III. Other Needs Training - Non Mission Critical"},{"$f":"'III. Other Needs '!B80","v":0},{"$f":"'III. Other Needs '!C80","v":0},{"$f":"'III. Other Needs '!D80","v":0},{"$f":"'III. Other Needs '!E80","v":0},0,{"$f":"'III. Other Needs '!G80","v":0}]
[{"$f":"'III. Other Needs '!$B$2","v":"Section III. Other Needs Training - Non Mission Critical"},{"$f":"'III. Other Needs '!B81","v":0},{"$f":"'III. Other Needs '!C81","v":0},{"$f":"'III. Other Needs '!D81","v":0},{"$f":"'III. Other Needs '!E81","v":0},0,{"$f":"'III. Other Needs '!G81","v":0}]
[{"$f":"'IV. Development Programs'!$B$2","v":"Section IV. Development Programs"},"N/A",{"$f":"'IV. Development Programs'!B5","v":"Aspiring Leader Program (ALP)\nGS 5-7 federal employees\nEntry-level employees, GS 4-6 federal employees\nGraduate School\nTwo Month Program\nTuition: $2,645* "},{"$f":"'IV. Development Programs'!C5","v":0},{"$f":"'IV. Development Programs'!D5","v":0},{"$f":"PRODUCT(D156:E156)","v":0},{"$f":"'IV. Development Programs'!F5","v":0}]
[{"$f":"'IV. Development Programs'!$B$2","v":"Section IV. Development Programs"},"N/A",{"$f":"'IV. Development Programs'!B6","v":"New Leader Program (NLP) \nGS 7-11 federal employees; \nGraduate School\nSix Month Program\nTuition: $3,245*"},{"$f":"'IV. Development Programs'!C6","v":0},{"$f":"'IV. Development Programs'!D6","v":0},{"$f":"PRODUCT(D157:E157)","v":0},{"$f":"'IV. Development Programs'!F6","v":0}]
[{"$f":"'IV. Development Programs'!$B$2","v":"Section IV. Development Programs"},"N/A",{"$f":"'IV. Development Programs'!B7","v":"Executive Leadership Program (ELP) \nGS 11-13 federal employees\nGraduate School\nNine Month Program\nTuition: $4,445*"},{"$f":"'IV. Development Programs'!C7","v":0},{"$f":"'IV. Development Programs'!D7","v":0},0,{"$f":"'IV. Development Programs'!F7","v":0}]
[{"$f":"'IV. Development Programs'!$B$2","v":"Section IV. Development Programs"},"N/A",{"$f":"'IV. Development Programs'!B8","v":"Executive Potential Program (EPP) \nSenior-level employees\nGS-13-15 federal employees\nGraduate School\nYear Long Program\nTuition: $6,525*"},{"$f":"'IV. Development Programs'!C8","v":0},{"$f":"'IV. Development Programs'!D8","v":0},0,{"$f":"'IV. Development Programs'!F8","v":0}]
[{"$f":"'IV. Development Programs'!$B$2","v":"Section IV. Development Programs"},"N/A",{"$f":"'IV. Development Programs'!B9","v":"Excellence in Government and e-Government Fellows\nSenior-level employees, GS-14-15 federal employees\nPartnership for Public Service\nYear Long Program\nTuition: $9,900, plus approximately\n$2,900 in estimated travel costs*"},{"$f":"'IV. Development Programs'!C9","v":0},{"$f":"'IV. Development Programs'!D9","v":0},0,{"$f":"'IV. Development Programs'!F9","v":0}]
[{"$f":"'IV. Development Programs'!$B$2","v":"Section IV. Development Programs"},"N/A",{"$f":"'IV. Development Programs'!B10","v":"Leadership for a Democratic Society \nSenior-level employees,GS 15-SES members\nOffice of Personnel Management\n*Call for organizational participation is typically done in\nmid- to late June annually\nOne Month Program\nTuition: $19,500*"},{"$f":"'IV. Development Programs'!C10","v":0},{"$f":"'IV. Development Programs'!D10","v":0},0,{"$f":"'IV. Development Programs'!F10","v":0}]
[{"$f":"'IV. Development Programs'!$B$2","v":"Section IV. Development Programs"},"N/A",{"$f":"'IV. Development Programs'!B11","v":"LEGIS Congressional Fellows Program\nSenior-level employees, GS-13 & above, 7+ years of management experience\nBrookings Institute\n7-month program: $4,525*\n12-month program: $6,135*"},{"$f":"'IV. Development Programs'!C11","v":0},{"$f":"'IV. Development Programs'!D11","v":0},0,{"$f":"'IV. Development Programs'!F11","v":0}]
[{"$f":"'IV. Development Programs'!$B$2","v":"Section IV. Development Programs"},"N/A",{"$f":"'IV. Development Programs'!B12","v":"U.S. Citizen; Current federal employee with 2+ years consecutive service immediately preceding the application deadline, (no grade restrictions necessarily apply)\n2-year service contract required; liability insurance required\nTwo Year Program\nCall for cost details"},{"$f":"'IV. Development Programs'!C12","v":0},{"$f":"'IV. Development Programs'!D12","v":0},0,{"$f":"'IV. Development Programs'!F12","v":0}]
[{"$f":"'IV. Development Programs'!$B$2","v":"Section IV. Development Programs"},"N/A",{"$f":"'IV. Development Programs'!B13","v":"Mansfield Fellowship Program\nU.S. Citizen; Current federal employee with 2+ years consecutive service immediately preceding the application deadline, (no grade restrictions necessarily apply)\n2-year service contract required; liability insurance required\nTwo Year Program\nCall for cost details"},{"$f":"'IV. Development Programs'!C13","v":0},{"$f":"'IV. Development Programs'!D13","v":0},0,{"$f":"'IV. Development Programs'!F13","v":0}]
[{"$f":"'IV. Development Programs'!$B$2","v":"Section IV. Development Programs"},"N/A",{"$f":"'IV. Development Programs'!B14","v":"National Security Studies Programs (NSSP)\n(Includes several programs) Senior-level employees, GS-14-15 federal employees\n10+ years of government service\nNational Defense University\nTen Month Residential Program\nNo direct training costs"},{"$f":"'IV. Development Programs'!C14","v":0},{"$f":"'IV. Development Programs'!D14","v":0},0,{"$f":"'IV. Development Programs'!F14","v":0}]
[{"$f":"'IV. Development Programs'!$B$2","v":"Section IV. Development Programs"},"N/A",{"$f":"'IV. Development Programs'!B15","v":"Industrial College of Armed Forces (ICAF)\nGS-14-15 federal employees\n10+ years of government service\nNational Defense University"},{"$f":"'IV. Development Programs'!C15","v":0},{"$f":"'IV. Development Programs'!D15","v":0},0,{"$f":"'IV. Development Programs'!F15","v":0}]
[{"$f":"'IV. Development Programs'!$B$2","v":"Section IV. Development Programs"},"N/A",{"$f":"'IV. Development Programs'!B16","v":"National War College (NWC)\nGS-14-15 federal employees\n10+ years of government service\nNational Defense University"},{"$f":"'IV. Development Programs'!C16","v":0},{"$f":"'IV. Development Programs'!D16","v":0},0,{"$f":"'IV. Development Programs'!F16","v":0}]
[{"$f":"'IV. Development Programs'!$B$2","v":"Section IV. Development Programs"},"N/A",{"$f":"'IV. Development Programs'!B17","v":"College of International Security Affairs (CISA)\nGS-13-15 federal employees\n10+ years of government service\nNational Defense University"},{"$f":"'IV. Development Programs'!C17","v":0},{"$f":"'IV. Development Programs'!D17","v":0},0,{"$f":"'IV. Development Programs'!F17","v":0}]
[{"$f":"'IV. Development Programs'!$B$2","v":"Section IV. Development Programs"},"N/A",{"$f":"'IV. Development Programs'!B18","v":"Senior Executive Fellows Program\nSenior-level employees, GS-14 and Above\nJohn F. Kennedy School of Government\n(Harvard University)\nOne Month Program\nTuition: $18,300*"},{"$f":"'IV. Development Programs'!C18","v":0},{"$f":"'IV. Development Programs'!D18","v":0},0,{"$f":"'IV. Development Programs'!F18","v":0}]
[{"$f":"'V. Competency'!$B$2","v":"Section V. General Competencies"},{"$f":"'V. Competency'!B5","v":"Integrity/Honesty"},{"$f":"'V. Competency'!C5","v":0},{"$f":"'V. Competency'!D5","v":0},{"$f":"'V. Competency'!E5","v":0},{"$f":"PRODUCT(D170:E170)","v":0},{"$f":"'V. Competency'!G5","v":0}]
[{"$f":"'V. Competency'!$B$2","v":"Section V. General Competencies"},{"$f":"'V. Competency'!B6","v":"Public Service Motivation"},{"$f":"'V. Competency'!C6","v":0},{"$f":"'V. Competency'!D6","v":0},{"$f":"'V. Competency'!E6","v":0},0,{"$f":"'V. Competency'!G6","v":0}]
[{"$f":"'V. Competency'!$B$2","v":"Section V. General Competencies"},{"$f":"'V. Competency'!B7","v":"Interpersonal Skills"},{"$f":"'V. Competency'!C7","v":0},{"$f":"'V. Competency'!D7","v":0},{"$f":"'V. Competency'!E7","v":0},0,{"$f":"'V. Competency'!G7","v":0}]
[{"$f":"'V. Competency'!$B$2","v":"Section V. General Competencies"},{"$f":"'V. Competency'!B8","v":"Oral Communication"},{"$f":"'V. Competency'!C8","v":0},{"$f":"'V. Competency'!D8","v":0},{"$f":"'V. Competency'!E8","v":0},0,{"$f":"'V. Competency'!G8","v":0}]
[{"$f":"'V. Competency'!$B$2","v":"Section V. General Competencies"},{"$f":"'V. Competency'!B9","v":"Written Communication"},{"$f":"'V. Competency'!C9","v":0},{"$f":"'V. Competency'!D9","v":0},{"$f":"'V. Competency'!E9","v":0},0,{"$f":"'V. Competency'!G9","v":0}]
[{"$f":"'V. Competency'!$B$2","v":"Section V. General Competencies"},{"$f":"'V. Competency'!B10","v":"Continual Learning"},{"$f":"'V. Competency'!C10","v":0},{"$f":"'V. Competency'!D10","v":0},{"$f":"'V. Competency'!E10","v":0},0,{"$f":"'V. Competency'!G10","v":0}]
[{"$f":"'V. Competency'!$B$2","v":"Section V. General Competencies"},{"$f":"'V. Competency'!B15","v":"Creativity and Innovation"},{"$f":"'V. Competency'!C15","v":0},{"$f":"'V. Competency'!D15","v":0},{"$f":"'V. Competency'!E15","v":0},{"$f":"PRODUCT(D176:E176)","v":0},{"$f":"'V. Competency'!G15","v":0}]
[{"$f":"'V. Competency'!$B$2","v":"Section V. General Competencies"},{"$f":"'V. Competency'!B16","v":"External Awareness"},{"$f":"'V. Competency'!C16","v":0},{"$f":"'V. Competency'!D16","v":0},{"$f":"'V. Competency'!E16","v":0},0,{"$f":"'V. Competency'!G16","v":0}]
[{"$f":"'V. Competency'!$B$2","v":"Section V. General Competencies"},{"$f":"'V. Competency'!B17","v":"Flexibility"},{"$f":"'V. Competency'!C17","v":0},{"$f":"'V. Competency'!D17","v":0},{"$f":"'V. Competency'!E17","v":0},0,{"$f":"'V. Competency'!G17","v":0}]
[{"$f":"'V. Competency'!$B$2","v":"Section V. General Competencies"},{"$f":"'V. Competency'!B18","v":"Resilience"},{"$f":"'V. Competency'!C18","v":0},{"$f":"'V. Competency'!D18","v":0},{"$f":"'V. Competency'!E18","v":0},0,{"$f":"'V. Competency'!G18","v":0}]
[{"$f":"'V. Competency'!$B$2","v":"Section V. General Competencies"},{"$f":"'V. Competency'!B19","v":"Strategic Thinking"},{"$f":"'V. Competency'!C19","v":0},{"$f":"'V. Competency'!D19","v":0},{"$f":"'V. Competency'!E19","v":0},0,{"$f":"'V. Competency'!G19","v":0}]
[{"$f":"'V. Competency'!$B$2","v":"Section V. General Competencies"},{"$f":"'V. Competency'!B20","v":"Vision"},{"$f":"'V. Competency'!C20","v":0},{"$f":"'V. Competency'!D20","v":0},{"$f":"'V. Competency'!E20","v":0},0,{"$f":"'V. Competency'!G20","v":0}]
[{"$f":"'V. Competency'!$B$2","v":"Section V. General Competencies"},{"$f":"'V. Competency'!B22","v":"Conflict Management"},{"$f":"'V. Competency'!C22","v":0},{"$f":"'V. Competency'!D22","v":0},{"$f":"'V. Competency'!E22","v":0},0,{"$f":"'V. Competency'!G22","v":0}]
[{"$f":"'V. Competency'!$B$2","v":"Section V. General Competencies"},{"$f":"'V. Competency'!B23","v":"Leveraging Diversity"},{"$f":"'V. Competency'!C23","v":0},{"$f":"'V. Competency'!D23","v":0},{"$f":"'V. Competency'!E23","v":0},0,{"$f":"'V. Competency'!G23","v":0}]
[{"$f":"'V. Competency'!$B$2","v":"Section V. General Competencies"},{"$f":"'V. Competency'!B24","v":"Developing Others"},{"$f":"'V. Competency'!C24","v":0},{"$f":"'V. Competency'!D24","v":0},{"$f":"'V. Competency'!E24","v":0},0,{"$f":"'V. Competency'!G24","v":0}]
[{"$f":"'V. Competency'!$B$2","v":"Section V. General Competencies"},{"$f":"'V. Competency'!B25","v":"Team Building"},{"$f":"'V. Competency'!C25","v":0},{"$f":"'V. Competency'!D25","v":0},{"$f":"'V. Competency'!E25","v":0},0,{"$f":"'V. Competency'!G25","v":0}]
[{"$f":"'V. Competency'!$B$2","v":"Section V. General Competencies"},{"$f":"'V. Competency'!B27","v":"Accountability"},{"$f":"'V. Competency'!C27","v":0},{"$f":"'V. Competency'!D27","v":0},{"$f":"'V. Competency'!E27","v":0},0,{"$f":"'V. Competency'!G27","v":0}]
[{"$f":"'V. Competency'!$B$2","v":"Section V. General Competencies"},{"$f":"'V. Competency'!B28","v":"Customer Service"},{"$f":"'V. Competency'!C28","v":0},{"$f":"'V. Competency'!D28","v":0},{"$f":"'V. Competency'!E28","v":0},{"$f":"PRODUCT(D187:E187)","v":0},{"$f":"'V. Competency'!G28","v":0}]
[{"$f":"'V. Competency'!$B$2","v":"Section V. General Competencies"},{"$f":"'V. Competency'!B29","v":"Decisiveness"},{"$f":"'V. Competency'!C29","v":0},{"$f":"'V. Competency'!D29","v":0},{"$f":"'V. Competency'!E29","v":0},0,{"$f":"'V. Competency'!G29","v":0}]
[{"$f":"'V. Competency'!$B$2","v":"Section V. General Competencies"},{"$f":"'V. Competency'!B30","v":"Entrepreneurship"},{"$f":"'V. Competency'!C30","v":0},{"$f":"'V. Competency'!D30","v":0},{"$f":"'V. Competency'!E30","v":0},0,{"$f":"'V. Competency'!G30","v":0}]
[{"$f":"'V. Competency'!$B$2","v":"Section V. General Competencies"},{"$f":"'V. Competency'!B31","v":"Problem Solving"},{"$f":"'V. Competency'!C31","v":0},{"$f":"'V. Competency'!D31","v":0},{"$f":"'V. Competency'!E31","v":0},0,{"$f":"'V. Competency'!G31","v":0}]
[{"$f":"'V. Competency'!$B$2","v":"Section V. General Competencies"},{"$f":"'V. Competency'!B32","v":"Technical Credibility"},{"$f":"'V. Competency'!C32","v":0},{"$f":"'V. Competency'!D32","v":0},{"$f":"'V. Competency'!E32","v":0},0,{"$f":"'V. Competency'!G32","v":0}]
[{"$f":"'V. Competency'!$B$2","v":"Section V. General Competencies"},{"$f":"'V. Competency'!B34","v":"Financial Management"},{"$f":"'V. Competency'!C34","v":0},{"$f":"'V. Competency'!D34","v":0},{"$f":"'V. Competency'!E34","v":0},0,{"$f":"'V. Competency'!G34","v":0}]
[{"$f":"'V. Competency'!$B$2","v":"Section V. General Competencies"},{"$f":"'V. Competency'!B35","v":"Human Capital Management"},{"$f":"'V. Competency'!C35","v":0},{"$f":"'V. Competency'!D35","v":0},{"$f":"'V. Competency'!E35","v":0},0,{"$f":"'V. Competency'!G35","v":0}]
[{"$f":"'V. Competency'!$B$2","v":"Section V. General Competencies"},{"$f":"'V. Competency'!B36","v":"Technology Utilization"},{"$f":"'V. Competency'!C36","v":0},{"$f":"'V. Competency'!D36","v":0},{"$f":"'V. Competency'!E36","v":0},0,{"$f":"'V. Competency'!G36","v":0}]
[{"$f":"'V. Competency'!$B$2","v":"Section V. General Competencies"},{"$f":"'V. Competency'!B37","v":"Workplace Safety"},{"$f":"'V. Competency'!C37","v":0},{"$f":"'V. Competency'!D37","v":0},{"$f":"'V. Competency'!E37","v":0},{"$f":"PRODUCT(D195:E195)","v":0},{"$f":"'V. Competency'!G37","v":0}]
[{"$f":"'V. Competency'!$B$2","v":"Section V. General Competencies"},{"$f":"'V. Competency'!B38","v":"Knowledge of DOE Business"},{"$f":"'V. Competency'!C38","v":0},{"$f":"'V. Competency'!D38","v":0},{"$f":"'V. Competency'!E38","v":0},{"$f":"PRODUCT(D196:E196)","v":0},{"$f":"'V. Competency'!G38","v":0}]
[{"$f":"'V. Competency'!$B$2","v":"Section V. General Competencies"},{"$f":"'V. Competency'!B40","v":"Partnering"},{"$f":"'V. Competency'!C40","v":0},{"$f":"'V. Competency'!D40","v":0},{"$f":"'V. Competency'!E40","v":0},{"$f":"PRODUCT(D197:E197)","v":0},{"$f":"'V. Competency'!G40","v":0}]
[{"$f":"'V. Competency'!$B$2","v":"Section V. General Competencies"},{"$f":"'V. Competency'!B41","v":"Political Savvy"},{"$f":"'V. Competency'!C41","v":0},{"$f":"'V. Competency'!D41","v":0},{"$f":"'V. Competency'!E41","v":0},{"$f":"PRODUCT(D198:E198)","v":0},{"$f":"'V. Competency'!G41","v":0}]
[{"$f":"'V. Competency'!$B$2","v":"Section V. General Competencies"},{"$f":"'V. Competency'!B42","v":"Influencing/Negotiating"},{"$f":"'V. Competency'!C42","v":0},{"$f":"'V. Competency'!D42","v":0},{"$f":"'V. Competency'!E42","v":0},{"$f":"PRODUCT(D199:E199)","v":0},{"$f":"'V. Competency'!G42","v":0}]
[null,null,null,"Estimated Total Cost:",null,{"$f":"SUM(F2:F199)","v":0}]

{"sheet":"Org Codes","index":3,"n_rows":1587,"n_cols":2,"rows_kept":1587,"cut":false,"hidden":true,"merged":[[0,3,0,5]]}
["ORG_8TH_TIER_CODE","ORG_8TH_TIER_TITLE"]
["0100000000","OFFICE OF THE SECRETARY OF ENERGY"]
["0101000000","OFFICE OF THE SECRETARY OF ENERGY"]
["0102000000","OFFICE OF THE DEPUTY SECRETARY"]
["0103000000","OFFICE OF THE UNDER SECRETARY"]
["0104000000","IMMEDIATE OFFICE OF THE UNDER SECRETARY FOR SCIENCE"]
["0301000000","OFFICE OF THE GENERAL COUNSEL"]
["0302000000","DEPUTY  GENERAL COUNSEL FOR ENVIRONMENT AND COMPLIANCE"]
["0302600000","ASSISTANT GENERAL COUNSEL FOR INTERNATIONAL & NATIONAL SECURITY PRGMS"]
["0302800000","ASSISTANT GENERAL COUNSEL FOR ENVIRONMENT"]
["0302900000","OFFICE OF NEPA POLICY AND COMPLIANCE"]
["0302B00000","ASSISTANT GENERAL COUNSEL FOR GENERAL LAW"]
["0305000000","DEPUTY GENERAL COUNSEL FOR TRANSACTIONS, TECHNOLOGY & CONTRACTOR HR"]
["0305100000","ASSISTANT GENERAL COUNSEL FOR PROCUREMENT AND FINANCIAL ASSISTANCE"]
["0305200000","ASSISTANT GC FOR TECHNOLOGY TRANSFER & INTELLECTUAL PROPERTY"]
["0305300000","ASSISTANT GENERAL COUNSEL FOR LABOR AND PENSION LAW"]
["0306000000","DEPUTY GENERAL COUNSEL FOR LITIGATION, REGULATION AND ENFORCEMENT"]
["0306100000","ASSISTANT GENERAL COUNSEL FOR LITIGATION"]
["0306400000","ASSISTANT GENERAL COUNSEL FOR ENFORCEMENT"]
["0306500000","ASSISTANT GENERAL COUNSEL FOR LEGISLATION, REGULATION & ENERGY EFFIC"]
["0307000000","DEPUTY GENERAL COUNSEL FOR ENERGY POLICY"]
["0307500000","ASSISTANT GC FOR ELECTRICITY AND FOSSIL ENERGY"]
["0307800000","ASSISTANT GENERAL COUNSEL FOR CIVILIAN NUCLEAR PROGRAMS"]
["0307900000","OFFICE OF STANDARD CONTRACT MANAGEMENT"]
["030A000000","OFFICE OF ADMINISTRATIVE OPERATIONS"]
["0400000001","IMMEDIATE OFFICE OF THE INSPECTOR GENERAL"]
["0410000000","OFFICE OF MANAGEMENT & ADMINISTRATION"]
["0411000000","HUMAN RESOURCES DIVISION"]
["0412000000","INFORMATION TECHNOLOGY, FINANCIAL AND ADMINISTRATION DIVISION"]
["0420000000","OFFICE OF INVESTIGATIONS"]
["042A000000","CENTRAL FIELD OFFICE"]
["042A100000","REGION 4 INVESTIGATIONS GROUP"]
["042A200000","REGION INVESTIGATIONS GROUP"]
["042B000000","WESTERN FIELD OFFICE"]
["042B100000","REGION 5 INVESTIGATIONS GROUP"]
["042B200000","REGION 6 INVESTIGATIONS GROUP"]
["042C000000","EASTERN FIELD OFFICE"]
["042C100000","REGION 2 INVESTIGATIONS GROUP"]
["042C200000","REGION 3 INVESTIGATIONS GROUP"]
["042D000000","NATIONAL CAPITAL FIELD OFFICE"]
["042D100000","REGION 1 INVESTIGATIONS GROUP"]
["042D200000","TECHNOLOGY CRIMES SECTION"]
["042E100000","HOTLINE AND ANALYSIS SECTION"]
["042E200000","OPERATIONS OFFICERS"]
["042F000000","OFFICE OF INVESTIGATIVE SUPPORT"]
["0430000000","OFFICE OF AUDITS AND INSPECTIONS"]
["0431000000","OFFICE OF AUDITS"]
["0431500000","WESTERN AUDITS DIVISION"]
["0431510000","ALBUQUERQUE AUDIT GROUP"]
["0431520000","LOS ALAMOS AUDIT GROUP"]
["0431530000","LAS VEGAS AUDIT GROUP"]
["0431550000","LIVERMORE AUDIT GROUP"]
["0431560000","RICHLAND AUDIT GROUP"]
["0431570000","IDAHO FALLS AUDIT GROUP"]
["0431600000","CENTRAL AUDITS DIVISION"]
["0431610000","HEADQUARTERS AUDIT GROUP"]
["0431620000","PITTSBURGH AUDIT GROUP"]
["0431630000","DENVER AUDIT GROUP"]
["0431640000","CHICAGO AUDIT GROUP"]
["0437000000","OFFICE OF INSPECTIONS"]
["0437100000","WESTERN REGION"]
["0437200000","EASTERN REGION"]
["0438000000","OFFICE OF AUDITS AND ADMINISTRATION"]
["0438100000","EASTERN AUDIT DIVISION"]
["0438110000","GERMANTOWN AUDIT GROUP"]
["0438120000","CONTRACT/FINANCIAL AUDIT GROUP"]
["0438130000","SAVANNAH RIVER AUDIT GROUP"]
["0438140000","OAK RIDGE A AUDIT GROUP"]
["0438180000","OAK RIDGE B AUDIT GROUP"]
["0438200000","OFFICEOFPLANNING,ADMINISTRATION&QUALITYASSURANCEFORAUDIT&INSPECTIONS"]
["0438400000","INFORMATION TECHNOLOGY & FINANCIAL AUDITS"]
["0438410000","OAK RIDGE TECHNOLOGY AUDIT GROUP"]
["0438420000","PITTSBURGH TECHNOLOGY AUDIT GROUP"]
["0500000001","IMMEDIATE OFFICE OF THE ASSISTANT SECRETARY (CI)"]
["0520000000","OFFICE OF INTERGOVERNMENTAL & EXTERNAL AFFAIRS"]
["0540000000","OFFICE OF CONGRESSIONAL AFFAIRS"]
["05A0000000","OFFICE OF LEGISLATIVE AND INTERGOVERNMENTAL OPERATIONS"]
["0600000001","IMMEDIATE OFFICE OF THE DIRECTOR HEARINGS AND APPEALS"]
["0606000000","PERSONNEL SECURITY AND APPEALS DIVISION"]
["0607000000","EMPLOYEE PROTECTIONS AND EXCEPTIONS DIVISION"]
["0608000000","MANAGEMENT OPERATIONS UNIT"]
["0609000000","OFFICE OF CONFLICT PREVENTION AND RESOLUTION"]
["1500000001","IMMEDIATE OFFICE OF THE DIRECTOR (PA)"]
["1500300000","OFFICE OF RESOURCE MANAGEMENT"]
["1501000000","PRESS OFFICE"]
["1700000001","IMMEDIATE OFFICE OF THE ASSISTANT SECRETARY, EM"]
["1700600000","OFFICE OF EXTERNAL AFFAIRS"]
["1700610000","OFFICE OF COMMUNICATIONS"]
["1700620000","OFFICE OF INTERGOVERNMENTAL & COMMUNITY ACTIVITIES"]
["17L0000000","DEPUTY ASSISTANT SECRETARY FOR SITE RESTORATION"]
["17L1000000","OFFICE OF ENVIRONMENTAL COMPLIANCE"]
["17L2000000","OFFICE OF SOIL/GROUND WATER REMEDIATION"]
["17L3000000","OFFICE OF D&D FACILITY ENGINEERING"]
["17M0000000","DEPUTY ASSISTANT SECRETARY FOR TANK WASTE & NUCLEAR MATERIAL"]
["17M1000000","OFFICE OF TANK WASTE MANAGEMENT"]
["17M2000000","OFFICE OF NUCLEAR MATERIAL DISPOSITION"]
["17M3000000","OFFICE OF WTP/TANK FARM PROGRAM"]
["17N0000000","DEPUTY ASSISTANT SECRETARY WASTE MANAGEMENT"]
["17N0000001","NNSA SMALL SITES"]
["17N1000000","OFFICE OF DISPOSAL OPERATIONS"]
["17N2000000","OFFICE OF DISPOSITION PLANNING & POLICY"]
["17N3000000","OFFICE OF PACKAGING AND TRANSPORTATION"]
["17P0000000","DEPUTY ASSISTANT SECRETARY SAFETY, SECURITY, & QUALITY PROGRAMS"]
["17P1000000","OFFICE OF SAFETY MANAGEMENT"]
["17P2000000","OFFICE OF OPERATIONAL SAFETY"]
["17P3000000","OFFICE OF STANDARDS AND QUALITY ASSURANCE"]
["17P4000000","OFFICE OF SAFEGUARDS, SECURITY, & EMERGENCY PREPAREDNESS"]
["17Q0000000","DEPUTY ASSISTANT SECRETARY FOR ACQUISITION AND PROJECT MANAGMENT"]
["17Q1000000","OFFICE OF PROCUREMENT PLANNING"]
["17Q2000000","OFFICE OF CONTRACT ASSISTANCE"]
["17Q3000000","OFFICE OF PROJECT ASSESSMENT"]
["17R0000000","DEPUTY ASSISTANT SECRETARY FOR PROGRAM PLANNING AND BUDGET"]
["17R1000000","OFFICE OF BUDGET"]
["17R2000000","OFFICE OF STRATEGIC PLANNING AND ANALYSIS"]
["17R3000000","OFFICE OF MANAGEMENT SYSTEMS AND ANALYSIS"]
["17S0000000","DEPUTY ASSISTANT SECRETARY FOR HUMAN CAPITAL AND CORPORATE SERVICES"]
["17S1000000","OFFICE OF HUMAN CAPTITAL"]
["17S2000000","OFFICE OF CORPORATE INFORMATION TECHNOLOGY"]
["17S3000000","OFFICE OF BUSINESS SERVICES"]
["1C00000001","IMMEDIATE OFFICE OF THE DIRECTOR (ED)"]
["1C00400000","OFFICE OF MINIORITY ECONOMIC IMPACT"]
["1C01000000","OFFICE OF MINORITY EDUCATION & COMMUNITY DEVELOPMENT"]
["1C03000000","OFFICE OF CIVIL RIGHTS"]
["1C05000000","OFFICE OF DIVERSITY AND INCLUSION"]
["1K00000001","IMMEDIATE OFFICE OF THE DIRECTOR (IE)"]
["1L00000001","IMMEDIATE OFFICE OF THE DIRECTOR LOAN PROGRAMS OFFICE"]
["1L10000000","LOAN GUARANTEE ORIGINATION DIVISION"]
["1L20000000","ADVANCED TECHNOLOGY VEHICLES MANUFACTURING LOAN DIVISION"]
["1L30000000","TECHNICAL & PROJECT MANAGEMENT DIVISION"]
["1L33000000","RENEWABLE ENERGY"]
["1L40000000","CREDIT DIVISION"]
["1L50000000","PORTFOLIO MANAGEMENT DIVISION"]
["1L51000000","ASSET MONITORING AND SUPERVISION"]
["1L52000000","CREDIT REVIEW AND COMPLIANCE"]
["1L53000000","SPECIAL ASSETS & LOAN ADMINISTRATION"]
["1L60000000","MANAGEMENT OPERATIONS DIVISION"]
["1L63000000","INFORMATION SYSTEMS"]
["1L64000000","EXTERNAL RELATIONS"]
["1L70000000","LEGAL DIVISION"]
["1N00000000","CHIEF INFORMATION OFFICER"]
["1N00000001","IMMEDIATE OFFICE OF THE CHIEF INFORMATION OFFICER"]
["1N10000000","OFFICE OF THE ASSOCIATE CIO FOR IT CORPORATE MANAGEMENT"]
["1N12000000","BUDGET AND INTERNAL CONTROLS DIVISION"]
["1N13000000","HUMAN CAPITAL  AND ADMINISTRATIVE MANAGEMENT DIVISION"]
["1N14000000","ACQUISITION MANAGEMENT DIVISION"]
["1N20000000","OFFICE OF THE ASSOCIATE CIO FOR IT POLICY & GOVERNANCE"]
["1N21000000","PORTFOLIO AND ANALYSIS DIVISION"]
["1N22000000","POLICY AND PERFORMANCE MANAGEMENT DIVISION"]
["1N23000000","RECORDS AND PRIVACY  MANAGEMENT DIVISION"]
["1N30000000","OFFICE OF THE ASSOCIATE CIO FOR CYBER SECURITY"]
["1N31000000","POLICY, GUIDANCE,  AND PLANNING DIVISION"]
["1N32000000","INCIDENT MANAGEMENT DIVISION"]
["1N33000000","ENTERPRISE SERVICES DIVISION"]
["1N50000000","OFFICE OF THE ASSOCIATE CIO FOR TECHNOLOGY AND INNOVATION"]
["1N51000000","EMERGING TECHNOLOGY DIVISION"]
["1N52000000","STRATEGIC PROGRAMS DIVISION"]
["1N60000000","OFFICE OF THE ASSOCIATE CIO FOR ENERGY IT SERVICES"]
["1N6D000000","CUSTOMER ENGAGEMENT OFFICE"]
["1N6D100000","CUSTOMER SUPPORT ENGAGEMENT DIVISION"]
["1N6D110000","CUSTOMER SUPPORT ENGAGEMENT TEAM (EAST)"]
["1N6D120000","CUSTOMER SUPPORT ENGAGEMENT TEAM (WEST)"]
["1N6E000000","OPERATIONS MANAGEMENT OFFICE"]
["1N6E100000","IT SERVICES MANAGEMENT DIVISION"]
["1N6E200000","INFRASTUCTURE DIVISION"]
["1N6E300000","APPLICATIONS SUPPORT DIVISION"]
["1N6F000000","ENTERPRISE MANAGEMENT OFFICE"]
["1N6F100000","FINANCIAL MANAGEMENT DIVISION"]
["1N6G000000","INNOVATION AND ENGINEERING OFFICE"]
["1N6G100000","PLANS AND ANALYSIS DIVISION"]
["1N6G200000","DEVELOPMENT AND IMPLEMENTATION DIVISION"]
["1N6H000000","INFORMATION ASSURANCE OFFICE"]
["1N6H010000","SECURITY OPERATIONS TEAM"]
["1P00000001","IMMED OFFICE OF THE DIRECTOR FOR ENERGY POLICY & SYSTEMS ANALYSIS"]
["1P02000000","DEPUTY DIRECTOR FOR CLIMATE, ENVIRONMENT AND EFFICIENCY"]
["1P02100000","OFFICE OF CLIMATE AND ENVIRONMENTAL ANALYSIS"]
["1P02200000","OFFICE OF ENERGY END-USE ANALYSIS"]
["1P03000000","DEPUTY DIRECTOR FOR ENERGY SECURITY"]
["1P03100000","OFFICE OF ENERGY SECURITY ANALYSIS"]
["1P04000000","DEPUTY DIRECTOR FOR ENERGY SYSTEMS AND INTEGRATION"]
["1P04100000","OFFICE OF ENERGY SYSTEMS ANALYSIS AND INTEGRATION"]
["1P05000000","DEPUTY DIRECTOR FOR ENERGY FINANCE, INCENTIVES AND PROGRAM ANALYSIS"]
["1P05100000","OFFICE OF ENERGY FINANCE, INCENTIVES AND PROGRAM ANALYSIS"]
["1P06000000","DEPUTY DIRECTOR FOR STATE AND LOCAL COOPERATION"]
["1P09000000","QER SECRETARIAT"]
["1R00000001","IMMEDIATE OFFICE OF THE DIRECTOR ARPA-E"]
["1V00000001","IMMEDIATE OFFICE OF PLANNING & MANAGEMENT OVERSIGHT"]
["2100000001","IMMED OFC OF THE ASSISTANT SECRETARY FOR ENERGY EFFICIENCY & RENEW ENG"]
["2101000000","PRINCIPAL DEPUTY ASST SECRETARY FOR ENERGY EFFICIENCY & RENEWABLE ENGY"]
["21A0000000","OBS OBSOFFICE OF THE DEPUTY ASSISTANT SECRETARY FOR TECHNOLOGY DEVELOP"]
["21D0000000","DEPUTY ASSISTANCE SECRETARY FOR TRANSPORTATION"]
["21D1000000","VEHICLE TECHNOLOGIES OFFICE"]
["21D2000000","BIOENERGY TECHNOLOGIES OFFICE"]
["21D3000000","FUEL CELL TECHNOLOGIES OFFICE"]
["21E0000000","DEPUTY ASSISTANT SECRETARY FOR RENEWABLE POWER"]
["21E1000000","SOLAR ENERGY TECHNOLOGIES OFFICE"]
["21E2000000","GEOTHERMAL TECHNOLOGIES OFFICE"]
["21E3000000","WIND & WATER TECHNOLOGIES OFFICE"]
["21F0000000","DEPUTY ASSISTANT SECRETARY FOR ENERGY EFFICIENCY"]
["21F1000000","BUILDING TECHNOLOGIES OFFICE"]
["21F2000000","FEDERAL ENERGY MANAGEMENT PROGRAM OFFICE"]
["21F3000000","ADVANCED MANUFACTURING OFFICE"]
["21F4000000","WEATHERIZATION & INTERGOVERNMENTAL PROGRAMS OFFICE"]
["21F5000000","SUSTAINABILITY PERFORMANCE OFFICE"]
["21G0000000","OFFICE OF OPERATIONS & STRATEGIC INNOVATION"]
["21G1000000","OFFICE OF STRATEGIC PROGRAMS"]
["21G1100000","COMMUNICATIONS TEAM"]
["21G1200000","STAKEHOLDER ENGAGEMENT TEAM"]
["21G1300000","LEGISLATIVE AFFAIRS TEAM"]
["21G1400000","TECHNOLOGY TO MARKET TEAM"]
["21G1500000","POLICY AND ANALYSIS TEAM"]
["21G1600000","INTERNATIONAL TEAM"]
["21G2000000","OFFICE OF BUSINESS OPERATIONS"]
["21G2100000","INFORMATION TECHNOLOGY SERVICES OFFICE"]
["21G2200000","PROJECT MANAGEMENT COORDINATION OFFICE"]
["21G2300000","WORKFORCE MANAGEMENT OFFICE"]
["21G3100000","BUDGET OFFICE"]
["2500000001","OFFICE OF THE DIRECTOR"]
["25A0000000","DIRECTOR OFFICE OF THE DEPUTY FOR SCIENCE PROGRAMS"]
["25A1000000","OFFICE OF ADVANCED SCIENTIFIC COMPUTING RESEARCH"]
["25A1100000","COMPUTATIONAL SCIENCE RESEARCH AND PARTNERSHIP (SCIDAC) DIVISION"]
["25A1300000","FACILITIES DIVISION"]
["25A2000000","OFFICE OF BASIC ENERGY SCIENCES"]
["25A2100000","CHEMICAL SCIENCES, GEOSCIENCES AND BIOSCIENCES DIVISION"]
["25A2200000","MATERIALS SCIENCES AND ENGINEERING DIVISION"]
["25A2300000","SCIENTIFIC USER FACILITIES DIVISION"]
["25A3000000","OFFICE OF BIOLOGICAL AND ENVIRONMENTAL RESEARCH"]
["25A3200000","BIOLOGICAL SYSTEMS SCIENCE DIVISION"]
["25A3500000","CLIMATE AND ENVIRONMENTAL SCIENCES DIVISION"]
["25A4000000","OFFICE OF FUSION ENERGY SCIENCES"]
["25A4100000","FACILITIES, OPERATIONS & PROJECTS DIVISION"]
["25A4200000","RESEARCH DIVISION"]
["25A5000000","OFFICE OF HIGH ENERGY PHYSICS"]
["25A5100000","RESEARCH AND TECHNOLOGY DIVISION"]
["25A5200000","FACILITIES DIVISION"]
["25A6000000","OFFICE OF NUCLEAR PHYSICS"]
["25A6100000","PHYSICS RESEARCH DIVISION"]
["25A6200000","FACILITIES AND PROJECT MANAGEMENT DIVISION"]
["25A7000000","OFFICE OF WORKFORCE DEVELOPMENT FOR TEACHERS AND SCIENTISTS"]
["25A8000000","OFFICE OF PROJECT ASSESSMENT"]
["25A9000000","SBIR AND STTR PROGRAMS OFFICE"]
["25B0000000","OFFICE OF THE DEPUTY DIRECTOR FOR FIELD OPERATIONS"]
["25B1000000","OFFICE OF SAFETY AND SECURITY POLICY"]
["25B4000000","OFFICE OF LABORATORY POLICY"]
["25B5000000","OFFICE OF OPERATIONS PROGRAM MANAGEMENT"]
["25BA000001","IMMEDIATE OFFICE OF THE MANAGER - CHICAGO OFFICE"]
["25BA100000","OFFICE OF ACQUISITION AND ASSISTANCE"]
["25BA110000","OPERATIONS DIVISION"]
["25BA120000","SUPPORT DIVISION"]
["25BA500000","OFFICE OF CHIEF FINANCIAL OFFICER"]
["25BA510000","BUDGET"]
["25BA520000","ACCOUNTING AND FINANCE"]
["25BA600000","OFFICE OF CHIEF COUNSEL"]
["25BA610000","GENERAL LAW DIVISION"]
["25BA620000","INTELLECTUAL PROPERTY LAW DIVISION"]
["25BAA00000","OFFICE OF SAFETY, TECHNICAL AND INFRASTRUCTURE SERVICES"]
["25BAA10000","SAFEGUARDS AND SECURITY SERVICES"]
["25BAA20000","SAFETY AND TECHNICAL SERVICES"]
["25BAB00000","OFFICE OF HUMAN RESOURCES SERVICES"]
["25BAC00000","OFFICE OF INFORMATION MANAGEMENT SERVICES"]
["25BB000001","IMMEDIATE OFFICE OF THE MANAGER - OAK RIDGE OFFICE"]
["25BB400000","OFFICE OF ASSISTANT MANAGER FOR SAFETY AND TECHNICAL SERVICES"]
["25BB440000","HEALTH AND SAFETY SERVICES DIVISION"]
["25BB450000","ENVIRONMENTAL AND QUALITY SERVICES DIVISION"]
["25BB460000","ENGINEERING AND ISC SERVICES DIVISION"]
["25BB500000","OFFICEOFASSISTANTMANAGER FOR SAFEGUARDS,SECURITY & EMERGENCYMANAGEMENT"]
["25BB500200","EMERGENCY MANAGEMENT TEAM"]
["25BB501000","ACCESS AUTHORIZATION BRANCH"]
["25BB502000","SECURITY OVERSIGHT AND SUPPORT BRANCH"]
["25BB503000","MATERIALS CONTROL AND ACCOUNTABILITY & INFORMATION SECURITY BRANCH"]
["25BB610000","OAK RIDGE FINANCIAL SERVICE CENTER"]
["25BB611000","PAYMENT SERVICES BRANCH"]
["25BB612000","FINANCIAL SYSTEMS AND REPORTING BRANCH"]
["25BB620000","FINANCIAL EVALUATION AND ACCOUNTABILITY DIVISION"]
["25BB630000","PLANNING AND BUDGET DIVISION"]
["25BB700000","OFFICE OF ASSISTANT MANAGER FOR ADMINISTRATION"]
["25BB720000","HUMAN RESOURCES DIVISION"]
["25BB721000","FEDERAL HUMAN RESOURCES BRANCH"]
["25BB730000","FACILITIES, INFORMATION AND RESERVATION MANAGEMENT DIVISION"]
["25BB731000","FACILITIES MANAGEMENT BRANCH"]
["25BB732000","RESERVATION MANAGEMENT BRANCH"]
["25BB733000","INFORMATION MANAGEMENT BRANCH"]
["25BB740000","PUBLIC AFFAIRS DIVISION"]
["25BB800000","OFFICE OF THE CHIEF COUNSEL"]
["25BB900000","OFFICE OF ASSISTANT MANAGER FOR PROCUREMENT AND CONTRACTS"]
["25BB901000","SYSTEMS AND SITE SUPPORT BRANCH"]
["25BB902000","ACQUISITION SERVICES BRANCH"]
["25BB903000","SPECIAL ACQUISITIONS BRANCH"]
["25BC000000","AMES SITE OFFICE"]
["25BD000000","ARGONNE SITE OFFICE"]
["25BD100000","NEW BRUNSWICK LABORATORY"]
["25BE000000","BERKELEY SITE OFFICE"]
["25BF000000","BROOKHAVEN SITE OFFICE"]
["25BG000000","FERMI SITE OFFICE"]
["25BH000000","PACIFIC NORTHWEST SITE OFFICE"]
["25BH100000","LABORATORY STEWARDSHIP DIVISION"]
["25BH200000","OPERATIONS DIVISION"]
["25BI000000","PRINCETON SITE OFFICE"]
["25BJ000000","SLAC SITE OFFICE"]
["25BK000000","THOMAS JEFFERSON SITE OFFICE"]
["25BM000001","IMMEDIATE OFFICE OF THE MANAGER"]
["25BM100000","MISSION INTEGRATION AND PROJECTS DIVISION"]
["25BM200000","OPERATIONS AND OVERSIGHT DIVISION"]
["25C0000000","OFFICE OF THE DEPUTY DIRECTOR FOR RESOURCE MANAGEMENT"]
["25C1000000","OFFICE OF BUDGET"]
["25C1100000","FINANCIAL ANALYSIS DIVISION"]
["25C1200000","RESOURCE ANALYSIS DIVISION"]
["25C3000000","OFFICE OF GRANTS AND CONTRACTS SUPPORT"]
["25C4000000","OFFICE OF SCIENTIFIC AND TECHNICAL INFORMATION"]
["25C4100000","OFFICE OF PRESERVATIONS AND TECHNOLOGY"]
["25C4200000","OFFICE OF ACCESS AND OPERATIONS"]
["25C4300000","OFFICE OF INFORMATION PROGRAMS"]
["25C5000000","OFFICE OF INFORMATION TECHNOLOGY AND SERVICES"]
["25C5010000","BUSINESS MANAGEMENT TEAM"]
["25C5020000","INFORMATION TECHNOLOGY SERVICES TEAM"]
["25C6000000","OFFICE OF SC PROGRAM DIRECTION AND ANALYSIS"]
["25C7000000","OFFICE OF SC COMMUNICATIONS & PUBLIC AFFAIRS"]
["25C8000000","OFFICE OF HUMAN RESOURCES AND ADMINISTRATION"]
["2700000001","IMMEDIATE OFFICE OF THE ASSISTANT SECRETARY, NE"]
["2700100000","OBS OFFICE OF POLICY, INTEGRATION AND COMMUNICATION"]
["270C000000","CHIEF OPERATING OFFICER"]
["270C100000","OFFICE OF HUMAN CAPITAL & BUSINESS SERVICES"]
["270C200000","OFFICE OF BUDGET AND PLANNING"]
["27A0000000","DEPUTY ASSISTANT SECRETARY FOR NUCLEAR FACILITY OPERATIONS"]
["27A2000000","OFFICE OF FACILITIES MANAGEMENT"]
["27C0000000","DEPUTY ASSISTANT SECRETARY FOR FUEL CYCLE TECHNOLOGIES"]
["27C4000000","OFFICE OF FUEL CYCLE RESEARCH AND DEVELOPMENT"]
["27C5000000","OFFICE OF SYSTEMS ENGINEERING AND INTEGRATION"]
["27C6000000","OFFICE OF USED NUCLEAR FUEL DISPOSITION RESEARCH AND DEVELOPMENT"]
["27C7000000","OFFICE OF URANIUM MANAGEMENT AND POLICY"]
["27D0000000","DEPUTY ASSISTANT SECRETARY,INTERNATIONAL NUCLEAR ENERGY POLICY & COOP"]
["27D2000000","OFFICE OF INTERNATIONAL COMMERCIAL ACTIVITIES"]
["27D3000000","OFFICE OF BILATERAL COOPERATION"]
["27D4000000","OFFICE OF MULTILATERAL COOPERATION"]
["27E0000000","DEPUTY ASSISTANT SECRETARY FOR NUCLEAR REACTOR TECHNOLOGIES"]
["27E2000000","OFFICE OF LIGHT WATER REACTOR TECHNOLOGIES"]
["27E4000000","OFFICE OF ADVANCED REACTOR TECHNOLOGIES"]
["27E5000000","OFFICE OF SPACE & DEFENSE POWER SYSTEMS"]
["27F0000000","DEPUTY ASSISTANT SECRETARY FOR SCIENCE & TECHNOLOGY INNOVATION"]
["27F1000000","OFFICE OF ADVANCED MODELING & SIMULATION"]
["27F2000000","OFFICE OF INNOVATIVE NUCLEAR RESEARCH"]
["2801000000","IMMEDIATE OFFICE OF THE ASSISTANT SECRETARY (FE)"]
["2840000000","DEPUTY ASSISTANT SECRETARY FOR PETROLEUM RESERVES"]
["2841000000","PLANNING AND ENGINEERING OFFICE"]
["2842000000","OPERATIONS AND READINESS OFFICE"]
["2843000000","OFFICE OF ECONOMIC PLANNING, POLICY AND FINANCE"]
["2845000000","MANAGEMENT AND ADMINISTRATION OFFICE"]
["2846000000","RESERVE LANDS MANAGEMENT OFFICE"]
["2850000000","DEPUTY ASSISTANT SECRETARY FOR CLEAN COAL AND CARBON MANAGEMENT"]
["2851000000","OFFICE OF ADVANCED FOSSIL TECHNOLOGY SYSTEMS"]
["2851100000","DIVISION OF ADVANCED ENERGY SYSTEMS"]
["2851200000","DIVISION OF LARGE CARBON MANAGEMENT PROJECTS"]
["2851300000","DIVISION OF CARBON CAPTURE AND STORAGE RESEARCH AND DEVELOPMENT"]
["2855000000","OFFICE OF STRATEGIC PLANNING AND GLOBAL ENGAGEMENT"]
["2855100000","DIVISION OF GOVERNMENT AFFAIRS AND ANALYSIS"]
["2855200000","DIVISION OF INTERNATIONAL AND EXTERNAL PARTNERSHIPS"]
["2890000000","DEPUTY ASSISTANT SECRETARY FOR OIL AND NATURAL GAS"]
["2891000000","OFFICE OF OIL AND GAS RESOURCES"]
["2891100000","DIVISION OF SAFETY AND ENVIRONMENTAL SUSTAINABILITY"]
["2891200000","DIVISION OF ADVANCED SUPPLY AND FACILITIES"]
["2893000000","OFFICE OF OIL AND GAS GLOBAL SECURITY AND SUPPLY"]
["2893100000","DIVISION OF INTERNATIONAL OIL AND NATURAL GAS ACTIVITIES"]
["2893200000","DIVISION OF NATURAL GAS REGULATORY ACTIVITIES"]
["28B0000000","DEPUTY ASSISTANT SECRETARY FOR BUSINESS OPERATIONS"]
["28B2000000","OFFICE OF PRODUCTIVITY AND SUSTAINABILITY"]
["28B3000000","OFFICE OF BUDGET AND FINANCIAL MANAGEMENT"]
["28B4000000","OFFICE OF INFORMATION TECHNOLOGY"]
["28B5000000","OFFICE OF COMMUNICATIONS"]
["28B6000000","OFFICE OF MANAGEMENT AND FIELD OPERATIONS"]
["28B7000000","OFFICE OF ENVIRONMENT, SECURITY, SAFETY AND HEALTH"]
["2900000001","IMMEDIATE OFFICE OF THE DIRECTOR"]
["2900000002","IMMEDIATE OFFICE OF THE PRINCIPLE DEPUTY DIRECTOR"]
["2901000000","OFFICE OF INTELLIGENCE"]
["2902000000","OFFICE OF COUNTERINTELLIGENCE"]
["2904000000","OFFICE OF CYBER"]
["2E00000000","OFFICE OF THE SECRETARY OF ENERGY ADVISORY BOARD"]
["2L00000001","IMMEDIATE OFFICE OF THE ASSISTANT SECRETARY, OE"]
["2L00100000","CORPORATE BUSINESS OPERATIONS"]
["2L10000000","DEPUTY ASSISTANT SEC POWER SYSTEMS ENGINEERING RESEARCH & DEVELOPMENT"]
["2L20000000","DEPUTY ASSISTANT SECRETARY FOR NATIONAL ELECTRICITY DELIVERY"]
["2L30000000","DEPUTY ASSISTANT SECRETARY, INFRASTRUCTURE SECURITY & ENERGY RESTORATN"]
["2L50000000","DEPUTY ASSISTANT SECRETARY, ENERGY INFRASTRUCTURE MODELING & ANALYSIS"]
["2L60000000","DEPUTY ASSISTANT SECRETARY, ADVANCED GRID INTEGRATION"]
["2N00000001","IMMED OFC ASSOC UNDER SEC FOR ENVIRONMENT, HEALTH SAFETY & SECURITY"]
["2N00100000","OFFICE OF DEPARTMENTAL REPRESENTATIVE TO THE DNFSB"]
["2N00200000","OFFICE OF CORPORATE SECURITY STRATEGY, ANALYSIS & SPECIAL OPERATIONS"]
["2N01000000","OFFICE OF HEALTH AND SAFETY"]
["2N01100000","OFFICE OF WORKER SAFETY AND HEALTH POLICY"]
["2N01200000","OFFICE OF WORKER SAFETY AND HEALTH ASSISTANCE"]
["2N01300000","OFFICE OF DOMESTIC & INTERNATIONAL HEALTH STUDIES"]
["2N01400000","OFFICE OF WORKER SCREENING & COMPENSATION SUPPORT"]
["2N02000000","OFFICE OF ENVIRONMENTAL PROTECTION, SUSTAINABILITY SUPPORT & ANALYSIS"]
["2N02100000","OFFICE OF SUSTAINABILITY SUPPORT"]
["2N02200000","OFFICE OF ENVIRONMENTAL POLICY  & ASSISTANCE"]
["2N02300000","OFFICE OF ANALYSIS"]
["2N03000000","OFFICE OF NUCLEAR SAFETY"]
["2N03100000","OFFICE OF NUCLEAR SAFETY BASIS & FACILITY DESIGN"]
["2N03200000","OFFICE OF NUCLEAR FACILITY SAFETY PROGRAMS"]
["2N03300000","OFFICE OF QUALITY ASSURANCE"]
["2N04000000","OFFICE OF HEADQUARTERS SECURITY OPERATIONS"]
["2N04100000","OFFICE OF PHYSICAL PROTECTION"]
["2N04200000","OFFICE OF INFORMATION SECURITY"]
["2N04300000","OFFICE OF HEADQUARTERS PERSONNEL SECURITY OPERATIONS"]
["2N05000000","OFFICE OF SECURITY"]
["2N05100000","OFFICE OF SECURITY POLICY"]
["2N05200000","OFFICE OF SECURITY ASSISTANCE"]
["2N05300000","OFFICE OF DEPARTMENTAL PERSONNEL SECURITY"]
["2N06000000","OFFICE OF CLASSIFICATION"]
["2N06100000","OFFICE OF QUALITY MANAGEMENT"]
["2N06200000","OFFICE OF TECHNICAL GUIDANCE"]
["2N06300000","OFFICE OF DOCUMENT REVIEWS"]
["2N07000000","OFFICE OF RESOURCE MANAGEMENT"]
["2N07100000","OFFICE OF BUSINESS OPERATIONS"]
["2N07200000","OFFICE OF INFORMATION MANAGEMENT"]
["2P00000001","IMMEDIATE OFFICE OF ENTERPRISE ASSESSMENTS"]
["2P00100000","OFFICE OF RESOURCES, COMMUNICATIONS & CONGRESSIONAL AFFAIRS"]
["2P00200000","OFFICE OF RISK ANALYSIS AND PROGRAM EVALUATION"]
["2P01000000","OFFICE OF ENFORCEMENT"]
["2P01100000","OFFICE OF WORKER SAFETY AND HEALTH ENFORCEMENT"]
["2P01200000","OFFICE OF NUCLEAR SAFETY ENFORCEMENT"]
["2P01300000","OFFICE OF SECURITY ENFORCEMENT"]
["2P02000000","OFFICE OF CYBER & SECURITY ASSESSMENTS"]
["2P02100000","OFFICE OF CYBER ASSESSMENTS"]
["2P02200000","OFFICE OF SECURITY ASSESSMENTS"]
["2P03000000","OFFICE OF ENVIRONMENTAL, SAFETY & HEALTH ASSESSMENTS"]
["2P03100000","OFFICE OF NUCLEAR SAFETY & ENVIRONMENTAL ASSESSMENTS"]
["2P03200000","OFFICE OF WORKER SAFETY & HEALTH ASSESSMENTS"]
["2P03300000","OFFICE OF EMERGENCY MANAGEMENT ASSESSMENTS"]
["2P04000000","OFFICE OF OUTREACH & ANALYSIS"]
["2P05000000","NATIONAL TRAINING CENTER"]
["2S00000001","IMMEDIATE OFFICE OF THE DIRECTOR OSDBU (SB)"]
["3200000001","IMMEDIATE OFFICE OF THE ADMINISTRATOR (EIA)"]
["3210000000","ASSISTANT ADMINISTRATOR FOR RESOURCES AND TECHNOLOGY MANAGEMENT"]
["3211000000","OFFICE OF EMPLOYEE SERVICES"]
["3212000000","OFFICE OF INFORMATION TECHNOLOGY"]
["3213000000","OFFICE OF PLANNING, BUDGET, PROCUREMENT, AND EVALUATION"]
["3220000000","ASSISTANT ADMINISTRATOR FOR ENERGY STATISTICS"]
["3221000000","OFFICE OF SURVEY DEVELOPMENT AND STATISTICAL INTEGRATION"]
["3222000000","OFFICE OF ENERGY CONSUMPTION AND EFFICIENCY STATISTICS"]
["3223000000","OFFICE OF ELECTRICITY, RENEWABLES, AND URANIUM STATISTICS"]
["3224000000","OFFICE OF OIL, GAS & COAL SUPPLY STATISTICS"]
["3225000000","OFFICE OF PETROLEUM AND BIOFUELS STATISTICS"]
["3226000000","OFFICE OF SURVEY SUPPORT AND APPLICATION MANAGEMENT"]
["3230000000","ASSISTANT ADMINISTRATOR FOR ENERGY ANALYSIS"]
["3231000000","OFFICE OF ENERGY MARKETS AND FINANCIAL ANALYSIS"]
["3232000000","OFFICE OF ENERGY CONSUMPTION AND EFFICIENCY ANALYSIS"]
["3233000000","OFFICE OF PETROLEUM, NATURAL GAS, AND BIOFUELS ANALYSIS"]
["3234000000","OFFICE OF ELECTRICITY, COAL, NUCLEAR, AND RENEWABLES ANALYSIS"]
["3235000000","OFFICE OF INTEGRATED AND INTERNATIONAL ENERGY ANALYSIS"]
["3240000000","ASSISTANT ADMINISTRATOR FOR COMMUNICATIONS"]
["3241000000","OFFICE OF COMMUNICATIONS AND OUTREACH"]
["3242000000","OFFICE OF WEB MANAGEMENT"]
["3600000001","IMMEDIATE OFFICE OF THE DIRECTOR"]
["3600010000","OFFICE OF THE DIRECTOR"]
["3660000000","OFFICE OF BUSINESS OPERATIONS"]
["3670000000","OFFICE OF SITE OPERATIONS"]
["3800000001","IMMED OFC OF THE ASST SECRETARY FOR INTERNATIONAL AFFAIRS"]
["3801000000","OFFICE OF RESOURCE MANAGEMENT"]
["3802000000","DEPUTY ASSISTANT SECRETARY FOR INTERNATIONAL CLIMATE AND TECHNOLOGY"]
["3802200000","OFFICE OF INTERNATIONAL CLIMATE AND CLEAN ENERGY"]
["3802300000","OFFICE OF INTERNATIONAL SCIENCE AND TECHNOLOGY COLLABORATION"]
["3820000000","DEPUTY ASSISTANT SECRETARY FOR AFRICA, MIDDLE EAST, EUROPE AND EURASIA"]
["3821000000","OFFICE OF EUROPEAN AND EURASIAN AFFAIRS"]
["3822000000","OFFICE OF AFRICAN AND MIDDLE EASTERN AFFAIRS"]
["3830000000","DEPUTY ASSISTANT SECRETARY ASIA AND THE AMERICAS"]
["3833000000","OFFICE OF AMERICAN AFFAIRS"]
["3834000000","OFFICE OF ASIAN AFFAIRS"]
["3C00000001","IMMEDIATE OFFICE OF THE CHIEF FINANCIAL OFFICER (CF)"]
["3C02000000","DEPUTY CHIEF FINANCIAL OFFICER"]
["3C10000000","OFFICE OF FINANCE AND ACCOUNTING"]
["3C30000000","OFFICE OF BUDGET"]
["3C31000000","BUDGET ANALYSIS AND COORDINATION"]
["3C32000000","BUDGET OPERATIONS"]
["3C40000000","OFFICE OF CORPORATE INFORMATION SYSTEMS"]
["3C50000000","OFFICE OF FINANCIAL RISK,  POLICY AND CONTROLS"]
["3H00000001","IMMEDIATE OFFICE OF THE CHIEF HUMAN CAPITAL OFFICER"]
["3H01000000","ADMINISTRATIVE MANAGEMENT STAFF"]
["3H10000000","OFFICE OF HUMAN CAPITAL POLICY, ACCOUNTABILITY & TECHNOLOGY"]
["3H11000000","HUMAN CAPITAL POLICY DIVISION"]
["3H14000000","INFORMATION MANAGEMENT TECHNOLOGY DIVISION"]
["3H16000000","HUMAN CAPITAL ACCOUNTABILITY AND COMPLIANCE DIVISION"]
["3H20000000","OFFICE OF LEARNING AND WORKFORCE DEVELOPMENT"]
["3H22000000","LEARNING AND DEVELOPMENT PROGRAMS DIVISION"]
["3H26000000","INNOVATION AND PERFORMANCE IMPROVEMENT DIVISION"]
["3H30000000","OFFICE OF HUMAN RESOURCE SERVICES"]
["3H32000000","HEADQUARTERS OPERATIONS DIVISION"]
["3H33000000","HEADQUARTERS EMPLOYEE LABOR MANAGEMENT RELATIONS DIVISION"]
["3H34000000","WORKLIFE AND EMPLOYEE BENEFITS DIVISION"]
["3H40000000","OFFICE OF EXECUTIVE RESOURCES"]
["3H50000000","OFFICE OF HUMAN CAPITAL STRATEGY, BUDGET, & PERFORMANCE METRICS"]
["3H50100000","PROJECT AND SURVEY STAFF"]
["3H51000000","PERFORMANCE METRICS & BUDGET DIVISION"]
["3H52000000","WORKFORCE ANALYSIS & PLANNING DIVISION"]
["3M00000001","IMMEDIATE OFFICE OF THE DIRECTOR, MA"]
["3M01000000","OFFICE OF RESOURCE MANAGEMENT AND PLANNING"]
["3M10000000","OFFICE OF SCHEDULING AND ADVANCE"]
["3M30000000","OFFICE OF AVIATION MANAGEMENT"]
["3M40000000","OFFICE OF ADMINISTRATION"]
["3M42000000","OFFICE OF ADMINISTRATIVE MANAGEMENT AND SUPPORT"]
["3M45000000","OFFICE OF LOGISTICS AND FACILITY OPERATIONS"]
["3M45100000","PROJECT INTEGRATION & LOGISTICS OPERATIONS"]
["3M45200000","FACILITIES MANAGEMENT OPERATIONS"]
["3M45300000","OFFICE OF INDUSTRIAL HYGIENE AND SAFETY"]
["3M46000000","OFFICE OF TRAVEL MANAGEMENT"]
["3M46100000","TRAVEL POLICY AND ANALYSIS TEAM"]
["3M46200000","TRAVEL PROGRAMS AND OPERATIONS TEAM"]
["3M60000000","OFFICE OF ACQUISITION AND PROJECT MANAGEMENT"]
["3M61000000","OFFICE OF POLICY"]
["3M61100000","CONTRACT AND FINANCIAL ASSISTANCE POLICY DIVISION"]
["3M61300000","CONTRACTOR HUMAN RESOURCES POLICY DIVISION"]
["3M62100000","FIELD ASSISTANCE AND OVERSIGHT DIVISION"]
["3M62400000","STRATEGIC PROGRAMS DIVISION"]
["3M64000000","OFFICE OF HEADQUARTERS PROCUREMENT SERVICES"]
["3M64010000","CORPORATE SERVICES OFFICE"]
["3M64100000","OPERATIONS DIVISION A"]
["3M64110000","OPERATIONS BRANCH A-1"]
["3M64120000","OPERATIONS BRANCH A-2"]
["3M64130000","OPERATIONS BRANCH A-3"]
["3M64200000","OPERATIONS DIVISION B"]
["3M64210000","OPERATIONS BRANCH B-1"]
["3M64220000","OPERATIONS BRANCH B-2"]
["3M64230000","OPERATIONS BRANCH B-3"]
["3M66000000","OFFICE OF PROJECT MANAGEMENT"]
["3M66100000","PROJECT ASSESSMENTS DIVISION"]
["3M66200000","PROJECT SYSTEM DIVISION"]
["3M67000000","OFFICE OF PROPERTY MANAGEMENT"]
["3M67100000","REAL ESTATE DIVISION"]
["3M67200000","FACILITIES AND INFRASTRUCTURE DIVISION"]
["3M67300000","PERSONAL PROPERTY POLICY DIVISION"]
["3M68000000","OFFICE OF SYSTEMS AND PROFESSIONAL DEVELOPMENT"]
["3M68100000","PROFESSIONAL DEVELOPMENT DIVISION"]
["3M68200000","SYSTEM DIVISION"]
["3M70000000","OFFICE OF THE EXECUTIVE SECRETARIAT"]
["3M71000000","POLICY AND ANALYSIS GROUP"]
["3M72000000","CORRESPONDENCE MANAGEMENT GROUP"]
["3M73000000","ADMINISTRATION AND EXECUTIVE COMMITMENTS GROUP"]
["3M75000000","OFFICE OF HISTORY AND HERITAGE RESOURCES"]
["3M76000000","FEDERAL ADVISORY COMMITTEE MANAGEMENT"]
["3M90000000","OFFICE OF INFORMATION RESOURCES"]
["3MA0000000","OFFICE OF THE OMBUDSMAN"]
["5100000001","IMMEDIATE OFFICE OF THE MANAGER (RL)"]
["5100020000","OFFICE OF CHIEF COUNSEL"]
["5100070000","OFFICE OF COMMUNICATIONS AND EXTERNAL AFFAIRS (OCE)"]
["5101000000","OFFICE OF THE DEPUTY MANAGER"]
["5101200000","ASSISTANT MANAGER FOR SAFETY AND ENVIRONMENT (AMSE)"]
["5101210000","NUCLEAR SAFETY DIVISION (NSD)"]
["5101240000","OPERATIONS OVERSIGHT DIVISION"]
["5101270000","ENVIRONMENTAL SAFETY AND QUALITY DIVISION (ESQ)"]
["5101800000","ASSISTANT MANAGER FOR BUSINESS AND FINANCIAL OPERATIONS"]
["5101810000","FINANCE DIVISION"]
["5101820000","PROCUREMENT DIVISION"]
["5101830000","HUMAN RESOURCES MANAGEMENT DIVISION"]
["5101870000","BUDGET DIVISION"]
["5101900000","ASSISTANT MANAGER FOR MISSION SUPPORT (AMMS)"]
["5101910000","SECURITY AND EMERGENCY SERVICES DIVISION (SES)"]
["5101930000","SITE INFRASTRUCTURE, SERVICES & INFORMATION MANAGEMENT DIVISION (ISI)"]
["5101940000","SITE STEWARDSHIP DIVISION"]
["5101A00000","ASSISTANT MANAGER FOR RIVER AND PLATEAU"]
["5101A10000","RIVER CORRIDOR DIVISION"]
["5101A20000","WASTE MANAGEMENT AND D&D DIVISION"]
["5101A30000","SOIL AND GROUNDWATER DIVISION"]
["5101A40000","PLUTONIUM FINISHING PLANT CLOSURE DIVISION"]
["5109000000","OFFICE OF RIVER PROTECTION"]
["5109000001","OFFICE OF THE DEPUTY MANAGER"]
["5109500000","WASTE TREATMENT AND IMMOBILIZATION PLANT PROJECT"]
["5109510000","WTP ENGINEERING DIVISION"]
["5109520000","WTP PROJECT CONTROLS DIVISION"]
["5109530000","WTP CONSTRUCTION OVERSIGHT AND ASSURANCE DIVISION"]
["5109700000","TANK FARMS PROJECT"]
["5109710000","TF OPERATIONS DIVISION"]
["5109740000","TF PROGRAMS DIVISION"]
["5109A00000","CONTRACTS AND PROPERTY MANAGEMENT"]
["5109D00000","OFFICE OF THE CHIEF OF STAFF"]
["5109E00000","ASSISTANT MANAGER FOR TECHNICAL & REGULATORY SUPPORT"]
["5109E10000","NUCLEAR SAFETY DIVISION"]
["5109E20000","SAFETY AND HEALTH DIVISION"]
["5109E30000","ENVIRONMENTAL COMPLIANCE DIVISION"]
["5109E40000","QUALITY ASSURANCE DIVISION"]
["5109F00000","WTP START-UP, COMMISSIONING, AND INTEGRATION"]
["5109F10000","WSC ONE SYSTEM DIVISION"]
["5109F20000","WSC COMMISSIONING, MAINTENANCE, AND OPERATIONS DIVISION"]
["5120000001","IMMEDIATE OFFICE OF THE MANAGER (ID)"]
["5120100000","OFFICE OF THE CHIEF COUNSEL"]
["5120200000","OFFICE OF PUBLIC AFFAIRS"]
["512J000000","DEPUTY MANAGER FOR NUCLEAR ENERGY"]
["512J010000","OFFICE OF PROJECT MANAGEMENT SUPPORT"]
["512J200000","ASSISTANT MANAGER FOR PROGRAMS AND FACILITIES"]
["512J210000","IDAHO FACILITIES MANAGEMENT DIVISION"]
["512J230000","NUCLEAR PROGRAMS DIVISION"]
["512J300000","RADIOLOGICAL AND ENVIRONMENTAL SCIENCES LABORATORY DIVISION"]
["512K000000","DEPUTY MANAGER FOR OPERATIONS SUPPORT"]
["512K020000","QUALITY AND SAFETY DIVISION"]
["512K030000","ENVIRONMENT AND SUSTAINABILITY DIVISION"]
["512K040000","OPERATIONAL PERFORMANCE ASSURANCE DIVISION"]
["512K050000","SECURITY DIVISION"]
["512L000000","DEPUTY MANAGER FOR IDAHO CLEANUP PROJECT"]
["512L100000","ASSISTANT MANAGER FOR NUCLEAR AND SAFETY PERFORMANCE"]
["512L200000","ASSISTANT MANAGER FOR WASTE DISPOSITION"]
["512L300000","ASSISTANT MANAGER FOR FACILITY AND MATERIAL DISPOSITION"]
["512L400000","ASSISTANT MANAGER FOR CONFIGURATION MANAGEMENT AND PROJECT CONTROLS"]
["512M000000","DEPUTY MANAGER ADMINISTRATIVE SUPPORT"]
["512M010000","FINANCIAL SERVICES AND RESOURCES MANAGEMENT DIVISION"]
["512M020000","CONTRACT MANAGEMENT DIVISION"]
["512M030000","OFFICE OF HUMAN RESOURCES"]
["512M040000","BUDGET AND COST MANAGEMENT DIVISION"]
["512M050000","INFORMATION MANAGEMENT DIVISION"]
["5220000001","IMMEDIATE OFFICE OF THE MANAGER (SR)"]
["5220A00000","OFFICE OF EXTERNAL AFFAIRS"]
["5220B00000","OFFICE OF CHIEF COUNSEL"]
["5220E00000","OFFICE OF CIVIL RIGHTS"]
["522B000000","OFFICE OF FIELD CHIEF FINANCIAL OFFICER"]
["522B100000","FINANCE DIVISION"]
["522B200000","BUDGET DIVISION"]
["522D000000","OFFICE OF THE ASST MGR FOR INFRASTRUCTURE & ENVIRONMENTAL STEWARDSHIP"]
["522D400000","ENVIRONMENTAL QUALITY MGMT DIVISION"]
["522D500000","INFRASTRUCTURE AND AREA COMPLETION DIVISION"]
["522E000000","OFFICE OF THE AM FOR NUCLEAR MATERIAL STABILIZATION"]
["522E100000","NUCLEAR MATERIAL OPERATIONS DIVISION"]
["522E200000","NUCLEAR MATERIAL ENGINEERING DIVISION"]
["522E300000","NUCLEAR MATERIAL PROGRAMS DIVISION"]
["522F000000","OFFICE OF THE AM FOR WASTE DISPOSITION"]
["522F100000","WASTE DISPOSITION OPERATIONS DIVISION"]
["522F200000","WASTE DISPOSITION ENGINEERING DIVISION"]
["522F300000","WASTE DISPOSITION PROGRAMS DIVISION"]
["522H000000","OFFICE OF SAFEGUARDS, SECURITY AND EMERGENCY SERVICES"]
["522H100000","SECURITY PROGRAMS DIVISION"]
["522H200000","SAFEGUARDS & INFORMATION TECHNOLOGY DIVISION"]
["522K000000","SALT WASTE PROCESSING FACILITY PROJECT OFFICE"]
["522K200000","ENGINEERING AND QUALITY ASSURANCE DIVISION"]
["522K300000","CONSTRUCTION AND STARTUP DIVISION"]
["522N000000","OFFICE OF THE ASSISTANT MANAGER FOR MISSION SUPPORT"]
["522N200000","OFFICE OF INTEGRATION AND PLANNING"]
["522N210000","MANAGEMENT SYSTEMS DIVISION"]
["522N220000","MISSION PLANNING DIVISION"]
["522N300000","OFFICE OF ACQUISITION MANAGEMENT"]
["522N310000","CONTRACTS MANAGEMENT DIVISION"]
["522N320000","ACQUISITION OPERATIONS DIVISION"]
["522Q000000","OFFICE OF AM FOR ORGANIZATIONAL CULTURE, SAFETY AND QUALITY ASSUR MGMT"]
["522Q100000","OFFICE OF SAFETY AND QUALITY ASSURANCE"]
["522Q110000","TECHNICAL SUPPORT DIVISION"]
["522Q120000","PERFORMANCE ASSURANCE DIVISION"]
["522Q200000","OFFICE OF HUMAN CAPITAL MANAGEMENT"]
["5510000001","IMMEDITATE OFFICE OF THE DIRECTOR, CONSOLIDATED BUSINESS CENTER"]
["5510010000","SMALL SITES - REMOTE"]
["5510100000","OFFICE OF CHIEF COUNSEL"]
["5510200000","OFFICE OF CIVIL RIGHTS AND DIVERSITY"]
["5511000000","OFFICE OF FINANCIAL MANAGEMENT"]
["5512000000","OFFICE OF TECHNICAL SUPPORT AND ASSET MANAGEMENT"]
["5513000000","OFFICE OF INFORMATION RESOURCE MANAGEMENT"]
["5514000000","OFFICE OF HUMAN RESOURCES"]
["5515000000","OFFICE OF CONTRACTING"]
["5517000000","OFFICE OF COST ESTIMATING AND PROJECT MANAGEMENT SUPPORT"]
["6050000001","IMMEDIATE OFFICE OF THE MANAGER"]
["6057000000","OFFICE OF BUSINESS OPERATIONS"]
["605B000000","OFFICE OF QUALITY ASSURANCE"]
["605F000000","OFFICE OF PROGRAM MANAGEMENT"]
["605F100000","TRU SITES AND TRANSPORTATION DIVISION"]
["605F200000","INTERNATIONAL & SCIENTIFIC TRU PROGRAMS"]
["605F300000","SECURITY PROGRAM"]
["605F400000","WIPP PROGRAM"]
["605G000000","OFFICE OF OPERATIONS OVERSIGHT"]
["605G100000","SAFETY PROGRAMS DIVISION"]
["605G200000","ENVIRONMENTAL PROTECTION DIVISION"]
["605G300000","FACILITY ENGINEERING DIVISION"]
["605G400000","SAFETY AND HEALTH DIVISION"]
["605G500000","FACILITY OVERSIGHT DIVISION"]
["6060000000","OFFICE OF ENVIRONMENTAL MANAGEMENT LOS ALAMOS FIELD OFFICE"]
["6100000001","IMMEDIATE OFFICE OF THE MANAGER, OREM"]
["6101000000","PLANNING AND BASELINE MANAGEMENT DIVISION"]
["6102000000","FACILITY OPERATIONS DIVISION"]
["6104000000","PROJECT MANAGEMENT DIVISION"]
["6105000000","ENGINEERING, SAFETY AND QUALITY DIVISION"]
["6150000001","IMMEDIATE OFFICE OF THE MANAGER, NE-OR SITE"]
["6151000000","LEASE AND TECHNICAL MANAGEMENT BRANCH"]
["6152000000","REGULATORY MANAGEMENT TEAM"]
["7120000001","IMMEDIATE OFFICE OF THE MANAGER"]
["7121000000","LEXINGTON OPERATIONS GROUP"]
["7122000000","PADUCAH OPERATIONS OVERSIGHT GROUP"]
["7123000000","PORTSMOUTH OPERATIONS OVERSIGHT GROUP"]
["7260010000","IMMEDIATE OFFICE OF THE DIRECTOR(NETL)"]
["7260100000","OFFICE OF CHIEF COUNSEL"]
["7260110000","LEGAL DIVISION"]
["7260120000","ENVIRONMENTAL COMPLIANCE DIVISION"]
["7260500000","STRATEGIC ENERGY ANALYSIS & PLANNING DIVISION"]
["7260600000","HUMAN RESOURCES DIVISION"]
["7260610000","STAFFING/CLASSIFICATION & INFORMATION SYSTEMS BRANCH"]
["7260620000","EMPLOYEE/LABOR RELATIONS & DEVELOPMENT BRANCH"]
["7260700000","PUBLIC AFFAIRS & STRATEGIC OUTREACH DIVISION"]
["726A000000","STRATEGIC CENTER FOR NATURAL GAS & OIL"]
["726A300000","NATURAL GAS AND OIL PROJECT MANAGEMENT DIVISION"]
["726B000000","STRATEGIC CENTER FOR COAL"]
["726B100000","OFFICE OF COAL & POWER R&D"]
["726B110000","STORAGE DIVISION"]
["726B120000","CAPTURE DIVISION"]
["726B130000","ADVANCED ENERGY SYSTEMS DIVISION"]
["726B140000","CROSSCUTTING RESEARCH DIVISION"]
["726B200000","OFFICE OF MAJOR DEMONSTRATIONS"]
["726B210000","MAJOR PROJECTS DIVISION"]
["726B230000","PROJECT FINANCING & TECHNOLOGY DEPLOYMENT DIVISION"]
["726B300000","OFFICE OF PROGRAM PERFORMANCE & BENEFITS"]
["726B310000","PERFORMANCE DIVISION"]
["726B320000","BENEFITS DIVISION"]
["726D000000","OFFICE OF ENERGY PROJECT MANAGEMENT"]
["726D010000","BUILDINGS AND EFFICIENCY TECHNOLOGIES DIVISION"]
["726D020000","POWER AND VEHICLES TECHNOLOGIES DIVISION"]
["726D040000","ENERGY DELIVERY TECHNOLOGIES DIVISION"]
["726E000000","OFFICE OF RESEARCH AND DEVELOPMENT"]
["726E0B0000","MOLECULAR SCIENCE DIVISION"]
["726E0C0000","THERMAL SCIENCES DIVISION"]
["726E0D0000","COMPUTATIONAL SCIENCE & ENGINEERING DIVISION"]
["726E0E0000","STRUCTURAL MATERIALS DEVELOPMENT DIVISION"]
["726E0F0000","ENGINEERED NATURAL SYSTEMS DIVISION"]
["726E0G0000","FUNCTIONAL MATERIALS DEVELOPMENT DIVISION"]
["726E0H0000","ENERGY PROCESS INNOVATION DIVISION"]
["726E0J0000","PREDICTIVE GEOSCIENCES DIVISION"]
["726E0K0000","MATERIALS CHARACTERIZATION DIVISION"]
["726E0L0000","CROSSCUTTING RESEARCH SUPPORT DIVISION"]
["726E0L1000","PROJECT, BUDGET & SSC MANAGEMENT BRANCH"]
["726E0L2000","LABORATORY SAFETY BRANCH"]
["726E0L3000","LABORATORY ENGINEERING BRANCH"]
["726F000000","OFFICE OF INSTITUTIONAL OPERATIONS"]
["726F020000","INFORMATION TECHNOLOGY DIVISION"]
["726F021000","INFRASTRUCTURE OPERATIONS & ENGINEERING BRANCH"]
["726F022000","INFORMATION SOLUTIONS & ENGINEERING BRANCH"]
["726F040000","ENVIRONMENT, SAFETY, SECURITY & HEALTH"]
["726F041000","ENVIRONMENTAL BRANCH"]
["726F042000","SAFETY & HEALTH BRANCH"]
["726F043000","SECURITY/ERO BRANCH"]
["726F060000","SITE OPERATIONS DIVISION"]
["726F061000","ENGINEERING BRANCH"]
["726F062000","FACILITY MANAGEMENT BRANCH"]
["726J000000","OFFICE OF FINANCE, ACQUISITION & ASSISTANCE"]
["726J010000","INTERNAL REVIEW & QUALITY ASSURANCE DIVISION"]
["726J020000","FINANCE DIVISION"]
["726J021000","BUDGET DEVELOPMENT, ANALYSIS & FORECASTING BRANCH"]
["726J022000","GENERAL ACCOUNTING, COST MANAGEMENT & FINANCIAL REPORTING BRANCH"]
["726J030000","ACQUISITION & ASSISTANCE DIVISION"]
["726J031000","PROGRAM OPERATIONS BRANCH A"]
["726J032000","PROGRAM OPERATIONS BRANCH B"]
["726J033000","PROGRAM OPERATIONS COS BRANCH"]
["726J034000","SITE SUPPORT BRANCH"]
["726J035000","POLICY & ANALYSIS BRANCH"]
["7400000001","IMMEDIATE OFFICE OF THE PROJECT MANAGER (SPRO)"]
["7400200000","OFFICE OF CHIEF COUNSEL"]
["7401000000","OFFICE OF THE ASSISTANT PROJECT MANAGER, TECHNICAL ASSURANCE"]
["7401100000","ENVIRONMENTAL, SAFETY AND HEALTH DIVISION"]
["7401300000","SECURITY AND EMERGENCY OPERATIONS DIVISION"]
["7401400000","QUALITY AND PERFORMANCE ASSURANCE DIVISION"]
["7402000000","OFFICE OF ASSISTANT PROJECT MANAGER FOR MAINTENANCE AND OPERATIONS"]
["7402100000","SITE OPERATIONS AND MAINTENANCE DIVISION"]
["7402140000","BRYAN MOUND"]
["7402150000","BIG HILL"]
["7402160000","WEST HACKBERRY"]
["7402170000","BAYOU CHOCTAW"]
["7402200000","CRUDE OIL, DRAWDOWN READINESS AND CAVERN INTEGRITY DIVISION"]
["7403000000","OFFICE OF THE ASSISTANT PROJECT MANAGER, MANAGEMENT AND ADMINISTRATION"]
["7403030000","OFFICE OF HUMAN RESOURCES"]
["7403100000","ACQUISITION AND SALES DIVISION"]
["7403200000","PLANNING AND FINANCIAL MANAGEMENT DIVISION"]
["7404000000","OFFICE OF ASSISTANT PROJECT MANAGER, SYSTEMS AND PROJECTS"]
["7404020000","OFFICE OF INFORMATION SYSTEMS AND TECHNICAL SERVICES"]
["7404100000","SYSTEMS ENGINEERING AND ANALYSIS DIVISION"]
["7404200000","PROJECT ENGINEERING DIVISION"]
["7730400000","OFFICE OF THE ADMINISTRATOR"]
["7730450000","ASSISTANT ADMINISTRATOR HUMAN RESOURCES AND ADMINISTRATION"]
["7730460000","ASSISTANT ADMINISTRATOR POWER RESOURCES"]
["7730470000","ASSISTANT ADMINISTRATOR FINANCE AND MARKETING"]
["7741000000","OFFICE OF THE ADMINISTRATOR"]
["7741200000","OFFICE OF GENERAL COUNSEL"]
["7741300000","DIVISION OF RELIABILITY, COMPLIANCE AND TRANSMISSION POLICY"]
["7743100000","DIVISION OF RESOURCES AND RATES"]
["7743200000","DIVISION OF ELECTRIC POWER MARKETING"]
["7743400000","DIVISION OF SCHEDULING & OPERATIONS"]
["7746100000","DIVISION OF FINANCIAL MANAGEMENT"]
["7746200000","DIVISION OF HUMAN RESOURCES MANAGEMENT"]
["7746300000","DIVISION OF ACQUISITION"]
["7746400000","DIVISION OF INTERNAL BUSINESS SERVICES"]
["7748000000","OFFICE OF CORPORATE FACILITIES"]
["7748200000","DIVISION OF MAINTENANCE"]
["7748220000","JONESBORO MAINTENANCE UNIT"]
["7748230000","GORE MAINTENANCE UNIT"]
["7748240000","SPRINGFIELD MAINTENANCE UNIT"]
["7748500000","DIVISON OF TRANSMISSION ENGINEERING & PLANNING"]
["7748600000","DIVISION OF INFORMATION TECHNOLOGY & SECURITY"]
["7748700000","DIVISION OF SYSTEM PROTECTION & COMMUNICATIONS"]
["7810000000","NAVAL PETROLEUM RESERVES IN COLORADO, UTAH, AND WYOMING"]
["7900000001","IMMEDIATE OFFICE OF THE DIRECTOR (GO)"]
["790B000000","BUSINESS SERVICES DIVISION"]
["790B100000","OFFICE OF CHIEF COUNSEL"]
["790B200000","ENVIRONMENTAL OVERSIGHT OFFICE"]
["790B300000","NATIONAL LABORATORY OVERSIGHT OFFICE"]
["790B400000","FINANCIAL OVERSIGHT OFFICE"]
["790C000000","PROCUREMENT SERVICES DIVISION"]
["790C100000","ACQUISITION OFFICE"]
["790C200000","FINANCIAL ASSISTANCE OFFICE"]
["820AAAA000","EXECUTIVE OFFICE"]
["820CBAA000","CHIEF RISK OFFICER"]
["820CBCA000","TRANSACTING & CREDIT RISK MGMT"]
["820CBEA000","ENTERPRISE RISK MANAGEMENT"]
["820CEAA000","CIVIL RIGHTS & EEO"]
["820CGAA000","COMPLIANCE & GOVERNANCE"]
["820CGCA000","GOVERNANCE & CONTROLS"]
["820CGFA000","FERC COMPLIANCE"]
["820CGPA000","PURCHASING PROPERTY GOVERNANCE"]
["820CNAA000","INTERNAL AUDIT"]
["820CNGA000","GOVERNACE & SUPPORT PROCESSES"]
["820CNPA000","POWER & RELATED PROCESSES"]
["820CNTA000","TRANSMISSION & RELATED PROCESSES"]
["820DAAA000","DEPUTY ADMINISTRATOR"]
["820DIAA000","INTERGOVERNMENTAL AFFAIRS"]
["820DINA000","NATIONAL RELATIONS"]
["820DIRA000","REGIONAL RELATIONS"]
["820DITA000","TRIBAL AFFAIRS"]
["820DKCA000","EMPLOYEE COMM AND GRAPHICS"]
["820DKEA000","PUBLIC & COMMUNITY ENGAGEMENT"]
["820DKPA000","MEDIA RELATIONS AND POLICY"]
["820DKPM000","OBS-MEDIA RELATIONS"]
["820DKPW000","OBS-POLICY WRITING"]
["820FAAA000","FINANCE"]
["820FBAA000","BUDGET PLANNING & FORECASTING"]
["820FBFA000","BUDGET STRATEGY & FORECASTING"]
["820FBSA000","AGENCY SVCS & POWER SUPPORT"]
["820FBTA000","TRANSMISSION SUPPORT"]
["820FCAA000","FINANCIAL INFORMATION SYSTEMS"]
["820FRAA000","ACCOUNTING AND REPORTING"]
["820FRGA000","GENERAL ACCOUNTING"]
["820FRPA000","ASSET ACCOUNTING"]
["820FRSA000","FINANCIAL STATEMENTS"]
["820FSAA000","ANALYSIS AND REQUIREMENTS"]
["820FTAA000","TREASURY"]
["820FTCA000","DEBT & INVESTMENT MANAGEMENT"]
["820FTDA000","DISBURSEMENT OPERATIONS"]
["820FTDP000","PAYROLL AND TRAVEL"]
["820FTTA000","CASH AND TREASURY MGMT"]
["820JAAA000","INFORMATION TECHNOLOGY"]
["820JBAA000","CYBER SECURITY"]
["820JCAA000","CRITICAL BUS SYS OPS & DEV"]
["820JCDA000","CRITICAL BUS SYS DEVELOPMENT"]
["820JCMA000","CRITICAL BUS SYS MNT & OPS DSK"]
["820JCOA000","CRITICAL BUS SYS OPERATIONS"]
["820JNAA000","INFRASTRUCTURE SERVICES"]
["820JNDA000","DATA CENTER SERVICES"]
["820JNIA000","INFRASTRUCTURE ADMIN SERVICES"]
["820JNNA000","NETWORK SERVICES"]
["820JNPA000","INFRASTRUCTURE PROJECTS"]
["820JPAA000","IT PROJECT MANAGEMENT"]
["820JQAA000","QUALITY CONTROL"]
["820JRAA000","IT CLIENT SERVICES"]
["820JRDA000","DESKTOP OPERATIONS"]
["820JRFA000","FIELD SUPPORT SERVICES"]
["820JRMA000","IT ASSET MANAGEMENT"]
["820JRSA000","IT SERVICE DESK"]
["820JSAA000","SOFTWARE DEVELOPMENT & OPS"]
["820JSCA000","AGENCY COMMERCIAL SYSTEMS"]
["820JSIA000","BUSINESS APPLICATIONS"]
["820JSOA000","BUSINESS SYSTEMS OPERATIONS"]
["820JSOD000","BUSINESS SYSTEMS OPS DATABASE"]
["820JSOS000","BUSINESS SYSTEMS OPS SERVER"]
["820JSPA000","ENTERPRISE APPLICATIONS SPPT"]
["820JSRA000","DATA INTEGRATION & REPORTING"]
["820JSTA000","ASSET MGMT & ENGINEERING APPS"]
["820KAAA000","CHIEF OPERATING OFFICER"]
["820KEAA000","ENVIRONMENT, FISH & WILDLIFE"]
["820KECA000","ENVIRONMENTAL PLANNING AND ANALYSIS"]
["820KEPA000","POLLUTION, PREVENTION & ABATEMENT"]
["820KEPR000","TECHNICAL AND REGIONAL SERVICES"]
["820KEWA000","FISH AND WILDLIFE PROGRAM"]
["820KEWB000","BUSINESS OPERATIONS SUPPORT"]
["820KEWL000","OREGON IMPLEMENTATION"]
["820KEWM000","IDAHO/MONTANA IMPLEMENTATION"]
["820KEWR000","POLICY AND PLANNING"]
["820KEWU000","WASHINGTON IMPLEMENTATION"]
["820KSAA000","CUSTOMER SUPPORT SERVICES"]
["820KSBA000","CUSTOMER BILLING"]
["820KSCA000","CONTRACT MGMT & ADMINISTRATION"]
["820KSLA000","LOAD FORECASTING & ANALYSIS"]
["820KSMA000","METERING SERVICES"]
["820LAAA000","OFFICE OF GENERAL COUNSEL"]
["820LGAA000","GENERAL"]
["820LNAA000","NATURAL RESOURCES"]
["820LPAA000","POWER"]
["820LTAA000","TRANSMISSION"]
["820NAAA000","CHIEF ADMINISTRATIVE OFFICE"]
["820NFAA000","SAFETY"]
["820NHAA000","HUMAN CAPITAL MANAGEMENT"]
["820NHEA000","EMPLOYEE & LABOR RELATIONS"]
["820NHIA000","INTEGRATED STRATEGY"]
["820NHOA000","HR INFORMATION MANAGEMENT"]
["820NHQA000","STAFFING & CLASSIFICATION"]
["820NHSA000","EMPLOYEE SERVICES"]
["820NHTA000","LEARNING & DEVELOPMENT"]
["820NNAA000","SECURITY & CONTINUITY OF OPS"]
["820NNCA000","CONTINUITY OF OPERATIONS"]
["820NNPA000","PERSONNEL AND INFORMATION SECURITY"]
["820NNTA000","PHYSICAL SECURITY"]
["820NSAA000","SUPPLY CHAIN SERVICES"]
["820NSFA000","FLEET MANAGEMENT"]
["820NSFE000","FLEET EQUIP ANALYSIS & POLICY"]
["820NSFN000","MOBILE EQUIP MAINTENANCE-NORTH"]
["820NSFP000","EQUIPMENT AND TOOL LOAN POOL"]
["820NSFS000","MOBILE EQUIP MAINTENANCE-SOUTH"]
["820NSLA000","LOGISTICS MANAGEMENT"]
["820NSLT000","WAREHOUSE AND TRANSPORTATION"]
["820NSPA000","SUPP LABOR MANAGEMENT OFFICE"]
["820NSSA000","CONTRACTS & STRATEGIC SOURCING"]
["820NSSF000","SERVICES ACQUISITION TEAM"]
["820NSSM000","MATERIALS ACQUISITION TEAM"]
["820NSSP000","GRANTS & AGREEMENTS TEAM"]
["820NSSS000","STRATEGY & OVERSIGHT TEAM"]
["820NSSV000","CONSTRUCTION ACQUISITION TEAM"]
["820NSTA000","TECH & STRATEGIC PLANNING"]
["820NSTP000","TECHNOLOGY PLANNING"]
["820NSTS000","TECHNOLOGY SERVICES SUPPORT"]
["820NWAA000","WORKPLACE SERVICES"]
["820NWFA000","FACILITIES O&M"]
["820NWFC000","CRITICAL FACILITIES O&M"]
["820NWFR000","ROSS O&M"]
["820NWMA000","FACILITIES PLANNING & PROJECTS"]
["820NWOA000","WORKPLACE SERVICES OPERATIONS"]
["820NWPA000","SERVICES"]
["820NWPP000","MAIL AND MEDIA SERVICES"]
["820NWPS000","SPACE MANAGEMENT"]
["820PAAA000","POWER SERVICES"]
["820PBAA000","POWER SERVICES BUSINESS OPERATIONS"]
["820PEAA000","ENERGY EFFICIENCY"]
["820PEHA000","PLANNING & EVALUATION"]
["820PEJA000","PROGRAM IMPLEMENTATION"]
["820PEJB000","PROGRAM MARKETING"]
["820PEJC000","PROGRAMS"]
["820PEJD000","ENGINEERING SERVICES"]
["820PEKA000","CONTRACT ADMINISTRATION"]
["820PESA000","SMART GRID"]
["820PGAA000","GENERATION ASSET MANAGEMENT"]
["820PGBA000","FISH OPERATIONS POLICY & PLANNING"]
["820PGCA000","CONTRACT GENERATING RESOURCES"]
["820PGFA000","FEDERAL HYDRO PROJECTS"]
["820PGLA000","SLICE OPERATIONS & MANAGEMENT"]
["820PGPA000","POWER & OPERATION PLANNING"]
["820PGPL000","REGIONAL COORDINATION"]
["820PGPO000","OPERATIONS PLANNING"]
["820PGPR000","LONG TERM POWER PLANNING"]
["820PGPW000","WEATHER & STREAMFLOW FORECASTING"]
["820PGSA000","GENERATION SCHEDULING"]
["820PGSD000","DUTY SCHEDULING"]
["820PGSP000","SHORT TERM PLANNING"]
["820PGST000","GENERATION SUPPORT"]
["820PSAA000","NW REQUIREMENTS MARKETING"]
["820PSEA000","EASTERN CUSTOMER SERVICES"]
["820PSIA000","RESIDENTIAL EXCHANGE PROGRAM"]
["820PSRA000","POWER RATES"]
["820PSSA000","POWER ACCOUNT SERVICES"]
["820PSSE000","EASTERN POWER ACCOUNT SERVICES"]
["820PSTA000","TRANSFER SERVICES"]
["820PSWA000","WESTERN CUSTOMER SERVICES"]
["820PTAA000","BULK MARKETING"]
["820PTCA000","BULK MRKTING CONTRACT SUPPORT"]
["820PTFA000","TRADING FLOOR"]
["820PTFR000","REAL TIME AND DAILY"]
["820PTKA000","SCHEDULING COORDINATION"]
["820PTKP000","POWER SCHEDULING PRESCHEDULE"]
["820PTKR000","POWER SCHEDULING REALTIME"]
["820PTKT000","TRANSFER SCHEDULING & ATF"]
["820PTLA000","LONG TERM SALES AND PURCHASES"]
["820PTMA000","MARKET ANALYSIS AND PRICING"]
["820SAAA000","CORPORATE STRATEGY"]
["820SEAA000","STRATEGY EXECUTION"]
["820SPAA000","STRATEGIC PLANNING"]
["820SRAA000","STRATEGY INTEGRATION"]
["820STAA000","TECHNOLOGY INNOVATIONS"]
["820TAAA000","TRANSMISSION SERVICES"]
["820TCAA000","AIRCRAFT SERVICES"]
["820TDAA000","TRANSMISSION STUDENT DEVELOPMENT"]
["820TEAA000","ENGINEERING AND TECHNICAL SVCS"]
["820TECA000","SYSTEM CONTROL ENGINEERING"]
["820TECC000","PROTECTION ENGINEERING"]
["820TECD000","DATA SYSTEMS ENGINEERING"]
["820TECE000","TECHNICAL EVAL & SYS TESTING"]
["820TECM000","MEASUREMENT SYSTEMS"]
["820TECP000","PSC TECHNICAL SVCS"]
["820TECR000","RAS ENGINEERING"]
["820TECS000","SPC TECHNICAL SVCS"]
["820TECT000","TELECOM ENGINEERING"]
["820TEDA000","CONTRACT MANAGEMENT OFFICE"]
["820TELA000","TRANSMISSION ENGINEERING"]
["820TELC000","TRANSMISSION LINE DESIGN"]
["820TELD000","STRUCTURAL DESIGN"]
["820TELF000","CIVIL DESIGN"]
["820TELM000","TLM TECHNICAL SVCS"]
["820TELP000","PROJECT ENGINEERING"]
["820TEPA000","TRANSMISSION PROJECT MGMT"]
["820TEPO000","PROJECT MGMT ANALYSIS & SCHEDULE"]
["820TERA000","REAL PROPERTY SVCS"]
["820TERG000","GEOSPATIAL SVCS"]
["820TERM000","SURVEYING AND MAPPING"]
["820TERP000","REAL PROPERTY SVCS PROJECTS"]
["820TERR000","REAL PROPERTY FIELD SERVICES"]
["820TERS000","VALUATION AND FORESTRY"]
["820TESA000","SUBSTATION ENGINEERING"]
["820TESD000","SUBSTATION DESIGN"]
["820TESF000","FACILITIES ENGINEERING"]
["820TESM000","SUB MAINT AND HV ENGINEERING"]
["820TEST000","LAB AND FIELD SVCS"]
["820TETA000","COMMISSIONING AND TESTING"]
["820TETC000","POWER TEST AND ENERGIZATION"]
["820TETD000","COMM TEST AND ENERGIZATION"]
["820TETQ000","CONSTRUCTION MGMT AND INSPECT"]
["820TETS000","SPECIALITY SERVICES"]
["820TFAA000","TRANSMISSION FIELD SERVICES"]
["820TFBA000","INTERNAL OPERATIONS"]
["820TFBT000","TECHNICAL TRAINING"]
["820TFBV000","VEGETATION/ACCESS ROAD MGMT"]
["820TFBW000","WORK PLANNING AND EVALUATION"]
["820TFCA000","COVINGTON DISTRICT"]
["820TFCB000","SUBSTATION OPS COVINGTON"]
["820TFCC000","PSC COVINGTON"]
["820TFCD000","SPC COVINGTON"]
["820TFCE000","SUBSTATION MAINT COVINGTON"]
["820TFCF000","TLM COVINGTON"]
["820TFCV000","FACILITY MAINT COVINGTON"]
["820TFDA000","THE DALLES DISTRICT"]
["820TFDB000","SUBSTATION OPS THE DALLES"]
["820TFDC000","PSC THE DALLES"]
["820TFDD000","SPC THE DALLES"]
["820TFDE000","SUBSTATION MAINT THE DALLES"]
["820TFDF000","TLM THE DALLES"]
["820TFDG000","SUBSTATION OPS CELILO"]
["820TFDI000","SPC CELILO"]
["820TFDJ000","SUBSTATION MAINT CELILO"]
["820TFDV000","FACILITY MAINT THE DALLES"]
["820TFEA000","EUGENE DISTRICT"]
["820TFEB000","SUBSTATION OPS ALVEY"]
["820TFEC000","PSC ALVEY"]
["820TFED000","SPC ALVEY"]
["820TFEE000","SUBSTATION MAINT ALVEY"]
["820TFEF000","TLM ALVEY"]
["820TFEL000","SUBSTATION OPS NORTH BEND"]
["820TFEM000","PSC NORTH BEND"]
["820TFEN000","SPC NORTH BEND"]
["820TFEO000","SUBSTATION MAINT NORTH BEND"]
["820TFEP000","TLM NORTH BEND"]
["820TFHA000","CONSTRUCTION & MAINTENANCE SVCS"]
["820TFHC000","COMPLEX CREWS"]
["820TFHE000","CENTRAL ELECTRICAL SERVICES"]
["820TFHG000","GENERAL CRAFT SERVICES"]
["820TFHL000","LIVE-LINE CREW"]
["820TFHS000","SPECIALITY SERVICES"]
["820TFIA000","IDAHO FALLS DISTRICT"]
["820TFIC000","PSC IDAHO FALLS"]
["820TFIF000","TLM IDAHO FALLS"]
["820TFIG000","SUBSTATION OPS IDAHO FALLS"]
["820TFII000","SPC IDAHO FALLS"]
["820TFIJ000","SUBSTATION MAINT BURLEY"]
["820TFIO000","SUBSTATION MAINT IDAHO FALLS"]
["820TFIV000","FACILITY MAINTENANCE IDAHO FALLS"]
["820TFKA000","KALISPELL DISTRICT"]
["820TFKB000","SUBSTATION OPS KALISPELL"]
["820TFKC000","PSC KALISPELL"]
["820TFKD000","SPC KALISPELL"]
["820TFKE000","SUBSTATION MAINT KALISPELL"]
["820TFKF000","TLM KALISPELL"]
["820TFKI000","SPC GARRISON"]
["820TFKJ000","SUBSTATION MAINT GARRISON"]
["820TFLA000","SALEM DISTRICT"]
["820TFLB000","SUBSTATION OPS CHEMAWA"]
["820TFLC000","PSC CHEMAWA"]
["820TFLD000","SPC CHEMAWA"]
["820TFLE000","SUBSTATION MAINT CHEMAWA"]
["820TFLF000","TLM CHEMAWA"]
["820TFLJ000","SUBSTATION MAINTENANCE KEELER"]
["820TFLV000","FACILITY MAINT SALEM"]
["820TFNA000","SNOHOMISH DISTRICT"]
["820TFNB000","SUBSTATION OPS SNOHOMISH"]
["820TFNC000","PSC SNOHOMISH"]
["820TFND000","SPC SNOHOMISH"]
["820TFNE000","SUBSTATION MAINT SNOHOMISH"]
["820TFNF000","TLM SNOHOMISH"]
["820TFNO000","SUBSTATION MAINT CUSTER"]
["820TFOA000","OLYMPIA DISTRICT"]
["820TFOB000","SUBSTATION OPS OLYMPIA"]
["820TFOC000","PSC OLYMPIA"]
["820TFOD000","SPC OLYMPIA"]
["820TFOE000","SUBSTATION MAINT OLYMPIA"]
["820TFOF000","TLM OLYMPIA"]
["820TFOK000","TLM CHEHALIS"]
["820TFON000","SPC KITSAP"]
["820TFOV000","FACILITY MAINT OLYMPIA"]
["820TFOY000","SUBSTATION MAINT PORT ANGELES"]
["820TFPA000","TRI-CITIES DISTRICT"]
["820TFPB000","SUBSTATION OPS FRANKLIN"]
["820TFPC000","SPC FRANKLIN"]
["820TFPD000","SPC MCNARY"]
["820TFPE000","SUBSTATION MAINT PASCO"]
["820TFPF000","TLM PASCO"]
["820TFPG000","SUBSTATION OPS ASHE"]
["820TFPH000","PSC ASHE"]
["820TFPI000","SPC ASHE"]
["820TFPJ000","SUBSTATION MAINT ASHE"]
["820TFPM000","PSC MCNARY"]
["820TFPO000","SUBSTATION MAINT MCNARY"]
["820TFRA000","REDMOND DISTRICT"]
["820TFRB000","SUBSTATION OPS REDMOND"]
["820TFRC000","PSC REDMOND"]
["820TFRD000","SPC REDMOND"]
["820TFRE000","SUBSTATION MAINT REDMOND"]
["820TFRF000","TLM REDMOND"]
["820TFRG000","SUBSTATION OPS MALIN"]
["820TFRH000","PSC MALIN"]
["820TFRI000","SPC MALIN"]
["820TFRJ000","SUBSTATION MAINT MALIN"]
["820TFRV000","FACILITY MAINT REDMOND"]
["820TFSB000","SUBSTATION OPS BELL"]
["820TFSC000","PSC BELL"]
["820TFSD000","SPC BELL"]
["820TFSE000","SUBSTATION MAINT BELL"]
["820TFSF000","TLM BELL"]
["820TFSL000","SPC LEWISTON"]
["820TFSW000","SUBSTATION MAINT LEWISTON"]
["820TFVA000","LONGVIEW DISTRICT"]
["820TFVB000","SUBSTATION OPS LONGVIEW"]
["820TFVC000","PSC LONGVIEW"]
["820TFVD000","SPC LONGVIEW"]
["820TFVE000","SUBSTATION MAINT LONGVIEW"]
["820TFVG000","SUBSTATION OPS ROSS"]
["820TFVH000","PSC ROSS"]
["820TFVI000","SPC ROSS"]
["820TFVJ000","SUBSTATION MAINT ROSS"]
["820TFVK000","TLM ROSS"]
["820TFVV000","FACILITY MAINT LONGVIEW"]
["820TFWA000","WENATCHEE DISTRICT"]
["820TFWB000","SUBSTATION OPS SICKLER"]
["820TFWC000","PSC SICKLER"]
["820TFWD000","SPC SICKLER"]
["820TFWE000","SUBSTATION MAINT SICKLER"]
["820TFWF000","TLM ELLENSBURG"]
["820TFWK000","TLM GRAND COULEE"]
["820TFWV000","FACILITY MAINT WENATCHEE"]
["820TFZA000","APPRENTICES"]
["820TGAA000","TRANSMISSION INTERNAL OPS"]
["820TOAA000","SYSTEM OPERATIONS"]
["820TODA000","DITTMER DISPATCH"]
["820TOHA000","CONTROL CNTR HW DESIGN & MAINT"]
["820TOHD000","CC HW DSGN/STDS MONTR & ADMIN"]
["820TOHH000","DCC DATA SYSTEM HARDWARE MAINT"]
["820TOHP000","CONTROL CENTER PSC"]
["820TOKA000","CONGESTION&DISPATCH SUPPORT"]
["820TOSA000","REAL TIME CONTROL SYSTEMS SW"]
["820TOSD000","OPERATIONS & DISPATCH SUPPORT"]
["820TOSE000","ENERGY MANAGEMENT SYSTEMS"]
["820TOSP000","PROJECT AND PLANNING SUPPORT"]
["820TOTA000","TECHNICAL OPERATIONS"]
["820TOVA000","MUNRO DISPATCH"]
["820TOZA000","SUBSTATION OPERATIONS"]
["820TPAA000","PLANNING & ASSET MANAGEMENT"]
["820TPCA000","CUSTOMER SERVICE ENGINEERING"]
["820TPCC000","CONTRACT ADMINISTRATION"]
["820TPCF000","EASTERN ENGINEERING"]
["820TPCV000","WESTERN ENGINEERING"]
["820TPLA000","LONG TERM PLANNING"]
["820TPMA000","COMMUNICATIONS & GRID MODELING"]
["820TPMC000","COMMUNICATIONS/CONTROL PLNG"]
["820TPMG000","TRANSMISSION GRID MODELING"]
["820TPOA000","STRATEGY & PROGRAM MANAGEMENT"]
["820TPOR000","RELIABILITY CENTERED MAINT"]
["820TPPA000","TRANSMISSION PLANNING"]
["820TPSA000","STANDARDS"]
["820TPWA000","ASSET MGMT OVERSIGHT & PROG SUPT"]
["820TPWE000","ESTIMATING"]
["820TPWP000","PROGRAM COORDINATION"]
["820TSAA000","TRANSMISSION MARKETING & SALES"]
["820TSEA000","TRANSMISSION SALES"]
["820TSES000","TRANSMISSION ACCOUNT SERVICES"]
["820TSPA000","TRANSMISSION POLICY & STRATEGY"]
["820TSPP000","POLICY DEVELOPMENT & ANALYSIS"]
["820TSPQ000","COMMERCIAL BUSINESS ASSESSMENT"]
["820TSRA000","TRANS COMMERCIAL SYSTEM MGMT"]
["820TSRF000","TRANS COMMRCL SYS PROCESS&IMP"]
["820TSRS000","TRANS COMMRCL SYS PROD SUPPORT"]
["820TSSA000","TRANSMISSION SCHEDULING"]
["820TSSP000","OASIS CAP DESK, PRE-SCH & ATF"]
["820TSST000","REAL-TIME SCHEDULING"]
["830AA0000","ADMINISTRATOR"]
["830AA0200","GENERAL COUNSEL"]
["830AA0300","ECONOMIC IMPACT AND DIVERSITY"]
["830AA0400","CHIEF RISK OFFICER"]
["830AA0500","CORPORATE LIAISON"]
["830AA0700","TRANSMISSION INFRASTRUCTURE PROGRAM"]
["830AA0800","OFFICE OF PUBLIC AFFAIRS"]
["830AA2000","CHIEF INFORMATION OFFICER"]
["830AA2100","OPERATIONS"]
["830AA2200","ENTERPRISE MANAGEMENT"]
["830AA7000","OFFICE OF THE CHIEF OPERATING OFFICER"]
["830AA7010","RELIABILITY COMPLIANCE MANAGEMENT"]
["830AA7020","SAFETY AND OCCUPATIONAL HEALTH"]
["830AA7030","SECURITY AND EMERGENCY MANAGEMENT"]
["830AA7100","PROCUREMENT OFFICE"]
["830AA7200","OFFICE OF HUMAN RESOURCES"]
["830AA7210","WORKFORCE RELATIONS"]
["830AA7220","EMPLOYMENT AND POSITION MANAGEMENT"]
["830AA7300","ELECTRIC POWER TRAINING CENTER"]
["830AA7400","NATURAL RESOURCES OFFICE"]
["830AA7800","TECHNICAL SERVICES"]
["830AA7810","AVIATION"]
["830AA7900","DESIGN"]
["830AA7910","ELECTRICAL ENGINEERING"]
["830AA7920","CIVIL ENGINEERING"]
["830AA7930","SYSTEM CONTROL"]
["830AA8000","OFFICE OF THE CHIEF FINANCIAL OFFICER"]
["830AA8200","FINANCIAL MANAGEMENT"]
["830AA8210","FISCAL OPERATIONS"]
["830AA8220","ACCOUNTING AND REPORTING"]
["830AA8230","FINANCIAL SYSTEMS"]
["830AA8400","BUDGET AND ANALYSIS"]
["830AA8410","WESTERN-WIDE BUDGET AND ANALYSIS"]
["830AA8420","CSO BUDGET"]
["830AA8500","GOVERNANCE AND POLICY"]
["830AA8510","INTERNAL AUDIT AND COMPLIANCE"]
["830BB0000","REGIONAL MANAGER-UPPER GREAT PLAINS CSR"]
["830BB0400","ENVIRONMENT"]
["830BB0700","SAFETY AND SECURITY"]
["830BB1000","MANAGEMENT"]
["830BB1200","HUMAN RESOURCES"]
["830BB1500","PROCUREMENT"]
["830BB2000","INFORMATION TECHNOLOGY"]
["830BB4000","POWER SYSTEMS OPERATIONS"]
["830BB4100","TRANSMISSION OPERATIONS AND SWITCHING"]
["830BB4200","POWER ACCOUNTING AND BILLING"]
["830BB4300","OPERATIONS COMPUTER SUPPORT"]
["830BB4400","TRANSMISSION SYSTEM PLANNING"]
["830BB4800","TRANSMISSION SCHEDULING AND GENERATION CONTROL"]
["830BB5000","MAINTENANCE"]
["830BB5100","MONTANA MAINTENANCE"]
["830BB5110","SUBSTATIONS"]
["830BB5120","TRANSMISSION LINES"]
["830BB5130","COMMUNICATIONS"]
["830BB5140","SYSTEM PROTECTION"]
["830BB5150","HVDC CONVERTER STATION"]
["830BB5200","NORTH DAKOTA MAINTENANCE"]
["830BB5210","SUBSTATIONS"]
["830BB5220","TRANSMISSION LINES"]
["830BB5230","COMMUNICATIONS"]
["830BB5240","SYSTEM PROTECTION"]
["830BB5300","SOUTH DAKOTA MAINTENANCE"]
["830BB5310","SUBSTATIONS"]
["830BB5320","TRANSMISSION LINES"]
["830BB5330","COMMUNICATIONS"]
["830BB5340","SYSTEM PROTECTION"]
["830BB5500","ENGINEERING"]
["830BB5600","CONSTRUCTION"]
["830BB6000","POWER MARKETING"]
["830BB6100","RATES"]
["830BB6200","POWER CONTRACTS AND ENERGY SERVICES"]
["830BB6300","ENERGY MANAGEMENT AND MARKETING"]
["830BB8000","FINANCIAL MANAGEMENT"]
["830GG0000","REGIONAL MANAGER-DESERT SOUTHWEST CSR"]
["830GG0200","ENERGY MANAGEMENT & MARKETING OFFICE"]
["830GG0400","ENVIRONMENT"]
["830GG0700","SAFETY AND SECURITY"]
["830GG1000","MANAGEMENT"]
["830GG1200","HUMAN RESOURCES"]
["830GG1500","PROCUREMENT"]
["830GG2000","INFORMATION TECHNOLOGY SUPPORT"]
["830GG2100","SYSTEM INTEGRATION"]
["830GG2200","SYSTEM SUPPORT"]
["830GG5000","MAINTENANCE"]
["830GG5200","TRANSMISSION LINES AND SUBSTATION MAINTENANCE"]
["830GG5300","PROTECTION AND COMMUNICATION MAINTENANCE"]
["830GG5600","ENGINEERING AND CONSTRUCTION"]
["830GG6000","POWER MARKETING"]
["830GG6100","RATES"]
["830GG6200","POWER CONTRACTS AND ENERGY SERVICES"]
["830GG6300","RESOURCE PLANNING & SETTLEMENTS"]
["830GG8000","FINANCIAL MANAGEMENT"]
["830GG8100","BUDGET & ALTERNATIVE FINANCE"]
["830GG8200","ACCOUNTING"]
["830JJ0000","REGIONAL MANAGER-ROCKY MOUNTAIN CSR"]
["830JJ0400","ENVIRONMENT"]
["830JJ0700","SAFETY AND SECURITY"]
["830JJ1000","MANAGEMENT"]
["830JJ1200","HUMAN RESOURCES"]
["830JJ1500","PROCUREMENT"]
["830JJ1600","FACILITIES/PROPERTY"]
["830JJ2000","INFORMATION TECHNOLOGY"]
["830JJ2400","BUSINESS SYSTEMS"]
["830JJ2500","ENGINEERING SYSTEMS (SCADA)"]
["830JJ2600","OPERATIONS SUPPORT COMPUTER SYSTEMS"]
["830JJ4000","POWER SYSTEM OPERATIONS"]
["830JJ4100","TRANSMISSION SWITCHING"]
["830JJ4200","OPERATIONS SUPPORT"]
["830JJ4800","TRANSMISSION SCHEDULING AND SECURITY"]
["830JJ4900","OPERATIONS REALIABILITY AND BALANCING"]
["830JJ5000","MAINTENANCE"]
["830JJ5100","WYOMING/NEBRASKA MAINTENANCE"]
["830JJ5200","EASTERN COLORADO MAINTENANCE"]
["830JJ5300","WESTERN COLORADO MAINTENANCE"]
["830JJ5500","TECHNICAL SUPPORT"]
["830JJ5600","ENGINEERING AND CONSTRUCTION"]
["830JJ6000","POWER MARKETING"]
["830JJ6100","RATES"]
["830JJ6200","POWER CONTRACTS AND ENERGY SERVICES"]
["830JJ6400","SETTLEMENTS"]
["830JJ7000","TRANSMISSION SERVICES"]
["830JJ7100","TRANMISSION PLANNING NORTH"]
["830JJ7200","TRANSMISSION PLANNING SOUTH"]
["830JJ7300","TRANSMISSION BUSINESS UNIT"]
["830JJ8000","FINANCIAL MANAGEMENT"]
["830LL0000","COLORADO RIVER STORAGE PROJECT (CRSP) MANAGEMENT CENTER"]
["830LL6000","POWER MARKETING"]
["830LL6100","RATES"]
["830LL6200","CONTRACTS AND ENERGY SERVICES"]
["830LL7000","ENERGY MANAGEMENT AND MARKETING"]
["830LL7100","PRESCHEDULING AND ENERGY ACCOUNTING"]
["830LL7200","ENERGY MANAGEMENT"]
["830LL8000","MANAGEMENT AND TECHNICAL SERVICES"]
["830LL8100","ENVIRONMENTAL SERVICES"]
["830LL8200","FINANCIAL SERVICES"]
["830NN0000","REGIONAL MANAGER-SIERRA NEVADA CSR"]
["830NN0300","SAFETY"]
["830NN1000","PROGRAM SUPPORT"]
["830NN1100","PROCUREMENT AND PROPERTY"]
["830NN1200","HUMAN RESOURCES"]
["830NN1400","NATURAL RESOURCES"]
["830NN2000","INFORMATION TECHNOLOGY"]
["830NN2100","BUSINESS SYSTEMS"]
["830NN2200","ENGINEERING SYSTEMS"]
["830NN4000","POWER SYSTEM OPERATIONS"]
["830NN4100","SYSTEM OPERATIONS & CONTROL"]
["830NN4400","OPERATIONS ENGINEERING AND PLANNING"]
["830NN5000","MAINTENANCE"]
["830NN5100","SUBSTATION MAINTENANCE"]
["830NN5200","PROTECTION AND COMMUNICATION MAINTENANCE"]
["830NN5300","LINE MAINTENANCE"]
["830NN5500","MAINTENANCE ENGINEERING"]
["830NN5700","TECHNICAL SUPPORT"]
["830NN6000","POWER MARKETING"]
["830NN6100","RATES"]
["830NN6200","POWER CONTRACTS AND ENERGY SERVICES"]
["830NN6400","RESOURCES AND SCHEDULING"]
["830NN6500","MERCHANT REAL TIME"]
["830NN6600","SETTLEMENTS AND POWER BILLING"]
["830NN8000","FINANCIAL MANAGEMENT"]
["N000000001","IMMEDIATE OFFICE OF THE ADMINISTRATOR (NA)"]
["N010000000","OFFICE OF POLICY"]
["N020000000","OFFICE OF CIVIL RIGHTS"]
["N050000000","OFFICE OF COST ESTIMATING AND PROGRAM EVALUATION"]
["N100000001","IMMEDIATE OFFICE OF THE DEPUTY ADMINISTRATOR (DP)"]
["N101A00000","OFFICE OF INTERAGENCY WORK"]
["N150000000","ASSISTANT DEPUTY ADMINISTRATOR FOR SECURE TRANSPORTATION"]
["N151000000","OFFICE OF MISSIONS OPERATIONS"]
["N151100000","AGENT OPERATIONS WESTERN COMMAND"]
["N151120000","UNIT 2"]
["N151200000","AGENT OPERATIONS CENTRAL COMMAND"]
["N151210000","UNIT 3"]
["N151220000","UNIT 4"]
["N151300000","AGENT OPERATIONS EASTERN COMMAND"]
["N151310000","UNIT 5"]
["N151320000","UNIT 6"]
["N151400000","OPERATIONS DIVISION"]
["N151410000","MISSION SUPPORT BRANCH"]
["N151420000","OPERATIONAL PLANNING AND SCHEDULING BRANCH"]
["N151430000","LIAISON SUPPORT BRANCH"]
["N151450000","OPERATIONAL REQUIREMENTS BRANCH"]
["N152000000","OFFICE OF TECHNICAL SERVICES"]
["N152200000","SAFETY, SECURITY AND EMERGENCY MANAGEMENT DIVISION"]
["N152210000","ENVIRONMENT, SAFETY AND HEALTH BRANCH"]
["N152220000","EMERGENCY MANAGEMENT BRANCH"]
["N152230000","SECURITY BRANCH"]
["N152240000","HUMAN RELIABILITY PROGRAM BRANCH"]
["N152300000","ENGINEERING SYSTEMS AND TECHNOLOGY DIVISION"]
["N152310000","COMMAND & CONTROL, COMMUNICATIONS, COMPUTERS & CYBER SECURITY BRANCH"]
["N152320000","VEHICLE SYSTEMS BRANCH"]
["N152330000","FACILITIES MANAGEMENT BRANCH"]
["N155000000","OFFICE OF TRAINING AND RESOURCES"]
["N155100000","TRAINING COMMAND"]
["N155110000","ALPHA TRAINING BRANCH"]
["N155120000","BRAVO TRAINING BRANCH"]
["N155130000","CHARLIE TRAINING BRANCH"]
["N155400000","RESOURCES DIVISION"]
["N155410000","LOGISTICS AND PROPERTY MANAGEMENT BRANCH"]
["N155420000","MANAGEMENT SUPPORT BRANCH"]
["N155430000","ACQUISITION AND FUNDS MANAGEMENT BRANCH"]
["N156000000","OFFICE OF PROGRAM INTEGRATION"]
["N156010000","INDEPENDENT OVERSIGHT STAFF"]
["N156100000","BUDGET PLANNING AND EXECUTION DIVISION"]
["N156110000","BUDGET PLANNING BRANCH"]
["N156120000","BUDGET EXECUTION BRANCH"]
["N156200000","RESEARCH AND ANALYSIS DIVISION"]
["N156300000","AVIATION OPERATIONS DIVISION"]
["N1D0000000","ASSISTANT DEPUTY ADMINISTRATOR FOR RESEARCH DEV TEST & EVALUATION"]
["N1D2000000","OFFICE OF INERTIAL CONFINEMENT FUSION"]
["N1D3000000","OFFICE OF RESEARCH & DEVELOPMENT"]
["N1D4000000","OFFICE OF ADVANCED SIMULATION AND COMPUTING AND INSTITUTIONAL R&D"]
["N1D6000000","OFFICE OF TEST AND EVALUATION"]
["N1E0000000","ASSISTANT DEPUTY ADMINISTRATOR FOR STOCKPILE MANAGEMENT"]
["N1E1000000","OFFICE OF NUCLEAR WEAPON SURETY AND QUALITY"]
["N1E1100000","NUCLEAR EXPLOSIVE SAFETY DIVISION"]
["N1E1200000","WEAPON SECURITY AND CONTROL DIVISION"]
["N1E1300000","WEAPON QUALITY DIVISION"]
["N1E2000000","OFFICE OF NUCLEAR WEAPON STOCKPILE"]
["N1E2100000","STOCKPILE SERVICES & BUSINESS PROCESSES DIVISION"]
["N1E2200000","BALLISTIC MISSILE WEAPONS DIVISION"]
["N1E2300000","AIR DELIVERED WEAPONS DIVISION"]
["N1E3000000","OFFICE OF MATERIALS MANAGEMENT & TECHNOLOGY MATURATION"]
["N1E3100000","MATERIALS MANAGEMENT DIVISION"]
["N1E3200000","TECHNOLOGY MATURATION DIVISION"]
["N1F0000000","ASSISTANT DEPUTY ADMINISTRATOR FOR PROGRAM INTEGRATION"]
["N1F1000000","OFFICE OF STRATEGIC PLANNING AND PROGRAMMING"]
["N1F2000000","OFFICE OF BUDGETING, PERFORMANCE AND DECISION SUPPORT"]
["N1F3000000","OFFICE OF COST ANALYSIS AND COST ASSESSMENTS"]
["N1J0000000","ASSISTANT DEPUTY ADMINISTRATOR FOR SYSTEMS ENGINEERING & INTEGRATION"]
["N1J1000000","OFFICE OF POLICY AND REQUIREMENTS"]
["N1J2000000","OFFICE OF PROGRAM MANAGEMENT SUPPORT"]
["N1K0000000","ASSISTANT DEPUTY ADMINISTRATOR FOR MAJOR MODERNIZATION PROGRAMS"]
["N1K1000000","B61 LIFE EXTENSION PROGRAM OFFICE"]
["N1K2000000","W78/88-1 LIFE EXTENSION PROGRAM OFFICE"]
["N1K3000000","SCIENCE AND MANUFACTURING CAPABILITIES OFFICE"]
["N200000001","IMMEDIATE OFFICE OF THE DEPUTY ADMINISTRATOR (NN)"]
["N220000000","ASST DEPUTY ADMINISTRATOR FOR DEFENSE NUCLEAR NONPROLIFERATION R&D"]
["N221000000","OFFICE OF PROLIFERATION DETECTION"]
["N222000000","OFFICE OF NUCLEAR DETONATION DETECTION"]
["N240000000","ASSISTANT DEPUTY ADMINISTRATOR FOR NONPROLIFERATION AND ARMS CONTROL"]
["N241000000","OFFICE OF INTERNATIONAL NUCLEAR SAFEGUARDS"]
["N242000000","OFFICE OF NUCLEAR EXPORT CONTROLS"]
["N243000000","OFFICE OF NUCLEAR VERIFICATION"]
["N256000000","OBS OFFICE OF SECOND LINE OF DEFENSE"]
["N2A2000000","OBS OFFICE OF EUROPEAN AND AFRICAN THREAT REDUCTION"]
["N2B0000000","ASSISTANT DEPUTY ADMINISTRATOR FOR GLOBAL MATERIAL SECURITY"]
["N2B1000000","OFFICE OF INTERNATIONAL NUCLEAR SECURITY"]
["N2B2000000","OFFICE OF RADIOLOGICAL SECURITY"]
["N2B3000000","OFFICE OF NUCLEAR SMUGGLING DETECTION AND DETERRENCE"]
["N2C0000000","ASSISTANT DEPUTY ADMINISTRATOR FOR MATERIAL MANAGEMENT & MINIMIZATION"]
["N2C1000000","OFFICE OF CONVERSION"]
["N2C2000000","OFFICE OF NUCLEAR MATERIAL REMOVAL"]
["N2C3000000","OFFICE OF MATERIAL DISPOSITION"]
["N2C4000000","OFFICE OF NONPROLIFERATION CONSTRUCTION & PROGRAM ANALYSIS"]
["N300000000","DEPUTY ADMINISTRATOR FOR NAVAL REACTORS (NNSA)"]
["N400000000","ASSOCIATE ADMINISTRATOR FOR EMERGENCY OPERATIONS"]
["N401000000","RESOURCE MANAGEMENT AND ADMINISTRATION STAFF"]
["N402000000","ASSET READINESS AND TRAINING STAFF"]
["N410000000","OFFICE OF EMERGENCY MANAGEMENT IMPLEMENTATION AND POLICY"]
["N420000000","OFFICE OF EMERGENCY RESPONSE"]
["N440000000","OFFICE OF EMERGENCY OPERATIONS SUPPORT"]
["N450000000","OFFICE OF NATIONAL NUCLEAR TECHNICAL FORENSICS"]
["N460000000","OFFICE OF INTERNATIONAL EMERGENCY MANAGEMENT AND COOPERATION"]
["N700000000","ASSOCIATE ADMINISTRATOR FOR DEFENSE NUCLEAR SECURITY"]
["N702000000","OFFICE OF RESOURCE MANAGEMENT"]
["N760000000","OFFICE OF PERSONNEL AND FACILITY CLEARANCES"]
["N763000000","PERSONNEL SECURITY SUPPORT DIVISION"]
["N764000000","APPLICANT AND REINVESTIGATION ADJUDICATION DIVISION"]
["N765000000","FACILITY AND PERSONNEL CLEARANCE PROCESSING DIVISION"]
["N771000000","HEADQUARTERS SECURITY OPERATIONS DIVISION"]
["N772000000","CLASSIFICATION AND CONTROLLED INFORMATION DIVISION"]
["N790000000","OFFICE OF SECURITY OPERATIONS AND PROGRAMMATIC PLANNING"]
["N800000000","ASSOC ADM & DEP UNDER SEC FOR COUNTERTERRORISM & COUNTERPROLIFERATION"]
["N810000000","OFFICE OF COUNTERTERRORISM POLICY AND COOPERATION"]
["N820000000","OFFICE OF NUCLEAR THREAT SCIENCE"]
["NB00000000","ASSOCIATE ADMINISTRATOR FOR EXTERNAL AFFAIRS"]
["NB10000000","OFFICE OF CONGRESSIONAL AFFAIRS"]
["NB20000000","OFFICE OF PUBLIC AFFAIRS"]
["NB30000000","OFFICE OF INTERGOVERNMENTAL AFFAIRS"]
["NC00000000","OFFICE OF GENERAL COUNSEL"]
["NC10000000","DEPUTY GENERAL COUNSEL FOR GENERAL LAW AND LITIGATION"]
["NC30000000","DEPUTY GENERAL COUNSEL FOR PROCUREMENT, IP & TT"]
["ND00000000","ASSOCIATE ADMINISTRATOR FOR ACQUISITION AND PROJECT MANAGEMENT"]
["ND01000000","PROJECT ANALYSIS, OVERSIGHT AND REVIEW STAFF"]
["ND03000000","UPF PROJECT MANAGEMENT OFFICE"]
["ND04000000","MOX PROJECT MANAGEMENT OFFICE"]
["ND10000000","OFFICE OF ACQUISITION MANAGEMENT"]
["ND12000000","NON-M&O CONTRACTING OPERATIONS DIVISION"]
["ND12300000","CONSTRUCTION AND SPECIALTY ACQUISITION BRANCH"]
["ND12310000","UTILITIES AND CONSTRUCTION SECTION"]
["ND12320000","SPECIALTY ACQUISITION SECTION"]
["ND12400000","SERVICES ACQUISITION BRANCH"]
["ND12410000","HEADQUARTERS PROGRAMS SECTION"]
["ND12420000","FIELD PROGRAMS SECTION"]
["ND13000000","M&O CONTRACTING OPERATIONS DIVISION"]
["ND13100000","M&O CONTRACTING BRANCH"]
["ND13200000","CONTRACTING HR BRANCH"]
["ND14000000","ACQUISITION POLICY & OVERSIGHT DIVISION"]
["ND14100000","NON-M&O POLICY & OVERSIGHT BRANCH"]
["ND14200000","M&O POLICY & OVERSIGHT BRANCH"]
["ND14300000","PERSONAL PROPERTY BRANCH"]
["ND14400000","PRICE/COST ESTIMATING BRANCH"]
["ND20000000","OFFICE OF ENTERPRISE PROJECT MANAGEMENT"]
["ND22000000","PROJECT PLANNING & EXECUTION DIVISION (EAST)"]
["ND23000000","PROJECT PLANNING & EXECUTION DIVISION (WEST)"]
["NE00000000","ASSOCIATE ADMINISTRATOR FOR MANAGEMENT AND BUDGET"]
["NE01000000","OFFICE OF AUDIT COORDINATIONS & INTERNAL AFFAIRS"]
["NE04000000","OFFICE OF EXECUTIVE SECRETARIAT"]
["NE10000000","OFFICE OF HUMAN CAPITAL MANAGEMENT"]
["NE17000000","POLICY & STRATEGIC INITIATIVES DIVISION"]
["NE17100000","WORKFORCE PLANNING AND OUTREACH BRANCH"]
["NE17200000","POLICY BRANCH"]
["NE17300000","PERFORMANCE MANAGEMENT BRANCH"]
["NE17400000","EMPLOYEE-MANAGEMENT RELATIONS BRANCH"]
["NE18000000","OPERATIONS DIVISION"]
["NE18100000","STAFFING AND CLASSIFICATION BRANCH"]
["NE18200000","BENEFITS AND WORK LIFE BALANCE BRANCH"]
["NE18300000","EXECUTIVE RESOURCES BRANCH"]
["NE18400000","PROCESSING BRANCH"]
["NE20000000","OFFICE OF BUSINESS OPERATIONS"]
["NE21000000","ACQUISITION PLANNING AND SUPPORT DIVISION"]
["NE22000000","POLICY AND ANALYSIS DIVISION"]
["NE23000000","OFFICE OF SPACE AND LOGISTICS DIVISION"]
["NE40000000","OFFICE OF LEADERSHIP AND CAREER MANAGEMENT"]
["NE41000000","LEADERSHIP & EMPLOYEE INITIATIVES DIVISION"]
["NE42000000","TRAINING OPERATIONS DIVISION"]
["NE50000000","OFFICE OF PLANNING, PROGRAMMING, BUDGET AND EVALUATION"]
["NE51000000","DEFENSE PROGRAMS AND NUCLEAR NONPROLIFERATION DIVISION"]
["NE52000000","PROGRAM DIRECTION AND INFRASTRUCTURE ENVIRONMENT AND SECURITY DIVISION"]
["NE53000000","SITES AND PROGRAMS SUPPORT DIVISION"]
["NE60000000","OFFICE OF FIELD FINANCIAL MANAGEMENT"]
["NE61000000","ALLOTEE AND WORK FOR OTHERS DIVISION"]
["NE63000000","FINANCIAL REVIEW AND PERFORMANCE ASSESSMENT DIVISION"]
["NE63200000","OPERATIONS BRANCH"]
["NE63300000","FINANCIAL POLICY AND LIAISON BRANCH"]
["NE64000000","AUDIT COORDINATION AND REPORTING DIVISION"]
["NE65000000","ACCOUNTING OPERATIONS AND REPORTING DIVISION"]
["NE70000000","OFFICE OF INTERNATIONAL OPERATIONS"]
["NF00000000","ASSOC ADMINISTRATOR FOR INFORMATION MGMT AND CHIEF INFORMATION OFFICER"]
["NF10000000","OFFICE OF CYBER SECURITY AND IT OPERATIONS"]
["NF20000000","OFFICE OF POLICY AND GOVERNANCE"]
["NH00000000","ASSOCIATE ADMINISTRATOR FOR SAFETY, INFRASTRUCTURE AND OPERATIONS"]
["NH10000000","DEPUTY ASSOCIATE ADMINISTRATOR FOR SAFETY"]
["NH11000000","OFFICE OF THE CHIEF OF DEFENSE NUCLEAR SAFETY"]
["NH12000000","OFFICE OF NUCLEAR SAFETY SERVICES"]
["NH13000000","OFFICE OF WORKER SAFETY AND HEALTH SERVICES"]
["NH20000000","DEPUTY ASSOCIATE ADMINISTRATOR FOR INFRASTRUCTURE"]
["NH21000000","OFFICE OF INFRASTRUCTURE PLANNING AND ANALYSIS"]
["NH22000000","OFFICE OF INFRASTRUCTURE OPERATIONS AND MODERNIZATION"]
["NH31000000","OFFICE OF PACKAGING AND TRANSPORTATION"]
["NH32000000","OFFICE OF NUCLEAR MATERIALS INTEGRATION"]
["NH33000000","OFFICE OF ENVIRONMENT AND SUSTAINABILITY"]
["NX30000001","IMMEDIATE OFFICE OF THE MANAGER NAVAL REACTORS LABORATORY FIELD OFFICE"]
["NX32000000","ASSISTANT MANAGER FOR OPERATIONS - PITTSBURGH"]
["NX33000000","ASSISTANT MANAGER FOR OPERATIONS - SCHENECTADY"]
["NX34000000","ASSISTANT MANAGER NAVSEA TECHNICAL REPRESENTATIVE"]
["NX35000000","AUDIT DIVISION"]
["NX37000000","CONTRACTS DIVISION"]
["NX39000000","IDAHO BRANCH OFFICE"]
["NX3A000000","SECURITY AND SAFEGUARDS DIVISION"]
["NX3B000000","TRANSPORTATION DIVISION"]
["NX3C000000","WEST MILTION FIELD OFFICE"]
["NX3D000000","MANAGEMENT SERVICES DIVISION"]
["NX3E000000","FINANCE DIVISION"]
["NX3G000000","LOGISTICS MANAGEMENT DIVISION"]
["NXP0000001","OFFICE OF THE MANAGER, NNSA PRODUCTION OFFICE"]
["NXP1000000","ASSISTANT MANAGER FOR NUCLEAR SAFTEY AND ENGINEERING"]
["NXP2000000","ASSISTANT MANAGER FOR SAFEGUARDS AND SECURITY"]
["NXP3000000","ASSISTANT MANAGER FOR OPERATIONS MANAGEMENT"]
["NXP5000000","ASSISTANT MANAGER FOR BUSINESS AND CONTRACT MANAGEMENT"]
["NXP6000000","ASSISTANT MANAGER FOR ENVIRONMENT, SAFETY, HEALTH & QUALITY"]
["NXP7000000","ASSISTANT MANAGER FOR PROGRAMS AND PROJECTS"]
["NXS0000001","OFFICE OF THE MANAGER, SANDIA FIELD OFFICE"]
["NXS0300000","PERFORMANCE ASSURANCE STAFF"]
["NXS1000000","ASSISTANT MANAGER FOR CONTRACT ADMINISTRATION  AND BUSINESS MANAGEMENT"]
["NXS2000000","ASSISTANT MANAGER FOR SAFEGUARDS AND SECURITY"]
["NXS3000000","ASSISTANT MANAGER FOR PROGRAMS"]
["NXS4000000","ASSISTANT MANAGER FOR ENGINEERING"]
["NXS6000000","ASSISTANT MANAGER FOR OPERATIONS"]
["NXT0000001","OFFICE OF THE MANAGER, KANSAS CITY FIELD OFFICE"]
["NXT1000000","ASSISTANT MANAGER FOR STOCKPILE MANAGEMENT"]
["NXT2000000","ASSISTANT MANAGER FOR OPERATIONS"]
["NXT4000000","ASSISTANT MANAGER FOR BUSINESS AND SECURITY OPERATIONS"]
["NXU0000001","OFFICE OF THE MANAGER, LOS ALAMOS FIELD OFFICE"]
["NXU0400000","QUALITY ASSURANCE STAFF"]
["NXU0500000","COUNSEL STAFF"]
["NXU0700000","ENVIRONMENTAL PROJECTS OFFICE"]
["NXU3000000","ASSISTANT MANAGER FOR NATIONAL SECURITY MISSIONS"]
["NXU6000000","ASSISTANT MANAGER FOR SAFEGUARDS AND SECURITY"]
["NXU7000000","ASSISTANT MANAGER OPERATIONS"]
["NXU8000000","ASSISTANT MANAGER FOR BUSINESS ADMINISTRATION"]
["NXV0000001","OFFICE OF THE MANAGER, NEVADA FIELD OFFICE"]
["NXV2000000","ASSISTANT MANAGER FOR NATIONAL SECURITY"]
["NXV3000000","ASSISTANT MANAGER FOR SITE OPERATIONS"]
["NXV4000000","ASSISTANT MANAGER FOR SAFETY AND SECURITY"]
["NXV5000000","ASSISTANT MANAGER FOR BUSINESS AND CONTRACT MANAGEMENT"]
["NXV6000000","ASSISTANT MANAGER FOR ENVIRONMENTAL MANAGEMENT"]
["NXW0000001","OFFICE OF THE MANAGER, LIVERMORE FIELD OFFICE"]
["NXW2000000","ASSISTANT MANAGER FOR SAFEGUARDS AND SECURITY"]
["NXW4000000","ASSISTANT MANAGER FOR FACILITY OPERATIONS"]
["NXW5000000","ASSISTANT MANAGER FOR ENVIRONMENT, SAFETY AND HEALTH"]
["NXW6000000","ASSISTANT MANAGER FOR SUSTAINABILITY AND INFRASTRUCTURE"]
["NXW7000000","ASSISTANT MANAGER FOR CONTRACTS AND BUSINESS"]
["NXW8000000","ASSISTANT MANAGER FOR MISSIONS"]
["NXX0000001","OFFICE OF THE MANAGER, SAVANNAH RIVER FIELD OFFICE"]
["NXX1000000","ASSISTANT MANAGER FOR MISSION ASSURANCE"]
["NXX2000000","ASSISTANT MANAGER FOR CONTRACT ADMINISTRATION AND BUSINESS MANAGEMENT"]
["NXX3000000","ASSISTANT MANAGER FOR FACILITIES AND PROJECTS"]

{"sheet":"Reference","index":4,"n_rows":24,"n_cols":3,"rows_kept":24,"cut":false,"hidden":false,"merged":[[5,1,5,3],[1,1,1,3],[14,1,14,3],[15,1,15,3],[2,1,2,3],[3,1,3,3],[6,2,6,3],[7,2,7,3],[8,2,8,3],[16,1,16,3],[9,2,9,3],[23,2,23,3],[19,2,19,3],[18,2,18,3],[20,2,20,3],[21,2,21,3],[19,1,20,1],[22,2,22,3],[10,2,10,3],[11,2,11,3]]}
[]
[null,"Contents"]
[null,"1. Glossary of Terms"]
[null,"2. Training Priority "]
[]
[null,"1. Glossary of Terms"]
[null,"Mission Critical Need","A critical training need of an employee to support the mission of the organization."]
[null,"Other Needs","Training not specified as \"Mission Critical\"; however, it is important to the mission of the organization or employee development."]
[null,"Competency","The measurable patterns of knowledge, skills, abilities, behaviors, and other characteristics that an individual needs to successfully perform work roles or occupational functions successfully."]
[null,"ACMP","DOE certification program for employees who are in the acquisition field.\n"]
[null,"PMCDP","DOE certification program for employees who are assigned as a Federal Project Director."]
[null,"Professional Skills","Courses that have been identified to support the organizations professional skills needs."]
[]
[null,"2. Training Priority"]
[null,"This table defines the Training Priority scale (1-4) that is used in the Assessment Tool. "]
[null,"●  left column:  priority to be used in the Assessment Tool. This is the priority level that management should consider when determining Training Needs for employees."]
[null,"●  right column defines the “Training Reason” descriptors located in CHRIS.  "]
[]
[null,"Training Priority","Training Reasons"]
[null,"Priority 1 - Training required by Federal, State, or Local law","Compliance - Training required by law or regulation"]
[null,null,"Transition - Training provided to employees at closure sites to prepare them to perform different work"]
[null,"Priority 2 - Training required by Departmental Directives or other Government regulations or requirements","Directed by Management - Training prescribed by departmental official, such as supervisory training or the EEO/Diversity stand-down"]
[null,"Priority 3 - Training required by position-, organization-, or mission- specific requirements","Job Related - Training specific to an employee's work, such as a federal budget process course or on-the-job training"]
[null,"Priority 4 - Training desired for personal growth and professional enhancement","Development - Activities needed to develop or enhance new knowledge, skills, or abilities"]

{"sheet":"I. Organization Information","index":5,"n_rows":8,"n_cols":3,"rows_kept":8,"cut":false,"hidden":false,"merged":[[1,1,2,2]]}
[]
[null,"Section I. Organization Information"]
[]
[null,"Ten Digit Organization Code"]
[null,"Organization Name",{"$f":"IF(ISNA(VLOOKUP(C4,'Org Codes'!$A$2:$B$3000,2,FALSE)),0,VLOOKUP(C4,'Org Codes'!$A$2:$B$3000,2,FALSE))","v":0}]
[null,"Training Point-of-Contact"]
[null,"Phone Number"]
[null,"Email"]

{"sheet":"II. Mission Critical Need","index":6,"n_rows":81,"n_cols":8,"rows_kept":81,"cut":false,"hidden":false,"merged":[[2,7,8,8],[1,3,1,6],[2,1,3,1]]}
[]
[null,"Section II. Mission Critical Training",null,"Please avoid changing the format of rows and columns"]
[null,"Job Title (Optional)","Course Identified -- Use Drop Down List (Click on Cell to Activate) -or- TYPE IN FULL COURSE NAME - NO ABBREVIATIONS\n*If a course name is typed in, a course cost is needed*                                                                                                                                                                                                    ","# Employees ","Course \nCost ","Total Cost","Priority\n1 -2 - 3 - 4","Scroll Down for additional space "]
[null,null,"Grand Totals:",{"$f":"SUM(D5:D81)","v":0},"N/A",{"$f":"SUM(F5:F81)","v":0},"N/A"]
[null,null,null,null,{"$f":"IF(ISNA(VLOOKUP(C5,'Course Costs'!A2:B1621,2,FALSE)),0, VLOOKUP(C5,'Course Costs'!A2:B1621,2,FALSE))","v":0},{"$f":"PRODUCT(D5:E5)","v":0}]
[null,null,null,null,{"$f":"IF(ISNA(VLOOKUP(C6,'Course Costs'!A2:B1621,2,FALSE)),0, VLOOKUP(C6,'Course Costs'!A2:B1621,2,FALSE))","v":0},{"$f":"PRODUCT(D6:E6)","v":0}]
[null,null,null,null,{"$f":"IF(ISNA(VLOOKUP(C7,'Course Costs'!A2:B1621,2,FALSE)),0, VLOOKUP(C7,'Course Costs'!A2:B1621,2,FALSE))","v":0},0]
[null,null,null,null,{"$f":"IF(ISNA(VLOOKUP(C8,'Course Costs'!A2:B1621,2,FALSE)),0, VLOOKUP(C8,'Course Costs'!A2:B1621,2,FALSE))","v":0},0]
[null,null,null,null,{"$f":"IF(ISNA(VLOOKUP(C9,'Course Costs'!A2:B1621,2,FALSE)),0, VLOOKUP(C9,'Course Costs'!A2:B1621,2,FALSE))","v":0},0]
[null,null,null,null,{"$f":"IF(ISNA(VLOOKUP(C10,'Course Costs'!A2:B1621,2,FALSE)),0, VLOOKUP(C10,'Course Costs'!A2:B1621,2,FALSE))","v":0},{"$f":"PRODUCT(D10:E10)","v":0}]
[null,null,null,null,{"$f":"IF(ISNA(VLOOKUP(C11,'Course Costs'!A2:B1621,2,FALSE)),0, VLOOKUP(C11,'Course Costs'!A2:B1621,2,FALSE))","v":0},0]
[null,null,null,null,{"$f":"IF(ISNA(VLOOKUP(C12,'Course Costs'!A2:B1621,2,FALSE)),0, VLOOKUP(C12,'Course Costs'!A2:B1621,2,FALSE))","v":0},0]
[null,null,null,null,{"$f":"IF(ISNA(VLOOKUP(C13,'Course Costs'!A2:B1621,2,FALSE)),0, VLOOKUP(C13,'Course Costs'!A2:B1621,2,FALSE))","v":0},0]
[null,null,null,null,{"$f":"IF(ISNA(VLOOKUP(C14,'Course Costs'!A2:B1621,2,FALSE)),0, VLOOKUP(C14,'Course Costs'!A2:B1621,2,FALSE))","v":0},0]
[null,null,null,null,{"$f":"IF(ISNA(VLOOKUP(C15,'Course Costs'!A2:B1621,2,FALSE)),0, VLOOKUP(C15,'Course Costs'!A2:B1621,2,FALSE))","v":0},0]
[null,null,null,null,{"$f":"IF(ISNA(VLOOKUP(C16,'Course Costs'!A2:B1621,2,FALSE)),0, VLOOKUP(C16,'Course Costs'!A2:B1621,2,FALSE))","v":0},0]
[null,null,null,null,{"$f":"IF(ISNA(VLOOKUP(C17,'Course Costs'!A2:B1621,2,FALSE)),0, VLOOKUP(C17,'Course Costs'!A2:B1621,2,FALSE))","v":0},0]
[null,null,null,null,{"$f":"IF(ISNA(VLOOKUP(C18,'Course Costs'!A2:B1621,2,FALSE)),0, VLOOKUP(C18,'Course Costs'!A2:B1621,2,FALSE))","v":0},0]
[null,null,null,null,{"$f":"IF(ISNA(VLOOKUP(C19,'Course Costs'!A2:B1621,2,FALSE)),0, VLOOKUP(C19,'Course Costs'!A2:B1621,2,FALSE))","v":0},0]
[null,null,null,null,{"$f":"IF(ISNA(VLOOKUP(C20,'Course Costs'!A2:B1621,2,FALSE)),0, VLOOKUP(C20,'Course Costs'!A2:B1621,2,FALSE))","v":0},0]
[null,null,null,null,{"$f":"IF(ISNA(VLOOKUP(C21,'Course Costs'!A2:B1621,2,FALSE)),0, VLOOKUP(C21,'Course Costs'!A2:B1621,2,FALSE))","v":0},0]
[null,null,null,null,{"$f":"IF(ISNA(VLOOKUP(C22,'Course Costs'!A2:B1621,2,FALSE)),0, VLOOKUP(C22,'Course Costs'!A2:B1621,2,FALSE))","v":0},0]
[null,null,null,null,{"$f":"IF(ISNA(VLOOKUP(C23,'Course Costs'!A2:B1621,2,FALSE)),0, VLOOKUP(C23,'Course Costs'!A2:B1621,2,FALSE))","v":0},0]
[null,null,null,null,{"$f":"IF(ISNA(VLOOKUP(C24,'Course Costs'!A2:B1621,2,FALSE)),0, VLOOKUP(C24,'Course Costs'!A2:B1621,2,FALSE))","v":0},0]
[null,null,null,null,{"$f":"IF(ISNA(VLOOKUP(C25,'Course Costs'!A2:B1621,2,FALSE)),0, VLOOKUP(C25,'Course Costs'!A2:B1621,2,FALSE))","v":0},0]
[null,null,null,null,{"$f":"IF(ISNA(VLOOKUP(C26,'Course Costs'!A2:B1621,2,FALSE)),0, VLOOKUP(C26,'Course Costs'!A2:B1621,2,FALSE))","v":0},0]
[null,null,null,null,{"$f":"IF(ISNA(VLOOKUP(C27,'Course Costs'!A2:B1621,2,FALSE)),0, VLOOKUP(C27,'Course Costs'!A2:B1621,2,FALSE))","v":0},0]
[null,null,null,null,{"$f":"IF(ISNA(VLOOKUP(C28,'Course Costs'!A2:B1621,2,FALSE)),0, VLOOKUP(C28,'Course Costs'!A2:B1621,2,FALSE))","v":0},0]
[null,null,null,null,{"$f":"IF(ISNA(VLOOKUP(C29,'Course Costs'!A2:B1621,2,FALSE)),0, VLOOKUP(C29,'Course Costs'!A2:B1621,2,FALSE))","v":0},0]
[null,null,null,null,{"$f":"IF(ISNA(VLOOKUP(C30,'Course Costs'!A2:B1621,2,FALSE)),0, VLOOKUP(C30,'Course Costs'!A2:B1621,2,FALSE))","v":0},0]
[null,null,null,null,{"$f":"IF(ISNA(VLOOKUP(C31,'Course Costs'!A2:B1621,2,FALSE)),0, VLOOKUP(C31,'Course Costs'!A2:B1621,2,FALSE))","v":0},0]
[null,null,null,null,{"$f":"IF(ISNA(VLOOKUP(C32,'Course Costs'!A2:B1621,2,FALSE)),0, VLOOKUP(C32,'Course Costs'!A2:B1621,2,FALSE))","v":0},0]
[null,null,null,null,{"$f":"IF(ISNA(VLOOKUP(C33,'Course Costs'!A2:B1621,2,FALSE)),0, VLOOKUP(C33,'Course Costs'!A2:B1621,2,FALSE))","v":0},0]
[null,null,null,null,{"$f":"IF(ISNA(VLOOKUP(C34,'Course Costs'!A2:B1621,2,FALSE)),0, VLOOKUP(C34,'Course Costs'!A2:B1621,2,FALSE))","v":0},0]
[null,null,null,null,{"$f":"IF(ISNA(VLOOKUP(C35,'Course Costs'!A2:B1621,2,FALSE)),0, VLOOKUP(C35,'Course Costs'!A2:B1621,2,FALSE))","v":0},0]
[null,null,null,null,{"$f":"IF(ISNA(VLOOKUP(C36,'Course Costs'!A2:B1621,2,FALSE)),0, VLOOKUP(C36,'Course Costs'!A2:B1621,2,FALSE))","v":0},0]
[null,null,null,null,{"$f":"IF(ISNA(VLOOKUP(C37,'Course Costs'!A2:B1621,2,FALSE)),0, VLOOKUP(C37,'Course Costs'!A2:B1621,2,FALSE))","v":0},0]
[null,null,null,null,{"$f":"IF(ISNA(VLOOKUP(C38,'Course Costs'!A2:B1621,2,FALSE)),0, VLOOKUP(C38,'Course Costs'!A2:B1621,2,FALSE))","v":0},0]
[null,null,null,null,{"$f":"IF(ISNA(VLOOKUP(C39,'Course Costs'!A2:B1621,2,FALSE)),0, VLOOKUP(C39,'Course Costs'!A2:B1621,2,FALSE))","v":0},0]
[null,null,null,null,{"$f":"IF(ISNA(VLOOKUP(C40,'Course Costs'!A2:B1621,2,FALSE)),0, VLOOKUP(C40,'Course Costs'!A2:B1621,2,FALSE))","v":0},0]
[null,null,null,null,{"$f":"IF(ISNA(VLOOKUP(C41,'Course Costs'!A2:B1621,2,FALSE)),0, VLOOKUP(C41,'Course Costs'!A2:B1621,2,FALSE))","v":0},0]
[null,null,null,null,{"$f":"IF(ISNA(VLOOKUP(C42,'Course Costs'!A2:B1621,2,FALSE)),0, VLOOKUP(C42,'Course Costs'!A2:B1621,2,FALSE))","v":0},0]
[null,null,null,null,{"$f":"IF(ISNA(VLOOKUP(C43,'Course Costs'!A2:B1621,2,FALSE)),0, VLOOKUP(C43,'Course Costs'!A2:B1621,2,FALSE))","v":0},0]
[null,null,null,null,{"$f":"IF(ISNA(VLOOKUP(C44,'Course Costs'!A2:B1621,2,FALSE)),0, VLOOKUP(C44,'Course Costs'!A2:B1621,2,FALSE))","v":0},0]
[null,null,null,null,{"$f":"IF(ISNA(VLOOKUP(C45,'Course Costs'!A2:B1621,2,FALSE)),0, VLOOKUP(C45,'Course Costs'!A2:B1621,2,FALSE))","v":0},0]
[null,null,null,null,{"$f":"IF(ISNA(VLOOKUP(C46,'Course Costs'!A2:B1621,2,FALSE)),0, VLOOKUP(C46,'Course Costs'!A2:B1621,2,FALSE))","v":0},0]
[null,null,null,null,{"$f":"IF(ISNA(VLOOKUP(C47,'Course Costs'!A2:B1621,2,FALSE)),0, VLOOKUP(C47,'Course Costs'!A2:B1621,2,FALSE))","v":0},0]
[null,null,null,null,{"$f":"IF(ISNA(VLOOKUP(C48,'Course Costs'!A2:B1621,2,FALSE)),0, VLOOKUP(C48,'Course Costs'!A2:B1621,2,FALSE))","v":0},0]
[null,null,null,null,{"$f":"IF(ISNA(VLOOKUP(C49,'Course Costs'!A2:B1621,2,FALSE)),0, VLOOKUP(C49,'Course Costs'!A2:B1621,2,FALSE))","v":0},0]
[null,null,null,null,{"$f":"IF(ISNA(VLOOKUP(C50,'Course Costs'!A2:B1621,2,FALSE)),0, VLOOKUP(C50,'Course Costs'!A2:B1621,2,FALSE))","v":0},0]
[null,null,null,null,{"$f":"IF(ISNA(VLOOKUP(C51,'Course Costs'!A2:B1621,2,FALSE)),0, VLOOKUP(C51,'Course Costs'!A2:B1621,2,FALSE))","v":0},0]
[null,null,null,null,{"$f":"IF(ISNA(VLOOKUP(C52,'Course Costs'!A2:B1621,2,FALSE)),0, VLOOKUP(C52,'Course Costs'!A2:B1621,2,FALSE))","v":0},0]
[null,null,null,null,{"$f":"IF(ISNA(VLOOKUP(C53,'Course Costs'!A2:B1621,2,FALSE)),0, VLOOKUP(C53,'Course Costs'!A2:B1621,2,FALSE))","v":0},0]
[null,null,null,null,{"$f":"IF(ISNA(VLOOKUP(C54,'Course Costs'!A2:B1621,2,FALSE)),0, VLOOKUP(C54,'Course Costs'!A2:B1621,2,FALSE))","v":0},0]
[null,null,null,null,{"$f":"IF(ISNA(VLOOKUP(C55,'Course Costs'!A2:B1621,2,FALSE)),0, VLOOKUP(C55,'Course Costs'!A2:B1621,2,FALSE))","v":0},0]
[null,null,null,null,{"$f":"IF(ISNA(VLOOKUP(C56,'Course Costs'!A2:B1621,2,FALSE)),0, VLOOKUP(C56,'Course Costs'!A2:B1621,2,FALSE))","v":0},0]
[null,null,null,null,{"$f":"IF(ISNA(VLOOKUP(C57,'Course Costs'!A2:B1621,2,FALSE)),0, VLOOKUP(C57,'Course Costs'!A2:B1621,2,FALSE))","v":0},0]
[null,null,null,null,{"$f":"IF(ISNA(VLOOKUP(C58,'Course Costs'!A2:B1621,2,FALSE)),0, VLOOKUP(C58,'Course Costs'!A2:B1621,2,FALSE))","v":0},0]
[null,null,null,null,{"$f":"IF(ISNA(VLOOKUP(C59,'Course Costs'!A2:B1621,2,FALSE)),0, VLOOKUP(C59,'Course Costs'!A2:B1621,2,FALSE))","v":0},0]
[null,null,null,null,{"$f":"IF(ISNA(VLOOKUP(C60,'Course Costs'!A2:B1621,2,FALSE)),0, VLOOKUP(C60,'Course Costs'!A2:B1621,2,FALSE))","v":0},0]
[null,null,null,null,{"$f":"IF(ISNA(VLOOKUP(C61,'Course Costs'!A2:B1621,2,FALSE)),0, VLOOKUP(C61,'Course Costs'!A2:B1621,2,FALSE))","v":0},0]
[null,null,null,null,{"$f":"IF(ISNA(VLOOKUP(C62,'Course Costs'!A2:B1621,2,FALSE)),0, VLOOKUP(C62,'Course Costs'!A2:B1621,2,FALSE))","v":0},0]
[null,null,null,null,{"$f":"IF(ISNA(VLOOKUP(C63,'Course Costs'!A2:B1621,2,FALSE)),0, VLOOKUP(C63,'Course Costs'!A2:B1621,2,FALSE))","v":0},0]
[null,null,null,null,{"$f":"IF(ISNA(VLOOKUP(C64,'Course Costs'!A2:B1621,2,FALSE)),0, VLOOKUP(C64,'Course Costs'!A2:B1621,2,FALSE))","v":0},0]
[null,null,null,null,{"$f":"IF(ISNA(VLOOKUP(C65,'Course Costs'!A2:B1621,2,FALSE)),0, VLOOKUP(C65,'Course Costs'!A2:B1621,2,FALSE))","v":0},0]
[null,null,null,null,{"$f":"IF(ISNA(VLOOKUP(C66,'Course Costs'!A2:B1621,2,FALSE)),0, VLOOKUP(C66,'Course Costs'!A2:B1621,2,FALSE))","v":0},0]
[null,null,null,null,{"$f":"IF(ISNA(VLOOKUP(C67,'Course Costs'!A2:B1621,2,FALSE)),0, VLOOKUP(C67,'Course Costs'!A2:B1621,2,FALSE))","v":0},0]
[null,null,null,null,{"$f":"IF(ISNA(VLOOKUP(C68,'Course Costs'!A2:B1621,2,FALSE)),0, VLOOKUP(C68,'Course Costs'!A2:B1621,2,FALSE))","v":0},0]
[null,null,null,null,{"$f":"IF(ISNA(VLOOKUP(C69,'Course Costs'!A2:B1621,2,FALSE)),0, VLOOKUP(C69,'Course Costs'!A2:B1621,2,FALSE))","v":0},0]
[null,null,null,null,{"$f":"IF(ISNA(VLOOKUP(C70,'Course Costs'!A2:B1621,2,FALSE)),0, VLOOKUP(C70,'Course Costs'!A2:B1621,2,FALSE))","v":0},{"$f":"PRODUCT(D70:E70)","v":0}]
[null,null,null,null,{"$f":"IF(ISNA(VLOOKUP(C71,'Course Costs'!A2:B1621,2,FALSE)),0, VLOOKUP(C71,'Course Costs'!A2:B1621,2,FALSE))","v":0},0]
[null,null,null,null,{"$f":"IF(ISNA(VLOOKUP(C72,'Course Costs'!A2:B1621,2,FALSE)),0, VLOOKUP(C72,'Course Costs'!A2:B1621,2,FALSE))","v":0},0]
[null,null,null,null,{"$f":"IF(ISNA(VLOOKUP(C73,'Course Costs'!A2:B1621,2,FALSE)),0, VLOOKUP(C73,'Course Costs'!A2:B1621,2,FALSE))","v":0},0]
[null,null,null,null,{"$f":"IF(ISNA(VLOOKUP(C74,'Course Costs'!A2:B1621,2,FALSE)),0, VLOOKUP(C74,'Course Costs'!A2:B1621,2,FALSE))","v":0},0]
[null,null,null,null,{"$f":"IF(ISNA(VLOOKUP(C75,'Course Costs'!A2:B1621,2,FALSE)),0, VLOOKUP(C75,'Course Costs'!A2:B1621,2,FALSE))","v":0},0]
[null,null,null,null,{"$f":"IF(ISNA(VLOOKUP(C76,'Course Costs'!A2:B1621,2,FALSE)),0, VLOOKUP(C76,'Course Costs'!A2:B1621,2,FALSE))","v":0},0]
[null,null,null,null,{"$f":"IF(ISNA(VLOOKUP(C77,'Course Costs'!A2:B1621,2,FALSE)),0, VLOOKUP(C77,'Course Costs'!A2:B1621,2,FALSE))","v":0},0]
[null,null,null,null,{"$f":"IF(ISNA(VLOOKUP(C78,'Course Costs'!A2:B1621,2,FALSE)),0, VLOOKUP(C78,'Course Costs'!A2:B1621,2,FALSE))","v":0},0]
[null,null,null,null,{"$f":"IF(ISNA(VLOOKUP(C79,'Course Costs'!A2:B1621,2,FALSE)),0, VLOOKUP(C79,'Course Costs'!A2:B1621,2,FALSE))","v":0},0]
[null,null,null,null,{"$f":"IF(ISNA(VLOOKUP(C80,'Course Costs'!A2:B1621,2,FALSE)),0, VLOOKUP(C80,'Course Costs'!A2:B1621,2,FALSE))","v":0},0]
[null,null,null,null,{"$f":"IF(ISNA(VLOOKUP(C81,'Course Costs'!A2:B1621,2,FALSE)),0, VLOOKUP(C81,'Course Costs'!A2:B1621,2,FALSE))","v":0},0]

{"sheet":"III. Other Needs ","index":7,"n_rows":81,"n_cols":8,"rows_kept":81,"cut":false,"hidden":false,"merged":[[2,7,8,8],[1,3,1,6],[2,1,3,1]]}
[]
[null,"Section III. Other Needs Training - Non Mission Critical",null,"Please avoid changing the format of rows and columns"]
[null,"Job Title (Optional)","Course Identified -- TYPE IN FULL COURSE NAME - NO ABBREVIATIONS                                                                                                                                                                                                    ","# Employees ","Course \nCost ","Total Cost","Priority\n1 -2 - 3 - 4","Scroll Down for additional space "]
[null,null,"Grand Totals:",{"$f":"SUM(D5:D81)","v":0},"N/A",{"$f":"SUM(F5:F81)","v":0},"N/A"]
[null,null,null,null,null,{"$f":"PRODUCT(D5:E5)","v":0}]
[null,null,null,null,null,{"$f":"PRODUCT(D6:E6)","v":0}]
[null,null,null,null,null,{"$f":"PRODUCT(D7:E7)","v":0}]
[null,null,null,null,null,0]
[null,null,null,null,null,0]
[null,null,null,null,null,0]
[null,null,null,null,null,0]
[null,null,null,null,null,0]
[null,null,null,null,null,0]
[null,null,null,null,null,0]
[null,null,null,null,null,0]
[null,null,null,null,null,0]
[null,null,null,null,null,0]
[null,null,null,null,null,0]
[null,null,null,null,null,0]
[null,null,null,null,null,0]
[null,null,null,null,null,0]
[null,null,null,null,null,0]
[null,null,null,null,null,0]
[null,null,null,null,null,0]
[null,null,null,null,null,0]
[null,null,null,null,null,0]
[null,null,null,null,null,0]
[null,null,null,null,null,0]
[null,null,null,null,null,0]
[null,null,null,null,null,0]
[null,null,null,null,null,0]
[null,null,null,null,null,0]
[null,null,null,null,null,0]
[null,null,null,null,null,0]
[null,null,null,null,null,0]
[null,null,null,null,null,0]
[null,null,null,null,null,0]
[null,null,null,null,null,0]
[null,null,null,null,null,0]
[null,null,null,null,null,0]
[null,null,null,null,null,0]
[null,null,null,null,null,0]
[null,null,null,null,null,0]
[null,null,null,null,null,0]
[null,null,null,null,null,0]
[null,null,null,null,null,0]
[null,null,null,null,null,0]
[null,null,null,null,null,0]
[null,null,null,null,null,0]
[null,null,null,null,null,0]
[null,null,null,null,null,0]
[null,null,null,null,null,0]
[null,null,null,null,null,0]
[null,null,null,null,null,0]
[null,null,null,null,null,0]
[null,null,null,null,null,0]
[null,null,null,null,null,0]
[null,null,null,null,null,0]
[null,null,null,null,null,0]
[null,null,null,null,null,0]
[null,null,null,null,null,0]
[null,null,null,null,null,0]
[null,null,null,null,null,0]
[null,null,null,null,null,0]
[null,null,null,null,null,0]
[null,null,null,null,null,0]
[null,null,null,null,null,0]
[null,null,null,null,null,0]
[null,null,null,null,null,0]
[null,null,null,null,null,0]
[null,null,null,null,null,{"$f":"PRODUCT(D71:E71)","v":0}]
[null,null,null,null,null,0]
[null,null,null,null,null,0]
[null,null,null,null,null,0]
[null,null,null,null,null,0]
[null,null,null,null,null,0]
[null,null,null,null,null,0]
[null,null,null,null,null,0]
[null,null,null,null,null,0]
[null,null,null,null,null,0]
[null,null,null,null,null,0]

{"sheet":"IV. Development Programs","index":8,"n_rows":28,"n_cols":6,"rows_kept":28,"cut":false,"hidden":false,"merged":[[1,2,1,5]]}
[]
[null,"Section IV. Development Programs","Please avoid changing the format of rows and columns"]
[null,"Program Description ","# Employees ","Course\nCost","Total Cost","Priority\n1 -2 - 3 - 4"]
[null,"Grand Totals:",{"$f":"SUM(C5:C71)","v":0},"N/A",{"$f":"SUM(E5:E71)","v":0},"N/A"]
[null,"Aspiring Leader Program (ALP)\nGS 5-7 federal employees\nEntry-level employees, GS 4-6 federal employees\nGraduate School\nTwo Month Program\nTuition: $2,645* ",null,0,{"$f":"PRODUCT(C5:D5)","v":0}]
[null,"New Leader Program (NLP) \nGS 7-11 federal employees; \nGraduate School\nSix Month Program\nTuition: $3,245*",null,0,{"$f":"PRODUCT(C6:D6)","v":0}]
[null,"Executive Leadership Program (ELP) \nGS 11-13 federal employees\nGraduate School\nNine Month Program\nTuition: $4,445*",null,0,0]
[null,"Executive Potential Program (EPP) \nSenior-level employees\nGS-13-15 federal employees\nGraduate School\nYear Long Program\nTuition: $6,525*",null,0,0]
[null,"Excellence in Government and e-Government Fellows\nSenior-level employees, GS-14-15 federal employees\nPartnership for Public Service\nYear Long Program\nTuition: $9,900, plus approximately\n$2,900 in estimated travel costs*",null,0,0]
[null,"Leadership for a Democratic Society \nSenior-level employees,GS 15-SES members\nOffice of Personnel Management\n*Call for organizational participation is typically done in\nmid- to late June annually\nOne Month Program\nTuition: $19,500*",null,0,0]
[null,"LEGIS Congressional Fellows Program\nSenior-level employees, GS-13 & above, 7+ years of management experience\nBrookings Institute\n7-month program: $4,525*\n12-month program: $6,135*",null,0,0]
[null,"U.S. Citizen; Current federal employee with 2+ years consecutive service immediately preceding the application deadline, (no grade restrictions necessarily apply)\n2-year service contract required; liability insurance required\nTwo Year Program\nCall for cost details",null,null,0]
[null,"Mansfield Fellowship Program\nU.S. Citizen; Current federal employee with 2+ years consecutive service immediately preceding the application deadline, (no grade restrictions necessarily apply)\n2-year service contract required; liability insurance required\nTwo Year Program\nCall for cost details",null,0,0]
[null,"National Security Studies Programs (NSSP)\n(Includes several programs) Senior-level employees, GS-14-15 federal employees\n10+ years of government service\nNational Defense University\nTen Month Residential Program\nNo direct training costs",null,0,0]
[null,"Industrial College of Armed Forces (ICAF)\nGS-14-15 federal employees\n10+ years of government service\nNational Defense University",null,0,0]
[null,"National War College (NWC)\nGS-14-15 federal employees\n10+ years of government service\nNational Defense University",null,0,0]
[null,"College of International Security Affairs (CISA)\nGS-13-15 federal employees\n10+ years of government service\nNational Defense University",null,0,0]
[null,"Senior Executive Fellows Program\nSenior-level employees, GS-14 and Above\nJohn F. Kennedy School of Government\n(Harvard University)\nOne Month Program\nTuition: $18,300*",null,0,0]
[null,"Additional Program",null,0,{"$f":"PRODUCT(C19:D19)","v":0}]
[null,"Additional Program",null,0,0]
[null,"Additional Program",null,0,0]
[null,"Additional Program",null,0,0]
[null,"Additional Program",null,0,0]
[null,"Additional Program",null,0,0]
[null,"Additional Program",null,0,0]
[null,"Additional Program",null,0,0]
[null,"Additional Program",null,0,0]
[null,"Additional Program",null,0,0]

{"sheet":"V. Competency","index":9,"n_rows":42,"n_cols":8,"rows_kept":42,"cut":false,"hidden":false,"merged":[[11,1,12,1],[1,1,1,2],[1,3,1,6],[2,1,3,1]]}
[]
[null,"Section V. General Competencies",null,"Please avoid changing the format of rows and columns"]
[null,"Fundamental Competencies ","Course Identified to Support Competency\n TYPE IN FULL COURSE NAME - NO ABBREVIATIONS   ","# Employees","Course \nCost ","Total Cost","Priority\n1 -2 - 3 - 4"," "]
[null,null,"Grand Totals:",{"$f":"SUM(D5:D10)","v":0},"N/A",{"$f":"SUM(F5:F10)","v":0},"N/A"]
[null,"Integrity/Honesty",null,null,null,{"$f":"PRODUCT(D5:E5)","v":0}]
[null,"Public Service Motivation",null,null,null,0]
[null,"Interpersonal Skills",null,null,null,0]
[null,"Oral Communication",null,null,null,0]
[null,"Written Communication",null,null,null,0]
[null,"Continual Learning",null,null,null,0]
[]
[null,"Leadership Qualifications","Course Identified to Support Competency\n TYPE IN FULL COURSE NAME - NO ABBREVIATIONS   ","# Employees ","Course \nCost ","Total Cost","Priority\n1 -2 - 3 - 4"]
[null,null,"Grand Totals:",{"$f":"SUM(D14:D91)","v":0},"N/A",{"$f":"SUM(F14:F91)","v":0},"N/A"]
[null,"Leading Change"]
[null,"Creativity and Innovation",null,null,null,{"$f":"PRODUCT(D15:E15)","v":0}]
[null,"External Awareness",null,null,null,{"$f":"PRODUCT(D16:E16)","v":0}]
[null,"Flexibility",null,null,null,{"$f":"PRODUCT(D17:E17)","v":0}]
[null,"Resilience",null,null,null,0]
[null,"Strategic Thinking",null,null,null,0]
[null,"Vision",null,null,null,0]
[null,"Leading People"]
[null,"Conflict Management",null,null,null,0]
[null,"Leveraging Diversity",null,null,null,0]
[null,"Developing Others",null,null,null,0]
[null,"Team Building",null,null,null,0]
[null,"Results Driven"]
[null,"Accountability",null,null,null,{"$f":"PRODUCT(D27:E27)","v":0}]
[null,"Customer Service",null,null,null,0]
[null,"Decisiveness",null,null,null,0]
[null,"Entrepreneurship",null,null,null,0]
[null,"Problem Solving",null,null,null,0]
[null,"Technical Credibility",null,null,null,0]
[null,"Business Acumen"]
[null,"Financial Management",null,null,null,{"$f":"PRODUCT(D34:E34)","v":0}]
[null,"Human Capital Management",null,null,null,{"$f":"PRODUCT(D35:E35)","v":0}]
[null,"Technology Utilization",null,null,null,0]
[null,"Workplace Safety",null,null,null,0]
[null,"Knowledge of DOE Business",null,null,null,0]
[null,"Building Coalitions and People"]
[null,"Partnering",null,null,null,0]
[null,"Political Savvy",null,null,null,0]
[null,"Influencing/Negotiating",null,null,null,0]

{"sheet":"VI. PMCDP-ACMP","index":10,"n_rows":15,"n_cols":2,"rows_kept":15,"cut":false,"hidden":false,"merged":[[12,1,12,5],[14,1,14,5],[1,1,1,5],[6,1,6,5],[3,1,3,5],[4,1,4,5],[7,1,7,5],[8,1,8,5],[9,1,9,5],[10,1,10,5],[11,1,11,5]]}
[]
[null,"DOE Certification Programs ***Internet Links***"]
[]
[null,"The Department of Energy (DOE) Acquisition Workforce consists of a broad range of professional and technical personnel including: Contract Specialists/Contracting Officers, Contracting Officer's Technical Representatives, Financial Assistance Personnel, Technical Project Officers, Personal Property Managers, Real Estate Contracting Officers, Federal Project Directors/Program Managers, as well as personnel who perform acquisition-related activities and functions within DOE."]
[null,"Acquisition Certifications Program - CLICK"]
[]
[null,"In 1998, DOE defined its acquisition workforce to include contract specialists/contacting officers, purchasing agents, financial assistance specialists, property managers, and project managers under DOE’s umbrella directive Program and Project Management for the Acquisition of Capital Assets, DOE O 413.3B, establishing training and certification requirements for the acquisition workforce. In 2001, the Deputy Secretary of Energy directed the DOE Office of Engineering and Construction Management (OECM) to establish the DOE Project Management Career Development Program (PMCDP). The PMCDP requirements are included in DOE O 361.1B, Acquisition Career Development Program (pdf), as a component of the DOE acquisition workforce career development program. The PMCDP Module establishes a well-defined career path that includes certification, minimum training and continuing education (CE) requirements, and project responsibilities commensurate with clearly defined qualifications. "]
[null,"Project Management Career Development Program - CLICK"]
[null,"Training"]
[null,"Certification Package"]
[null,"Certification"]
[null,"Newsletters"]
[null,"Federal Project Director Toolbox"]
[]
[null,"NOTE: A separate Needs Assessment is completed for these programs.  The FY16 courses will be posted in CHRIS the month of August, 2015. "]